Organisation Name,Organisation Code,Effective Date,Directorate,Service Category,Service Category URI,Supplier Name,Payment Date,Transaction Number,Net Amount,Irrecoverable VAT,Purpose_of_the_expenditure,Merchant Category,
Wyre Council,http://opendatacommunities.org/doc/district-council/wyre,29/09/2023,People and Places,Cultural and Related Services,132A,A T Graphics LTD,06/09/2023,PE152672,360.00,0.00,September 23 edition - Theatre supplement full pg for Marine Hall,Advertising - General,
Wyre Council,http://opendatacommunities.org/doc/district-council/wyre,29/09/2023,People and Places,Support Services,135B,Preston City Council,11/09/2023,PE151563,66.46,0.00,New invoice raised due for Wedding cards x200 to incorrect vat on original invoice,Advertising - General,
Wyre Council,http://opendatacommunities.org/doc/district-council/wyre,29/09/2023,People and Places,Cultural and Related Services,132A,Preston City Council,11/09/2023,PE151537,24.70,0.00,New invoice due to preston charging incorrect vat on theatre comp slips x 3000,Advertising - General,
Wyre Council,http://opendatacommunities.org/doc/district-council/wyre,29/09/2023,People and Places,Cultural and Related Services,132A,Preston City Council,11/09/2023,PE152491,8.33,0.00,New invoice due to incorrect vat on original invoice - Evelyn Glennie posters job no 544,Advertising - General,
Wyre Council,http://opendatacommunities.org/doc/district-council/wyre,29/09/2023,People and Places,Cultural and Related Services,132A,Preston City Council,04/09/2023,PE152598,148.80,0.00,Food Festival 2330 A4 full colour 1pp printed posters2000 A5 full colour 2pp leaflets1 A2 poster for Civic Centre Notice Board 2 Esplande Notice Boards 1000 x 1400mm on 200mic ply prop``4 bus stop posters - 1200x1800mm full colour 1pp printed,Advertising - General,
Wyre Council,http://opendatacommunities.org/doc/district-council/wyre,29/09/2023,People and Places,Cultural and Related Services,132A,Preston City Council,04/09/2023,PE152598,97.50,0.00,Food Festival 2330 A4 full colour 1pp printed posters2000 A5 full colour 2pp leaflets1 A2 poster for Civic Centre Notice Board 2 Esplande Notice Boards 1000 x 1400mm on 200mic ply prop``4 bus stop posters - 1200x1800mm full colour 1pp printed,Advertising - General,
Wyre Council,http://opendatacommunities.org/doc/district-council/wyre,29/09/2023,Resources,Cultural and Related Services,132A,Preston City Council,11/09/2023,PE151536,8.33,0.00,New invoice showing correct Vat for Evelyn Glennie Posters x 100,Advertising - General,
Wyre Council,http://opendatacommunities.org/doc/district-council/wyre,29/09/2023,Resources,Cultural and Related Services,132A,Preston City Council,11/09/2023,RS152493,8.33,0.00,New invoice due to incorrect vat on original invoice - Evelyn Glennie Poster job no 166,Advertising - General,
Wyre Council,http://opendatacommunities.org/doc/district-council/wyre,29/09/2023,Resources,Cultural and Related Services,132A,Preston City Council,11/09/2023,RS152492,8.33,0.00,new invoice due to incorrect vat on original invoice - Ill abilities oposter job no 0329,Advertising - General,
Wyre Council,http://opendatacommunities.org/doc/district-council/wyre,29/09/2023,Resources,Planning and Development Servs,132C,Daisy Communications LTD,06/09/2023,RS151775,50.70,0.00,Calls and Service Charges to 31/07/23,Advertising - General,
Wyre Council,http://opendatacommunities.org/doc/district-council/wyre,29/09/2023,People and Places,Planning and Development Servs,132C,Daisy Communications LTD,08/09/2023,PE152716,50.70,0.00,Service Charges 01/09/23 to 30/09/23,Advertising - General,
Wyre Council,http://opendatacommunities.org/doc/district-council/wyre,29/09/2023,Resources,Support Services,135B,C I E H,04/09/2023,RS152577,800.00,0.00,Commercial Safety Officer Advert,Advertising - Recruitment,
Wyre Council,http://opendatacommunities.org/doc/district-council/wyre,29/09/2023,People and Places,Planning and Development Servs,132C,National World Publishing Ltd,27/09/2023,PE153266,832.14,0.00,Garstang Courier and Blackpool Gazette Press Notice 16th August 2023,Advertising - Statutory Notices,
Wyre Council,http://opendatacommunities.org/doc/district-council/wyre,29/09/2023,People and Places,Planning and Development Servs,132C,National World Publishing Ltd,27/09/2023,PE153265,166.32,0.00,Fleetwood Weekly News 16th August 2023,Advertising - Statutory Notices,
Wyre Council,http://opendatacommunities.org/doc/district-council/wyre,29/09/2023,People and Places,Planning and Development Servs,132C,National World Publishing Ltd,27/09/2023,PE153268,416.07,0.00,Garstang Courier and Blackpool Gazette 30th August 2023,Advertising - Statutory Notices,
Wyre Council,http://opendatacommunities.org/doc/district-council/wyre,29/09/2023,People and Places,Planning and Development Servs,132C,National World Publishing Ltd,27/09/2023,PE153267,190.08,0.00,Fleetwood Weekly News 30th August 2023,Advertising - Statutory Notices,
Wyre Council,http://opendatacommunities.org/doc/district-council/wyre,29/09/2023,Resources,Housing General Fund,134A,RHEA PROJECTS LTD,21/09/2023,RS153038,5491.20,0.00,payment of invoice RP-1926 affordable warmth,Affordable Warmth 2017/18,
Wyre Council,http://opendatacommunities.org/doc/district-council/wyre,29/09/2023,Resources,Housing General Fund,134A,RHEA PROJECTS LTD,21/09/2023,RS153037,1602.64,0.00,Payment of invoice NO- RP-1925 Affordable warmth,Affordable Warmth 2017/18,
Wyre Council,http://opendatacommunities.org/doc/district-council/wyre,29/09/2023,Resources,Housing General Fund,134A,RHEA PROJECTS LTD,29/09/2023,RS153278,7455.00,0.00,payment of invoice RP=1929 affordable warmth,Affordable Warmth 2017/18,
Wyre Council,http://opendatacommunities.org/doc/district-council/wyre,29/09/2023,Resources,Housing General Fund,134A,Nick Harper,20/09/2023,RS152869,600.00,0.00,Works carried out for affordable warmth - labour,Affordable Warmth 2017/18,
Wyre Council,http://opendatacommunities.org/doc/district-council/wyre,29/09/2023,Resources,Housing General Fund,134A,Nick Harper,20/09/2023,RS152869,340.00,0.00,Works carried out for affordable warmth  -materials,Affordable Warmth 2017/18,
Wyre Council,http://opendatacommunities.org/doc/district-council/wyre,29/09/2023,Resources,Housing General Fund,134A,Vivid Resourcing Ltd,01/09/2023,RS152578,5504.86,0.00,Invoice 118241,Agency Staff,
Wyre Council,http://opendatacommunities.org/doc/district-council/wyre,29/09/2023,Resources,Support Services,135B,G2V Recruitment Group Ltd T/A G2 Recruitment Solu,28/09/2023,RS153280,1667.10,0.00,Payment of invoice No - SLG2R0125484 -  period end 17/09/2023,Agency Staff,
Wyre Council,http://opendatacommunities.org/doc/district-council/wyre,29/09/2023,Resources,Support Services,135B,G2V Recruitment Group Ltd T/A G2 Recruitment Solu,28/09/2023,RS153279,1650.00,0.00,Payment of invocie No - SLIG2R0125144 Period End 10/09/2023,Agency Staff,
Wyre Council,http://opendatacommunities.org/doc/district-council/wyre,29/09/2023,Resources,Housing General Fund,134A,G2V Recruitment Group Ltd T/A G2 Recruitment Solu,01/09/2023,RS151812,1663.05,0.00,Agency wage  07/08/23,Agency Staff,
Wyre Council,http://opendatacommunities.org/doc/district-council/wyre,29/09/2023,Resources,Housing General Fund,134A,G2V Recruitment Group Ltd T/A G2 Recruitment Solu,01/09/2023,RS151692,1674.05,0.00,Agency wage 21/08/23,Agency Staff,
Wyre Council,http://opendatacommunities.org/doc/district-council/wyre,29/09/2023,People and Places,Support Services,135B,G2V Recruitment Group Ltd T/A G2 Recruitment Solu,05/09/2023,PE152235,1656.30,0.00,Payment of invoice 127369 Period End 13/08/2023,Agency Staff,
Wyre Council,http://opendatacommunities.org/doc/district-council/wyre,29/09/2023,People and Places,Support Services,135B,G2V Recruitment Group Ltd T/A G2 Recruitment Solu,28/09/2023,PE152412,1664.40,0.00,Payment of invoice NO 127748 - period End 20/08/2023,Agency Staff,
Wyre Council,http://opendatacommunities.org/doc/district-council/wyre,29/09/2023,Resources,Support Services,135B,Park Avenue Recruitment Ltd,01/09/2023,RS152451,2141.20,0.00,Appointment of an interim Estates Surveyor,Agency Staff,
Wyre Council,http://opendatacommunities.org/doc/district-council/wyre,29/09/2023,Resources,Support Services,135B,Park Avenue Recruitment Ltd,11/09/2023,RS152455,1932.20,0.00,Appointment of an interim Estates Surveyor,Agency Staff,
Wyre Council,http://opendatacommunities.org/doc/district-council/wyre,29/09/2023,Resources,Support Services,135B,Michael Page International Recruitment Limited,05/09/2023,RS151939,228.35,0.00,Building Control Manager - staffing and expense cost,Agency Staff,
Wyre Council,http://opendatacommunities.org/doc/district-council/wyre,29/09/2023,Resources,Support Services,135B,Michael Page International Recruitment Limited,26/09/2023,RS152873,220.83,0.00,Building Control Manager - staffing and expense cost,Agency Staff,
Wyre Council,http://opendatacommunities.org/doc/district-council/wyre,29/09/2023,Resources,Support Services,135B,Michael Page International Recruitment Limited,04/09/2023,RS152595,891.48,0.00,Building Control Manager - staffing and expense cost,Agency Staff,
Wyre Council,http://opendatacommunities.org/doc/district-council/wyre,29/09/2023,Resources,Support Services,135B,Lancashire County Council,14/09/2023,RS152903,1832.48,0.00,20.01.2023 INS320401 Poulton-le-Fylde Civic Centre - Fire Alarm  Service,Alarm Systems and Security - Annual,
Wyre Council,http://opendatacommunities.org/doc/district-council/wyre,29/09/2023,Resources,Cultural and Related Services,132A,Lancashire County Council,14/09/2023,RS152903,32.47,0.00,07.02.2023 INS323055 Thornton Cleveleys Marsh Mill - Alarm  Monitoring,Alarm Systems and Security - Annual,
Wyre Council,http://opendatacommunities.org/doc/district-council/wyre,29/09/2023,Resources,Cultural and Related Services,132A,Lancashire County Council,14/09/2023,RS152903,41.54,0.00,07.02.2023 INS323218 Thornton Cleveleys Marsh Mill - Alarm Monitoring,Alarm Systems and Security - Annual,
Wyre Council,http://opendatacommunities.org/doc/district-council/wyre,29/09/2023,Resources,Cultural and Related Services,132A,Lancashire County Council,14/09/2023,RS152903,159.22,0.00,08.11.2022 INS310778 Thornton Cleveleys Marsh Mill - Fire Alarm  Service,Alarm Systems and Security - Annual,
Wyre Council,http://opendatacommunities.org/doc/district-council/wyre,29/09/2023,Resources,Cultural and Related Services,132A,Lancashire County Council,14/09/2023,RS152903,100.41,0.00,08.11.2022 INS310779 Thornton Cleveleys Marsh Mill - Intruder Alarm  Service,Alarm Systems and Security - Annual,
Wyre Council,http://opendatacommunities.org/doc/district-council/wyre,29/09/2023,Resources,Cultural and Related Services,132A,Lancashire County Council,14/09/2023,RS152903,57.77,0.00,08.11.2022 INS310790 Thornton Cleveleys Marsh Mill - Emergency Lightning,Alarm Systems and Security - Annual,
Wyre Council,http://opendatacommunities.org/doc/district-council/wyre,29/09/2023,Resources,Cultural and Related Services,132A,Lancashire County Council,14/09/2023,RS152903,100.21,0.00,17.11.2022 INS319283 Thornton Cleveleys Marsh Mill - Alarm Monitoring,Alarm Systems and Security - Annual,
Wyre Council,http://opendatacommunities.org/doc/district-council/wyre,29/09/2023,Resources,Cultural and Related Services,132A,Lancashire County Council,14/09/2023,RS152903,107.53,0.00,14.12.2022 INS321501 Thornton Cleveleys Marsh Mill - Replacement Comms -  NO WORKSHEET,Alarm Systems and Security - Annual,
Wyre Council,http://opendatacommunities.org/doc/district-council/wyre,29/09/2023,Resources,Cultural and Related Services,132A,Lancashire County Council,14/09/2023,RS152903,384.89,0.00,07.11.2022 INS312702 Fleetwood Marine Hall - Emergency Lighting,Alarm Systems and Security - Annual,
Wyre Council,http://opendatacommunities.org/doc/district-council/wyre,29/09/2023,Resources,Cultural and Related Services,132A,Lancashire County Council,14/09/2023,RS152903,223.58,0.00,07.11.2022 INS312703 Fleetwood Marine Hall - Fire Alarm,Alarm Systems and Security - Annual,
Wyre Council,http://opendatacommunities.org/doc/district-council/wyre,29/09/2023,Resources,Planning and Development Servs,132C,Lancashire County Council,14/09/2023,RS152903,340.34,0.00,16.01.2023 INS313428 Fleetwood Copse Road Depot - Emergency Lightning,Alarm Systems and Security - Annual,
Wyre Council,http://opendatacommunities.org/doc/district-council/wyre,29/09/2023,Resources,Planning and Development Servs,132C,Lancashire County Council,14/09/2023,RS152903,192.03,0.00,16.01.2023 INS313514 Fleetwood Copse Road Depot - Fire Alarm,Alarm Systems and Security - Annual,
Wyre Council,http://opendatacommunities.org/doc/district-council/wyre,29/09/2023,Resources,Planning and Development Servs,132C,Lancashire County Council,14/09/2023,RS152903,46.82,0.00,16.01.2023 INS313515 Fleetwood Copse Road Depot - Security Alarm,Alarm Systems and Security - Annual,
Wyre Council,http://opendatacommunities.org/doc/district-council/wyre,29/09/2023,Resources,Planning and Development Servs,132C,Lancashire County Council,14/09/2023,RS152903,26.69,0.00,16.01.2023 INS313516 Fleetwood Copse Road Depot - Disabled WC Alarm,Alarm Systems and Security - Annual,
Wyre Council,http://opendatacommunities.org/doc/district-council/wyre,29/09/2023,Resources,Support Services,135B,Daisy Communications LTD,06/09/2023,RS151775,13.87,0.00,Calls and Service Charges to 31/07/23,Alarm Systems and Security - Annual,
Wyre Council,http://opendatacommunities.org/doc/district-council/wyre,29/09/2023,People and Places,Support Services,135B,Daisy Communications LTD,08/09/2023,PE152716,13.87,0.00,Service Charges 01/09/23 to 30/09/23,Alarm Systems and Security - Annual,
Wyre Council,http://opendatacommunities.org/doc/district-council/wyre,29/09/2023,Resources,Cultural and Related Services,132A,Preston City Council,11/09/2023,RS151539,58.34,0.00,"Supplier charged incorrect vat on original invoice, credit note sent and new invoice issued for Rossall Point and WECP postcards 2 x 1000",Amenity and Information Signs,
Wyre Council,http://opendatacommunities.org/doc/district-council/wyre,29/09/2023,Finance,Support Services,135B,,21/09/2023,WPST00119258,2723.00,0.00,aug 23 Total Apprenticeship Levy,Apprenticeship Levy,
Wyre Council,http://opendatacommunities.org/doc/district-council/wyre,29/09/2023,Resources,Corporate and Democratic Core,131A,PR Chauffeuring Services,19/09/2023,RS153026,693.00,0.00,Mayoral Chauffeuring Service - August 2023 journeys,Attendant Chauffeur Service,
Wyre Council,http://opendatacommunities.org/doc/district-council/wyre,29/09/2023,Finance,Corporate and Democratic Core,131A,NATWEST BANK,04/09/2023,WPST00117567,835.36,0.00,31/08/202304AUG GRP 99795000,Bank Charges,
Wyre Council,http://opendatacommunities.org/doc/district-council/wyre,29/09/2023,Finance,Corporate and Democratic Core,131A,NATWEST BANK,21/09/2023,WPST00119314,1582.01,0.00,19/09/23 Worldpay 271388554,Bank Charges,
Wyre Council,http://opendatacommunities.org/doc/district-council/wyre,29/09/2023,Finance,Corporate and Democratic Core,131A,NATWEST BANK,21/09/2023,WPST00119316,1039.75,0.00,19/09/23 Worldpay 271531907,Bank Charges,
Wyre Council,http://opendatacommunities.org/doc/district-council/wyre,29/09/2023,People and Places,Cultural and Related Services,132A,MC & MA Stewart (Haulage) LTD,20/09/2023,PE153042,1230.37,0.00,"Supply 40 tonnes of Grade 1 Top soil 20/30 tonne loads @ 30.50 per tonne Delivery to Roundway, FleetwoodTo meet with Roger on site before drop offContact: Roger Brocklebank on 07951632177Ass soon as possible please",Barrier Security,
Wyre Council,http://opendatacommunities.org/doc/district-council/wyre,29/09/2023,People and Places,Cultural and Related Services,132A,MC & MA Stewart (Haulage) LTD,20/09/2023,PE153043,1220.00,0.00,"Supply 40 tonnes of Grade 1 top soil, 20/30 tonne loads @ 30.50 per tonneDelivery direct to Roundway, Fleetwood for Monday 21st August 2023 in the morning Please contact Bob Greaves 07967116043Or Ken White 07971471910",Barrier Security,
Wyre Council,http://opendatacommunities.org/doc/district-council/wyre,29/09/2023,People and Places,Cultural and Related Services,132A,MC & MA Stewart (Haulage) LTD,20/09/2023,PE153041,610.00,0.00,"Supply and deliver 20 tonne of Grade 1 soil 30.50 per tonne based on 20 / 30 tonne loadDelivery to Wyre Council, Copse Road Depot, Copse Road, Fleetwood, FY7 6RP",Barrier Security,
Wyre Council,http://opendatacommunities.org/doc/district-council/wyre,29/09/2023,People and Places,Environmental Services,132B,Nicholaus Cardwell Building & Maintenance,18/09/2023,PE151880,740.00,0.00,"Rubbish removed, by default, from the garden of:  18 Birkbeck Place Fleetwood FY7 8EZ",Boarding Up Premises/House Clearance,
Wyre Council,http://opendatacommunities.org/doc/district-council/wyre,29/09/2023,People and Places,Environmental Services,132B,Nicholaus Cardwell Building & Maintenance,18/09/2023,PE151882,720.00,0.00,"Rubbish removed, by default, from the garden of:  47 Warrenhurst Road Fleetwood FY7 6TP",Boarding Up Premises/House Clearance,
Wyre Council,http://opendatacommunities.org/doc/district-council/wyre,29/09/2023,People and Places,Planning and Development Servs,132C,Preston City Council,18/09/2023,PE152928,57.50,0.00,Wyred Up printing,Business Workshop/Advice/Surgery Events,
Wyre Council,http://opendatacommunities.org/doc/district-council/wyre,29/09/2023,People and Places,Environmental Services,132B,N Power LTD,13/09/2023,PE152652,13.67,0.00,Town Centre CCTV Unmetered Electricity Supply,CCTV Running Costs,
Wyre Council,http://opendatacommunities.org/doc/district-council/wyre,29/09/2023,People and Places,Environmental Services,132B,N Power LTD,13/09/2023,PE152652,81.97,0.00,Town Centre CCTV Unmetered Electricity Supply,CCTV Running Costs,
Wyre Council,http://opendatacommunities.org/doc/district-council/wyre,29/09/2023,People and Places,Environmental Services,132B,N Power LTD,13/09/2023,PE152652,4.90,0.00,Town Centre CCTV Unmetered Electricity Supply,CCTV Running Costs,
Wyre Council,http://opendatacommunities.org/doc/district-council/wyre,29/09/2023,People and Places,Environmental Services,132B,N Power LTD,13/09/2023,PE152652,118.08,0.00,Town Centre CCTV Unmetered Electricity Supply,CCTV Running Costs,
Wyre Council,http://opendatacommunities.org/doc/district-council/wyre,29/09/2023,People and Places,Planning and Development Servs,132C,Key Engineering & Hygiene Supplies LTD,23/09/2023,PE153115,15.24,0.00,RED 200GM EXEL PY MOP HEAD ( PUSH FIT),Cleaning Materials,
Wyre Council,http://opendatacommunities.org/doc/district-council/wyre,29/09/2023,People and Places,Cultural and Related Services,132A,Key Engineering & Hygiene Supplies LTD,12/09/2023,PE152801,1.44,0.00,BLUE STRIP DISH CLOTH EA,Cleaning Materials,
Wyre Council,http://opendatacommunities.org/doc/district-council/wyre,29/09/2023,People and Places,Cultural and Related Services,132A,Key Engineering & Hygiene Supplies LTD,12/09/2023,PE152801,1.44,0.00,GREEN STRIPE DISH CLOTH EA,Cleaning Materials,
Wyre Council,http://opendatacommunities.org/doc/district-council/wyre,29/09/2023,People and Places,Cultural and Related Services,132A,Key Engineering & Hygiene Supplies LTD,12/09/2023,PE152801,1.44,0.00,RED STRIPE DISH CLOTH EA,Cleaning Materials,
Wyre Council,http://opendatacommunities.org/doc/district-council/wyre,29/09/2023,People and Places,Cultural and Related Services,132A,Key Engineering & Hygiene Supplies LTD,12/09/2023,PE152801,1.44,0.00,YELLOW STRIPE DISH CLOTH EA,Cleaning Materials,
Wyre Council,http://opendatacommunities.org/doc/district-council/wyre,29/09/2023,People and Places,Cultural and Related Services,132A,Key Engineering & Hygiene Supplies LTD,12/09/2023,PE152801,4.47,0.00,GENERAL BLEACH 5 LTR,Cleaning Materials,
Wyre Council,http://opendatacommunities.org/doc/district-council/wyre,29/09/2023,People and Places,Cultural and Related Services,132A,Key Engineering & Hygiene Supplies LTD,12/09/2023,PE152801,8.16,0.00,EVANS CYCLONE EXTRA THICK BLEACH 750ML,Cleaning Materials,
Wyre Council,http://opendatacommunities.org/doc/district-council/wyre,29/09/2023,People and Places,Cultural and Related Services,132A,Key Engineering & Hygiene Supplies LTD,12/09/2023,PE152801,17.75,0.00,GREEN 1 PLY INTER-FOLD HAND TOWEL 250L X 190W 3600 SHEETS,Cleaning Materials,
Wyre Council,http://opendatacommunities.org/doc/district-council/wyre,29/09/2023,Resources,Support Services,135B,Key Engineering & Hygiene Supplies LTD,20/09/2023,RS153015,32.64,0.00,THICKENED BLEACH 750ML,Cleaning Materials,
Wyre Council,http://opendatacommunities.org/doc/district-council/wyre,29/09/2023,Resources,Support Services,135B,Key Engineering & Hygiene Supplies LTD,20/09/2023,RS153015,9.18,0.00,EAUFRESH NON ACIDIC POT POURRI TOILET CLEANER 1 LTR,Cleaning Materials,
Wyre Council,http://opendatacommunities.org/doc/district-council/wyre,29/09/2023,Resources,Support Services,135B,Key Engineering & Hygiene Supplies LTD,20/09/2023,RS153015,103.60,0.00,WHITE 2PLY LUXURY TOILET ROLL 320 40 PER PACK,Cleaning Materials,
Wyre Council,http://opendatacommunities.org/doc/district-council/wyre,29/09/2023,Resources,Support Services,135B,Key Engineering & Hygiene Supplies LTD,20/09/2023,RS153015,19.32,0.00,MEDIUM BLACK REFUSE SACK 18X29X34 100G,Cleaning Materials,
Wyre Council,http://opendatacommunities.org/doc/district-council/wyre,29/09/2023,Resources,Support Services,135B,Key Engineering & Hygiene Supplies LTD,20/09/2023,RS153015,12.30,0.00,CLEAR WINDOW CLEANER 750ML,Cleaning Materials,
Wyre Council,http://opendatacommunities.org/doc/district-council/wyre,29/09/2023,Resources,Support Services,135B,Key Engineering & Hygiene Supplies LTD,20/09/2023,RS153015,20.72,0.00,METAL POLISH BRASSO 175ML,Cleaning Materials,
Wyre Council,http://opendatacommunities.org/doc/district-council/wyre,29/09/2023,Resources,Support Services,135B,Key Engineering & Hygiene Supplies LTD,20/09/2023,RS153015,65.87,0.00,AZURE FOAM WASH SOAP 1 LITRE CARTRIDGE,Cleaning Materials,
Wyre Council,http://opendatacommunities.org/doc/district-council/wyre,29/09/2023,Resources,Support Services,135B,Key Engineering & Hygiene Supplies LTD,20/09/2023,RS153015,9.72,0.00,BLUE NITRILE POWDER FREE GLOVES MEDIUM,Cleaning Materials,
Wyre Council,http://opendatacommunities.org/doc/district-council/wyre,29/09/2023,Resources,Support Services,135B,Key Engineering & Hygiene Supplies LTD,20/09/2023,RS153015,8.24,0.00,ENSURE ALCOHOL BASED SANITISER 5 LITRE,Cleaning Materials,
Wyre Council,http://opendatacommunities.org/doc/district-council/wyre,29/09/2023,Resources,Support Services,135B,Key Engineering & Hygiene Supplies LTD,20/09/2023,RS153015,14.34,0.00,LIQUID SPRAY POLISH 750ML TRIGGER SPRAY,Cleaning Materials,
Wyre Council,http://opendatacommunities.org/doc/district-council/wyre,29/09/2023,Resources,Support Services,135B,Key Engineering & Hygiene Supplies LTD,20/09/2023,RS153015,6.40,0.00,SAFE ZONE PLUS  5 LITRE,Cleaning Materials,
Wyre Council,http://opendatacommunities.org/doc/district-council/wyre,29/09/2023,Resources,Support Services,135B,Key Engineering & Hygiene Supplies LTD,20/09/2023,RS153015,24.58,0.00,BLUE CENTRE FEED ROLLS 150MX175MM (PACK OF 6),Cleaning Materials,
Wyre Council,http://opendatacommunities.org/doc/district-council/wyre,29/09/2023,Resources,Support Services,135B,Key Engineering & Hygiene Supplies LTD,20/09/2023,RS153015,196.40,0.00,BLUE INTERFOLD HAND TOWELS 3600 SHEETS,Cleaning Materials,
Wyre Council,http://opendatacommunities.org/doc/district-council/wyre,29/09/2023,Resources,Support Services,135B,Key Engineering & Hygiene Supplies LTD,20/09/2023,RS153015,4.86,0.00,BLUE NITRILE GLOVES EXTRA LARGE,Cleaning Materials,
Wyre Council,http://opendatacommunities.org/doc/district-council/wyre,29/09/2023,Resources,Support Services,135B,Key Engineering & Hygiene Supplies LTD,20/09/2023,RS153015,5.22,0.00,KIND DETERGENT 5 LITRE,Cleaning Materials,
Wyre Council,http://opendatacommunities.org/doc/district-council/wyre,29/09/2023,Resources,Support Services,135B,Key Engineering & Hygiene Supplies LTD,20/09/2023,RS153015,7.52,0.00,CITRUS FOAM LEMON SOAP 5 LITRE,Cleaning Materials,
Wyre Council,http://opendatacommunities.org/doc/district-council/wyre,29/09/2023,Resources,Support Services,135B,Key Engineering & Hygiene Supplies LTD,20/09/2023,RS153015,8.24,0.00,FLORATILE GENERAL PURPOSE  CLEANER 5 LTR,Cleaning Materials,
Wyre Council,http://opendatacommunities.org/doc/district-council/wyre,29/09/2023,Resources,Support Services,135B,Key Engineering & Hygiene Supplies LTD,25/09/2023,RS153127,20.72,0.00,METAL POLISH BRASSO 175ML,Cleaning Materials,
Wyre Council,http://opendatacommunities.org/doc/district-council/wyre,29/09/2023,Resources,Support Services,135B,Key Engineering & Hygiene Supplies LTD,18/09/2023,RS152409,5.22,0.00,WASHING UP LIQUID 5 LTR,Cleaning Materials,
Wyre Council,http://opendatacommunities.org/doc/district-council/wyre,29/09/2023,Resources,Support Services,135B,Key Engineering & Hygiene Supplies LTD,18/09/2023,RS152409,124.32,0.00,WHITE 2PLY LUXURY TOILET ROLL 320 40 PER PACK,Cleaning Materials,
Wyre Council,http://opendatacommunities.org/doc/district-council/wyre,29/09/2023,Resources,Support Services,135B,Key Engineering & Hygiene Supplies LTD,18/09/2023,RS152409,220.95,0.00,1 PLY BLUE INTERFOLD 3600 SHEETS,Cleaning Materials,
Wyre Council,http://opendatacommunities.org/doc/district-council/wyre,29/09/2023,Resources,Support Services,135B,Key Engineering & Hygiene Supplies LTD,18/09/2023,RS152409,9.66,0.00,MEDIUM BLACK REFUSE SACK 18X29X34 100G,Cleaning Materials,
Wyre Council,http://opendatacommunities.org/doc/district-council/wyre,29/09/2023,Resources,Support Services,135B,Key Engineering & Hygiene Supplies LTD,18/09/2023,RS152409,7.52,0.00,EVANS FOAMING LEMON SOAP 5L,Cleaning Materials,
Wyre Council,http://opendatacommunities.org/doc/district-council/wyre,29/09/2023,Resources,Support Services,135B,Key Engineering & Hygiene Supplies LTD,18/09/2023,RS152409,8.24,0.00,FLORATILE GENERAL PURPOSE  CLEANER 5 LTR,Cleaning Materials,
Wyre Council,http://opendatacommunities.org/doc/district-council/wyre,29/09/2023,Resources,Support Services,135B,Key Engineering & Hygiene Supplies LTD,18/09/2023,RS152409,9.57,0.00,KEYPINE GENERAL DISINFECTANT 5LTR,Cleaning Materials,
Wyre Council,http://opendatacommunities.org/doc/district-council/wyre,29/09/2023,Resources,Support Services,135B,Key Engineering & Hygiene Supplies LTD,18/09/2023,RS152409,6.16,0.00,BLUE NITRILE POWDER FREE GLOVES LARGE,Cleaning Materials,
Wyre Council,http://opendatacommunities.org/doc/district-council/wyre,29/09/2023,Resources,Support Services,135B,Key Engineering & Hygiene Supplies LTD,18/09/2023,RS152409,32.64,0.00,THICKENED BLEACH 750ML,Cleaning Materials,
Wyre Council,http://opendatacommunities.org/doc/district-council/wyre,29/09/2023,Resources,Support Services,135B,Key Engineering & Hygiene Supplies LTD,18/09/2023,RS152409,18.36,0.00,EAUFRESH NON ACIDIC POT POURRI TOILET CLEANER 1 LTR,Cleaning Materials,
Wyre Council,http://opendatacommunities.org/doc/district-council/wyre,29/09/2023,People and Places,Planning and Development Servs,132C,Key Engineering & Hygiene Supplies LTD,23/09/2023,PE153115,4.32,0.00,RED STRIPE DISHCLOTH,Cleaning Materials,
Wyre Council,http://opendatacommunities.org/doc/district-council/wyre,29/09/2023,People and Places,Planning and Development Servs,132C,Key Engineering & Hygiene Supplies LTD,25/09/2023,PE153126,404.10,0.00,2PLY WHITE JUMBO TOILET ROLL,Cleaning Materials,
Wyre Council,http://opendatacommunities.org/doc/district-council/wyre,29/09/2023,People and Places,Cultural and Related Services,132A,Lyreco UK LTD,04/09/2023,PE152605,211.04,0.00,3349389 - Tork white toilet tissue,Cleaning Materials,
Wyre Council,http://opendatacommunities.org/doc/district-council/wyre,29/09/2023,Resources,Cultural and Related Services,132A,Preston City Council,22/09/2023,RS153092,16.98,0.00,100 x Fun Arts Knott End A5 1pp 100 x Craft and Laughs A5 1pp 4 x Craft and Laughs A4 1pp,Community Arts,
Wyre Council,http://opendatacommunities.org/doc/district-council/wyre,29/09/2023,People and Places,Environmental Services,132B,Blackpool Council,04/09/2023,PE152524,120.00,0.00,15/8/23 � Remove ANPR unit from Garstang and return to Poulton,Community Development Initiatives,
Wyre Council,http://opendatacommunities.org/doc/district-council/wyre,29/09/2023,Resources,Environmental Services,132B,Preston City Council,11/09/2023,RS151565,244.58,0.00,New invoice due to incorrect vat on original invoice - Bin stickers job no 01630,Community Development Initiatives,
Wyre Council,http://opendatacommunities.org/doc/district-council/wyre,29/09/2023,Resources,Environmental Services,132B,Preston City Council,11/09/2023,RS151571,168.75,0.00,new invoice due to incorrect vat on original invoice for recipe cards,Community Development Initiatives,
Wyre Council,http://opendatacommunities.org/doc/district-council/wyre,29/09/2023,Resources,Support Services,135B,Ebuyer (UK) Ltd,25/09/2023,RS153073,11072.20,0.00,"HP ProBook 450 G9, Core i5, 8GB DDR4, 256GB SSD",Comp Hardware Purchases,
Wyre Council,http://opendatacommunities.org/doc/district-council/wyre,29/09/2023,Resources,Support Services,135B,Ebuyer (UK) Ltd,11/09/2023,RS152463,88.00,0.00,Slim Folio for iPad (10th gen) - GREY - UK.,Comp Hardware Purchases,
Wyre Council,http://opendatacommunities.org/doc/district-council/wyre,29/09/2023,People and Places,Support Services,135B,Ebuyer (UK) Ltd,18/09/2023,PE152341,291.65,0.00,1871088 - Asus PN64 Core i3 1220P - Ultra-Compact Mini Barebone PC,Comp Hardware Purchases,
Wyre Council,http://opendatacommunities.org/doc/district-council/wyre,29/09/2023,People and Places,Support Services,135B,Ebuyer (UK) Ltd,22/09/2023,PE152341,16.00,0.00,1539952 - Kingston 250GB NV2 PCIe 4.0 NVMe SSD,Comp Hardware Purchases,
Wyre Council,http://opendatacommunities.org/doc/district-council/wyre,29/09/2023,People and Places,Support Services,135B,Ebuyer (UK) Ltd,22/09/2023,PE152341,31.50,0.00,1419479 - Crucial 16GB (2x8GB) 4800MHz CL40 DDR5 SODIMM Memory,Comp Hardware Purchases,
Wyre Council,http://opendatacommunities.org/doc/district-council/wyre,29/09/2023,People and Places,Support Services,135B,Ebuyer (UK) Ltd,22/09/2023,PE152341,16.00,0.00,1539952 - Kingston 250GB NV2 PCIe 4.0 NVMe SSD,Comp Hardware Purchases,
Wyre Council,http://opendatacommunities.org/doc/district-council/wyre,29/09/2023,People and Places,Support Services,135B,Ebuyer (UK) Ltd,18/09/2023,PE152341,295.65,0.00,1871088 - Asus PN64 Core i3 1220P - Ultra-Compact Mini Barebone PC,Comp Hardware Purchases,
Wyre Council,http://opendatacommunities.org/doc/district-council/wyre,29/09/2023,People and Places,Support Services,135B,Ebuyer (UK) Ltd,11/09/2023,PE152453,959.00,0.00,Fujitsu Fi-8190 Scanner,Comp Hardware Purchases,
Wyre Council,http://opendatacommunities.org/doc/district-council/wyre,29/09/2023,Resources,Support Services,135B,Ebuyer (UK) Ltd,07/09/2023,RS152457,24.00,0.00,882874 - 10M LC-LC 50/125 MMDOM4 FIB CAB AQUA,Comp Hardware Purchases,
Wyre Council,http://opendatacommunities.org/doc/district-council/wyre,29/09/2023,Resources,Support Services,135B,Ebuyer (UK) Ltd,07/09/2023,RS152457,4.00,0.00,Shipping,Comp Hardware Purchases,
Wyre Council,http://opendatacommunities.org/doc/district-council/wyre,29/09/2023,Resources,Support Services,135B,CCS MEDIA LTD,21/09/2023,RS153065,125.42,0.00,Yealink T42U SIP-IP Phone,Comp Hardware Purchases,
Wyre Council,http://opendatacommunities.org/doc/district-council/wyre,29/09/2023,Resources,Support Services,135B,CCS MEDIA LTD,21/09/2023,RS153065,134.46,0.00,Yealink T43U SIP-IP Phone,Comp Hardware Purchases,
Wyre Council,http://opendatacommunities.org/doc/district-council/wyre,29/09/2023,Resources,Support Services,135B,CCS MEDIA LTD,21/09/2023,RS153033,92.42,0.00,Yealink T33G SIP-IP Phone,Comp Hardware Purchases,
Wyre Council,http://opendatacommunities.org/doc/district-council/wyre,29/09/2023,Resources,Support Services,135B,CCS MEDIA LTD,18/09/2023,RS152992,131.00,0.00,EV4LCLC15 - CABLENET 15M OM4 50/125 LC-LC DUPLEX ERIKA VIOLETCABLENET 15M OM4 50/125 LC-LC DUPLEX,Comp Hardware Purchases,
Wyre Council,http://opendatacommunities.org/doc/district-council/wyre,29/09/2023,Resources,Support Services,135B,CCS MEDIA LTD,15/09/2023,RS152933,1527.85,0.00,"540-BBDWDELL-540-BBDW DELL  network card Internal Fiber 10000 Mbit/sPCI Express, 10 GigE",Comp Hardware Purchases,
Wyre Council,http://opendatacommunities.org/doc/district-council/wyre,29/09/2023,Resources,Support Services,135B,CCS MEDIA LTD,15/09/2023,RS152971,3.97,0.00,EV4LCLC15 - Cablenet-EV4LCLC15 Cablenet 15m OM4 50/125 LC-LC Duplex Erika Violet LSOH Fibre Patch Lead15m OM4 50/125 LC-LC Duplex Erika Violet LSOH Fibre Patch Lead,Comp Hardware Purchases,
Wyre Council,http://opendatacommunities.org/doc/district-council/wyre,29/09/2023,Resources,Support Services,135B,CCS MEDIA LTD,25/09/2023,RS153114,2617.93,0.00,"6B2D3EA#ABU - HP-6B2D3EA#ABU HP Pro 400 G9 i5-12500T mini PC Intel Core i5 16 GB DDR4-SDRAM 512 GBSSD Windows 11 Pro BlackPro Mini 400 G9 Desktop PC,Windows 11 Pro (preinstalled with Windows 10 Pro Downgrade),IntelCore i5,16GB RAM,512GB SSD",Comp Hardware Purchases,
Wyre Council,http://opendatacommunities.org/doc/district-council/wyre,29/09/2023,Resources,Support Services,135B,CCS MEDIA LTD,25/09/2023,RS153121,373.99,0.00,"6B2D3EA#ABU - HP-6B2D3EA#ABU HP Pro 400 G9 i5-12500T mini PC Intel Core i5 16 GB DDR4-SDRAM 512 GBSSD Windows 11 Pro BlackPro Mini 400 G9 Desktop PC,Windows 11 Pro (preinstalled with Windows 10 Pro Downgrade),IntelCore i5,16GB RAM,512GB SSD",Comp Hardware Purchases,
Wyre Council,http://opendatacommunities.org/doc/district-council/wyre,29/09/2023,Resources,Support Services,135B,Amazon Business,21/09/2023,RS153063,308.32,0.00,"Logitech H390 USB Headset with Noise-Cancelling Mic Black, 16 Count.",Comp Hardware Purchases,
Wyre Council,http://opendatacommunities.org/doc/district-council/wyre,29/09/2023,Resources,Support Services,135B,Amazon Business,20/09/2023,RS151269,35.98,0.00,"imuto 20000mAh Compact Portable Charger Power Bank USB C PD 20W External Battery with LED flashlight Fast Charge Battery Pack for iPhone 14 13 Pro Max, iPad, Samsung Galaxy S21, Pixel, Smart Phones.",Comp Hardware Purchases,
Wyre Council,http://opendatacommunities.org/doc/district-council/wyre,29/09/2023,Resources,Support Services,135B,Amazon Business,22/09/2023,RS153079,86.57,0.00,"MEKO Stylus Pens for Touch Screens, Tablet Pencil with Magnetic Cap, High Sensitivity & Fine Point Universal for Android/Phone/iPad Pro/Air/Samsung/and All Devices (White).",Comp Hardware Purchases,
Wyre Council,http://opendatacommunities.org/doc/district-council/wyre,29/09/2023,Resources,Support Services,135B,Amazon Business,04/09/2023,RS152421,206.00,0.00,"Logitech M90 Wired USB Mouse, 1000 DPI Optical Tracking, Ambidextrous PC / Mac / Laptop - Black, One size, (910-001793).",Comp Hardware Purchases,
Wyre Council,http://opendatacommunities.org/doc/district-council/wyre,29/09/2023,Resources,Support Services,135B,Amazon Business,11/09/2023,RS152743,1283.00,0.00,"UGREEN Revodok Pro USB C Docking Station, 11-in-1 USB C Hub Dual HDMI 4K@60Hz, Single 8K@30Hz, 10Gbps USB-C and USB-A Data Ports, 100W PD, Ethernet, SD/TF, 3.5mm Audio for XPS, ThinkPad, Surface.",Comp Hardware Purchases,
Wyre Council,http://opendatacommunities.org/doc/district-council/wyre,29/09/2023,Resources,Support Services,135B,Amazon Business,11/09/2023,RS152746,1642.24,0.00,"UGREEN Revodok Pro USB C Docking Station, 11-in-1 USB C Hub Dual HDMI 4K@60Hz, Single 8K@30Hz, 10Gbps USB-C and USB-A Data Ports, 100W PD, Ethernet, SD/TF, 3.5mm Audio for XPS, ThinkPad, Surface.",Comp Hardware Purchases,
Wyre Council,http://opendatacommunities.org/doc/district-council/wyre,29/09/2023,Resources,Support Services,135B,Amazon Business,11/09/2023,RS152745,1283.00,0.00,"UGREEN Revodok Pro USB C Docking Station, 11-in-1 USB C Hub Dual HDMI 4K@60Hz, Single 8K@30Hz, 10Gbps USB-C and USB-A Data Ports, 100W PD, Ethernet, SD/TF, 3.5mm Audio for XPS, ThinkPad, Surface.",Comp Hardware Purchases,
Wyre Council,http://opendatacommunities.org/doc/district-council/wyre,29/09/2023,Resources,Support Services,135B,Amazon Business,11/09/2023,RS152744,923.76,0.00,"UGREEN Revodok Pro USB C Docking Station, 11-in-1 USB C Hub Dual HDMI 4K@60Hz, Single 8K@30Hz, 10Gbps USB-C and USB-A Data Ports, 100W PD, Ethernet, SD/TF, 3.5mm Audio for XPS, ThinkPad, Surface.",Comp Hardware Purchases,
Wyre Council,http://opendatacommunities.org/doc/district-council/wyre,29/09/2023,Resources,Support Services,135B,Amazon Business,21/09/2023,RS153071,49.44,0.00,"Extension Lead with 4 USB Slots (3.4A, 1 Type C and 3 USB-A Ports) ,POWSAF Power Strip Extension cord with 4 way plug extension Socket and 2M Extension Cable for Home Office Travel, Black.",Comp Hardware Purchases,
Wyre Council,http://opendatacommunities.org/doc/district-council/wyre,29/09/2023,Resources,Support Services,135B,Amazon Business,12/09/2023,RS152800,398.86,0.00,SUMVISION PD 3.0 Quick Charge 3.0 100W USB C GaN Dual Port Compact Smart Charger Power Delivery Travel Charger Compatible Latest Macbook Pro iPad Samsung Nintendo (UK DESIGN UK PLUG UK TECH SUPPORT),Comp Hardware Purchases,
Wyre Council,http://opendatacommunities.org/doc/district-council/wyre,29/09/2023,Resources,Support Services,135B,Amazon Business,12/09/2023,RS152807,968.66,0.00,SUMVISION PD 3.0 Quick Charge 3.0 100W USB C GaN Dual Port Compact Smart Charger Power Delivery Travel Charger Compatible Latest Macbook Pro iPad Samsung Nintendo (UK DESIGN UK PLUG UK TECH SUPPORT),Comp Hardware Purchases,
Wyre Council,http://opendatacommunities.org/doc/district-council/wyre,29/09/2023,Resources,Support Services,135B,Amazon Business,12/09/2023,RS152806,940.17,0.00,SUMVISION PD 3.0 Quick Charge 3.0 100W USB C GaN Dual Port Compact Smart Charger Power Delivery Travel Charger Compatible Latest Macbook Pro iPad Samsung Nintendo (UK DESIGN UK PLUG UK TECH SUPPORT),Comp Hardware Purchases,
Wyre Council,http://opendatacommunities.org/doc/district-council/wyre,29/09/2023,Resources,Support Services,135B,Amazon Business,12/09/2023,RS152805,256.41,0.00,SUMVISION PD 3.0 Quick Charge 3.0 100W USB C GaN Dual Port Compact Smart Charger Power Delivery Travel Charger Compatible Latest Macbook Pro iPad Samsung Nintendo (UK DESIGN UK PLUG UK TECH SUPPORT),Comp Hardware Purchases,
Wyre Council,http://opendatacommunities.org/doc/district-council/wyre,29/09/2023,Resources,Support Services,135B,Amazon Business,12/09/2023,RS152804,85.47,0.00,SUMVISION PD 3.0 Quick Charge 3.0 100W USB C GaN Dual Port Compact Smart Charger Power Delivery Travel Charger Compatible Latest Macbook Pro iPad Samsung Nintendo (UK DESIGN UK PLUG UK TECH SUPPORT),Comp Hardware Purchases,
Wyre Council,http://opendatacommunities.org/doc/district-council/wyre,29/09/2023,Resources,Support Services,135B,Amazon Business,12/09/2023,RS152803,56.98,0.00,SUMVISION PD 3.0 Quick Charge 3.0 100W USB C GaN Dual Port Compact Smart Charger Power Delivery Travel Charger Compatible Latest Macbook Pro iPad Samsung Nintendo (UK DESIGN UK PLUG UK TECH SUPPORT),Comp Hardware Purchases,
Wyre Council,http://opendatacommunities.org/doc/district-council/wyre,29/09/2023,Resources,Support Services,135B,Amazon Business,12/09/2023,RS152802,142.45,0.00,SUMVISION PD 3.0 Quick Charge 3.0 100W USB C GaN Dual Port Compact Smart Charger Power Delivery Travel Charger Compatible Latest Macbook Pro iPad Samsung Nintendo (UK DESIGN UK PLUG UK TECH SUPPORT),Comp Hardware Purchases,
Wyre Council,http://opendatacommunities.org/doc/district-council/wyre,29/09/2023,Resources,Support Services,135B,Amazon Business,04/09/2023,RS152617,33.32,0.00,SUMVISION PD 3.0 Quick Charge 3.0 100W USB C GaN Dual Port Compact Smart Charger Power Delivery Travel Charger Compatible Latest Macbook Pro iPad Samsung Nintendo (UK DESIGN UK PLUG UK TECH SUPPORT).,Comp Hardware Purchases,
Wyre Council,http://opendatacommunities.org/doc/district-council/wyre,29/09/2023,Resources,Support Services,135B,Amazon Business,21/09/2023,RS153071,157.48,0.00,Logitech P710e Mobile Speaker.,Comp Hardware Purchases,
Wyre Council,http://opendatacommunities.org/doc/district-council/wyre,29/09/2023,Resources,Support Services,135B,NSSE LTD,20/09/2023,RS153035,1310.00,0.00,Gold 8 Contract24/7/365 emergency coverage8-hour emergency response to site1 x *Preventative Maintenance Service visit in normal working hoursTechnical updates24/7/365 technical helpline,Computer Equipment Maintenance,
Wyre Council,http://opendatacommunities.org/doc/district-council/wyre,29/09/2023,Resources,Support Services,135B,Amazon Business,04/09/2023,RS152618,199.68,0.00,Laptop Stand Desk Tablet Stand (UK COMPANY) Home Office Accessories Adjustable Laptop Stand Computer Holder.,Computer Stationery and Consumables,
Wyre Council,http://opendatacommunities.org/doc/district-council/wyre,29/09/2023,Resources,Support Services,135B,Amazon Business,04/09/2023,RS152616,76.60,0.00,"BauTangLe Laptop-Stand-Adjustable-Holder-Portable-Riser-for-Macbook-Desk, Upgraded Sturdy Laptop(10``-15.6``) Stand, for i(Mac) / Laptop/Notebook/Tablet/Smartphone.",Computer Stationery and Consumables,
Wyre Council,http://opendatacommunities.org/doc/district-council/wyre,29/09/2023,Resources,Support Services,135B,Amazon Business,04/09/2023,RS152614,274.56,0.00,Laptop Stand Desk Tablet Stand (UK COMPANY) Home Office Accessories Adjustable Laptop Stand Computer Holder.,Computer Stationery and Consumables,
Wyre Council,http://opendatacommunities.org/doc/district-council/wyre,29/09/2023,Resources,Support Services,135B,Amazon Business,04/09/2023,RS152384,4.99,0.00,"Laptop Stand, Laptop Stand Cooling Pad for Desk, Stable Laptop Stand/Riser ABS Material Laptop Stand for Tablet Computer, Large for Mac,Lenovo,10-17 Laptop.",Computer Stationery and Consumables,
Wyre Council,http://opendatacommunities.org/doc/district-council/wyre,29/09/2023,Resources,Support Services,135B,Amazon Business,04/09/2023,RS152383,9.99,0.00,"Jumkeet Laptop Stand,Foldable Portable Ventilated Desktop Laptop Holder,Universal Lightweight&Adjustable Ergonomic Tray Mount Compatible with iM(ac)/Laptop/Notebook Computer/Tablet (Black).",Computer Stationery and Consumables,
Wyre Council,http://opendatacommunities.org/doc/district-council/wyre,29/09/2023,Resources,Support Services,135B,Amazon Business,04/09/2023,RS152563,274.56,0.00,Laptop Stand Desk Tablet Stand (UK COMPANY) Home Office Accessories Adjustable Laptop Stand Computer Holder.,Computer Stationery and Consumables,
Wyre Council,http://opendatacommunities.org/doc/district-council/wyre,29/09/2023,People and Places,Cultural and Related Services,132A,Nightingale Environmental Ltd,13/09/2023,PE152868,500.00,0.00,3rd year of Knotweed treatment 2023,Conservation,
Wyre Council,http://opendatacommunities.org/doc/district-council/wyre,29/09/2023,Resources,Support Services,135B,Critiqom LTD,20/09/2023,RS153034,200.00,0.00,Aug 23 Services WBC IQPostMe - add additional users,Consultants Fees,
Wyre Council,http://opendatacommunities.org/doc/district-council/wyre,29/09/2023,Resources,Support Services,135B,PSTAX Consulting Limited,19/09/2023,RS153020,5400.00,0.00,Bank of hours system - block booking 30 hours,Consultants Fees,
Wyre Council,http://opendatacommunities.org/doc/district-council/wyre,29/09/2023,Resources,Support Services,135B,PEARSON INSIGHT LTD,19/09/2023,RS153024,2000.00,0.00,Staff Survey 2023,Consultants Fees,
Wyre Council,http://opendatacommunities.org/doc/district-council/wyre,29/09/2023,Resources,Support Services,135B,THE NETWORKING PEOPLE (TNP) LTD,05/09/2023,RS152374,1800.00,0.00,Block of 30 RMACs,Consultants Fees,
Wyre Council,http://opendatacommunities.org/doc/district-council/wyre,29/09/2023,People and Places,Planning and Development Servs,132C,Capita Property and Infrastructure Ltd,22/09/2023,PE153109,1730.16,0.00,Planning application support provided by Capita (August 2023),Consultants Fees,
Wyre Council,http://opendatacommunities.org/doc/district-council/wyre,29/09/2023,People and Places,Support Services,135B,Robert Pinkus & Co LLP,05/09/2023,PE152586,850.00,0.00,"Valuation, Poulton Youth & Community Ctr, Breck Rdm FY6 7PU",Consultants Fees,
Wyre Council,http://opendatacommunities.org/doc/district-council/wyre,29/09/2023,People and Places,"Cultural, Environ and Planning",137B,LANCASTER UNIVERSITY,27/09/2023,PE153246,15000.00,0.00,Eco-CoBS Scoping Research Report on nature-based solutions WYR024,Consultants Fees (New CCR),
Wyre Council,http://opendatacommunities.org/doc/district-council/wyre,29/09/2023,People and Places,"Cultural, Environ and Planning",137B,The Royal Venue,20/09/2023,PE153052,7500.00,0.00,"FAO Jakki SlackThe Venue North PromenadeThornton CleveleysLancashireFY5 1LW Car park mitigation measures at an agreed price of 15,000 per annum paid in 6 monthly instalments until completion of the Wyre Beach Management Scheme. Cost 15",Consultants Fees (New CCR),
Wyre Council,http://opendatacommunities.org/doc/district-council/wyre,29/09/2023,People and Places,"Cultural, Environ and Planning",137B,The Lancashire Wildlife Trust Ltd,01/09/2023,PE152556,9600.00,0.00,Annual order Our Future Coast  2023/24,Consultants Fees (New CCR),
Wyre Council,http://opendatacommunities.org/doc/district-council/wyre,29/09/2023,People and Places,"Cultural, Environ and Planning",137B,The Lancashire Wildlife Trust Ltd,27/09/2023,PE153254,621.90,0.00,Expenses  22/23FY,Consultants Fees (New CCR),
Wyre Council,http://opendatacommunities.org/doc/district-council/wyre,29/09/2023,People and Places,"Cultural, Environ and Planning",137B,Susannah Bleakley Consulting,11/09/2023,PE152796,5443.40,0.00,ECO-CoBS Project,Consultants Fees (New CCR),
Wyre Council,http://opendatacommunities.org/doc/district-council/wyre,29/09/2023,People and Places,"Cultural, Environ and Planning",137B,WSP Real Estate and Infrastructure Limited,25/09/2023,PE153112,6131.34,0.00,"Project Management Services    Annual amount 78,000  Potentially for 4 years.",Consultants Fees (New CCR),
Wyre Council,http://opendatacommunities.org/doc/district-council/wyre,29/09/2023,People and Places,Central Services to the Public,131C,ADR Mediation & Training CIC,20/09/2023,PE153030,880.00,0.00,"Mediation case management for a total of 4400, which equates for 10 cases at a cost of 440 per case utilising COMF",Contain Outbreak Management Fund,
Wyre Council,http://opendatacommunities.org/doc/district-council/wyre,29/09/2023,Resources,"Cultural, Environ and Planning",137B,Vivid Resourcing Ltd,29/09/2023,RS153282,6480.00,0.00,Fleetwood Market,Contract (New CCR),
Wyre Council,http://opendatacommunities.org/doc/district-council/wyre,29/09/2023,People and Places,"Cultural, Environ and Planning",137B,Vivid Resourcing Ltd,05/09/2023,PE152630,7320.00,0.00,Fleetwood Market,Contract (New CCR),
Wyre Council,http://opendatacommunities.org/doc/district-council/wyre,29/09/2023,People and Places,"Cultural, Environ and Planning",137B,HIRE A HAWK UK,11/09/2023,PE152797,1000.00,0.00,Fleetwood Market.  Falconry Services.  Agreed dates for 20 hours (31/07-16/08/2023),Contract (New CCR),
Wyre Council,http://opendatacommunities.org/doc/district-council/wyre,29/09/2023,People and Places,"Cultural, Environ and Planning",137B,Chris Standeven Ltd,14/09/2023,PE152901,625.00,0.00,"To erect polytunnel on Cottam Hall growing area, Poulton-le-FyldeThe tunnel is at Copse road to be collected.COST 625.00 + vat at the current rate.",Contract (New CCR),
Wyre Council,http://opendatacommunities.org/doc/district-council/wyre,29/09/2023,People and Places,"Cultural, Environ and Planning",137B,F PARKINSON LTD,07/09/2023,PE152709,22986.99,0.00,Fleetwood Market Refurbishments.  Additional Works Brought Forward into the Main Contract,Contract (New CCR),
Wyre Council,http://opendatacommunities.org/doc/district-council/wyre,29/09/2023,People and Places,"Cultural, Environ and Planning",137B,F PARKINSON LTD,07/09/2023,PE152706,225868.60,0.00,Fleetwood Market Contract Works 2023/24,Contract (New CCR),
Wyre Council,http://opendatacommunities.org/doc/district-council/wyre,29/09/2023,People and Places,"Cultural, Environ and Planning",137B,F PARKINSON LTD,07/09/2023,PE152707,4850.00,0.00,Fleetwood Market Contract (UKSPF) - 2023/24,Contract (New CCR),
Wyre Council,http://opendatacommunities.org/doc/district-council/wyre,29/09/2023,People and Places,"Cultural, Environ and Planning",137B,F PARKINSON LTD,07/09/2023,PE152708,5849.54,0.00,Fleetwood Market.  Annex & Associated Works,Contract (New CCR),
Wyre Council,http://opendatacommunities.org/doc/district-council/wyre,29/09/2023,People and Places,"Cultural, Environ and Planning",137B,Balfour Beatty Civil Engineering Ltd,07/09/2023,PE152637,124271.12,0.00,"FAO Chloe Sumner Balfour Beatty Civil Engineering Ltd Chaddock Lane  Worsley Manchester M28 1XY  Tel, 0161 638 0800 Chloe.Sumner@balfourbeatty.com   Wyre Beach Management Scheme Phase 1 - Construction Works.  Cost 2,687,156.94",Contract (New CCR),
Wyre Council,http://opendatacommunities.org/doc/district-council/wyre,29/09/2023,People and Places,"Cultural, Environ and Planning",137B,Balfour Beatty Civil Engineering Ltd,07/09/2023,PE152704,506446.37,0.00,"FAO Chloe SumnerBalfour Beatty Civil Engineering LtdChaddock Lane WorsleyManchesterM28 1XYWyre Beach Management Scheme Phase 2 � Construction Works.Cost 35,601,957.69Carl Green / Mike Wilkinson",Contract (New CCR),
Wyre Council,http://opendatacommunities.org/doc/district-council/wyre,29/09/2023,Resources,Current Liabilities,130C,Blackpool And Preston Sands,07/09/2023,RS152710,5500.00,0.00,Mayor`s Charity Donation 2022-2023,Contributions,
Wyre Council,http://opendatacommunities.org/doc/district-council/wyre,29/09/2023,People and Places,Corporate and Democratic Core,131A,Apse,26/09/2023,PE153155,4404.00,0.00,APSE Performance Network Membership Fees 2023 for the period 01/04/23-31/03/24,Corporate and Professional Subscriptions,
Wyre Council,http://opendatacommunities.org/doc/district-council/wyre,29/09/2023,Finance,Current Assets,130B,,05/09/2023,WPST00117683,13976.27,0.00,01/09/23 Ctax Refunds,Council Tax Refunds,
Wyre Council,http://opendatacommunities.org/doc/district-council/wyre,29/09/2023,Finance,Current Assets,130B,,26/09/2023,WPST00119610,12498.67,0.00,22/09/2023CTAX-NNDR REFUNDS,Council Tax Refunds,
Wyre Council,http://opendatacommunities.org/doc/district-council/wyre,29/09/2023,Finance,Current Assets,130B,,12/09/2023,WPST00118405,26398.68,0.00,08/09/2023 Ctax Refunds,Council Tax Refunds,
Wyre Council,http://opendatacommunities.org/doc/district-council/wyre,29/09/2023,Finance,Current Assets,130B,,19/09/2023,WPST00118981,20435.50,0.00,15/09/23 Ctax Refunds,Council Tax Refunds,
Wyre Council,http://opendatacommunities.org/doc/district-council/wyre,29/09/2023,People and Places,Cultural and Related Services,132A,JULIA M SWARBRICK,05/09/2023,PE152639,850.00,0.00,"Payment 2 of 2 - creative Market Heritage sessions held at the Market House Studios, 2023",Creative People and Places Contribution,
Wyre Council,http://opendatacommunities.org/doc/district-council/wyre,29/09/2023,People and Places,Cultural and Related Services,132A,Same Difference Arts Ltd,14/09/2023,PE152914,1290.00,0.00,2 x 50 min shows of Squirrel Walnutkins Saves  the Planet for Fleetwood Food Festival -Sunday 10th September 2023,Creative People and Places Contribution,
Wyre Council,http://opendatacommunities.org/doc/district-council/wyre,29/09/2023,People and Places,Cultural and Related Services,132A,Amazon Business,06/09/2023,PE152668,16.64,0.00,Combination Padlock x4,Creative People and Places Contribution,
Wyre Council,http://opendatacommunities.org/doc/district-council/wyre,29/09/2023,People and Places,Environmental Services,132B,Dennis Eagle LTD,14/09/2023,PE152713,332.89,0.00,Pump,Daywork Materials (Excl.Tyres),
Wyre Council,http://opendatacommunities.org/doc/district-council/wyre,29/09/2023,People and Places,Environmental Services,132B,Dennis Eagle LTD,07/09/2023,PE152671,137.50,0.00,Connecting Link,Daywork Materials (Excl.Tyres),
Wyre Council,http://opendatacommunities.org/doc/district-council/wyre,29/09/2023,People and Places,Environmental Services,132B,Dennis Eagle LTD,07/09/2023,PE152608,555.86,0.00,Filter Kit x 2 & Flexible Pipe,Daywork Materials (Excl.Tyres),
Wyre Council,http://opendatacommunities.org/doc/district-council/wyre,29/09/2023,People and Places,Support Services,135B,EK Motors Factors LTD,15/09/2023,PE152951,60.07,0.00,Parts,Daywork Materials (Excl.Tyres),
Wyre Council,http://opendatacommunities.org/doc/district-council/wyre,29/09/2023,People and Places,Support Services,135B,EK Motors Factors LTD,15/09/2023,PE152954,6.55,0.00,Parts,Daywork Materials (Excl.Tyres),
Wyre Council,http://opendatacommunities.org/doc/district-council/wyre,29/09/2023,People and Places,Environmental Services,132B,EK Motors Factors LTD,15/09/2023,PE152945,47.39,0.00,Parts,Daywork Materials (Excl.Tyres),
Wyre Council,http://opendatacommunities.org/doc/district-council/wyre,29/09/2023,People and Places,Housing General Fund,134A,EK Motors Factors LTD,15/09/2023,PE152950,62.07,0.00,Parts,Daywork Materials (Excl.Tyres),
Wyre Council,http://opendatacommunities.org/doc/district-council/wyre,29/09/2023,People and Places,Support Services,135B,EK Motors Factors LTD,15/09/2023,PE152955,39.67,0.00,Parts,Daywork Materials (Excl.Tyres),
Wyre Council,http://opendatacommunities.org/doc/district-council/wyre,29/09/2023,People and Places,Environmental Services,132B,EK Motors Factors LTD,15/09/2023,PE152947,316.92,0.00,Parts,Daywork Materials (Excl.Tyres),
Wyre Council,http://opendatacommunities.org/doc/district-council/wyre,29/09/2023,People and Places,Support Services,135B,EK Motors Factors LTD,15/09/2023,PE152956,7.15,0.00,Parts,Daywork Materials (Excl.Tyres),
Wyre Council,http://opendatacommunities.org/doc/district-council/wyre,29/09/2023,People and Places,Support Services,135B,EK Motors Factors LTD,15/09/2023,PE152952,19.97,0.00,Parts,Daywork Materials (Excl.Tyres),
Wyre Council,http://opendatacommunities.org/doc/district-council/wyre,29/09/2023,People and Places,Parking Services,133F,EK Motors Factors LTD,15/09/2023,PE152948,63.86,0.00,Parts,Daywork Materials (Excl.Tyres),
Wyre Council,http://opendatacommunities.org/doc/district-council/wyre,29/09/2023,People and Places,Parking Services,133F,EK Motors Factors LTD,15/09/2023,PE152949,67.84,0.00,Parts,Daywork Materials (Excl.Tyres),
Wyre Council,http://opendatacommunities.org/doc/district-council/wyre,29/09/2023,People and Places,Environmental Services,132B,EK Motors Factors LTD,15/09/2023,PE152946,23.19,0.00,Parts,Daywork Materials (Excl.Tyres),
Wyre Council,http://opendatacommunities.org/doc/district-council/wyre,29/09/2023,People and Places,Support Services,135B,EK Motors Factors LTD,15/09/2023,PE152953,28.33,0.00,Parts,Daywork Materials (Excl.Tyres),
Wyre Council,http://opendatacommunities.org/doc/district-council/wyre,29/09/2023,People and Places,Environmental Services,132B,EK Motors Factors LTD,15/09/2023,PE152969,49.13,0.00,Parts,Daywork Materials (Excl.Tyres),
Wyre Council,http://opendatacommunities.org/doc/district-council/wyre,29/09/2023,People and Places,Cultural and Related Services,132A,EK Motors Factors LTD,15/09/2023,PE152944,66.09,0.00,Parts,Daywork Materials (Excl.Tyres),
Wyre Council,http://opendatacommunities.org/doc/district-council/wyre,29/09/2023,People and Places,Support Services,135B,FR Sharrock LTD,07/09/2023,PE152542,628.87,0.00,Various parts,Daywork Materials (Excl.Tyres),
Wyre Council,http://opendatacommunities.org/doc/district-council/wyre,29/09/2023,People and Places,Environmental Services,132B,Bucher Municipal Limited,25/09/2023,PE153062,102.47,0.00,Parts,Daywork Materials (Excl.Tyres),
Wyre Council,http://opendatacommunities.org/doc/district-council/wyre,29/09/2023,People and Places,Environmental Services,132B,Bucher Municipal Limited,25/09/2023,PE153062,102.47,0.00,Parts,Daywork Materials (Excl.Tyres),
Wyre Council,http://opendatacommunities.org/doc/district-council/wyre,29/09/2023,People and Places,Environmental Services,132B,Bucher Municipal Limited,14/09/2023,PE152889,159.52,0.00,Ball Joints,Daywork Materials (Excl.Tyres),
Wyre Council,http://opendatacommunities.org/doc/district-council/wyre,29/09/2023,People and Places,Environmental Services,132B,Bucher Municipal Limited,14/09/2023,PE152889,159.52,0.00,Ball Joints,Daywork Materials (Excl.Tyres),
Wyre Council,http://opendatacommunities.org/doc/district-council/wyre,29/09/2023,People and Places,Environmental Services,132B,Bucher Municipal Limited,14/09/2023,PE152889,159.52,0.00,Ball Joints,Daywork Materials (Excl.Tyres),
Wyre Council,http://opendatacommunities.org/doc/district-council/wyre,29/09/2023,People and Places,Environmental Services,132B,Bucher Municipal Limited,25/09/2023,PE153062,102.47,0.00,Parts,Daywork Materials (Excl.Tyres),
Wyre Council,http://opendatacommunities.org/doc/district-council/wyre,29/09/2023,People and Places,Environmental Services,132B,Lancashire DAF,14/09/2023,PE152870,272.86,0.00,MOT Test and Parts,Daywork Materials (Excl.Tyres),
Wyre Council,http://opendatacommunities.org/doc/district-council/wyre,29/09/2023,People and Places,Support Services,135B,Lancashire DAF,22/09/2023,PE152988,476.00,0.00,1 starter motor as invoiced and received 15/09/23,Daywork Materials (Excl.Tyres),
Wyre Council,http://opendatacommunities.org/doc/district-council/wyre,29/09/2023,People and Places,Support Services,135B,Lancashire DAF,25/09/2023,PE153088,160.00,0.00,parts offset by credit PE153081,Daywork Materials (Excl.Tyres),
Wyre Council,http://opendatacommunities.org/doc/district-council/wyre,29/09/2023,People and Places,Environmental Services,132B,The County Tyre (Holdings) LTD,15/09/2023,PE152943,17.18,0.00,Tubes,Daywork Materials (Excl.Tyres),
Wyre Council,http://opendatacommunities.org/doc/district-council/wyre,29/09/2023,People and Places,Environmental Services,132B,RENTOKIL INITIAL UK LTD,08/09/2023,PE152179,121.68,0.00,Clinical waste collection and disposal services to Wyre domestic customers.  To include provision of containers for financial year 2023/24,Disposal Costs Hazardous Waste,
Wyre Council,http://opendatacommunities.org/doc/district-council/wyre,29/09/2023,People and Places,Cultural and Related Services,132A,Carlsberg UK LTD,27/09/2023,PE153125,215.14,0.00,Drinks - Marine Hall Bar,Drinks,
Wyre Council,http://opendatacommunities.org/doc/district-council/wyre,29/09/2023,People and Places,Cultural and Related Services,132A,Carlsberg UK LTD,06/09/2023,PE152470,122.36,0.00,CO2 and mixed gas,Drinks,
Wyre Council,http://opendatacommunities.org/doc/district-council/wyre,29/09/2023,People and Places,Cultural and Related Services,132A,Carlsberg UK LTD,06/09/2023,PE152466,1999.00,0.00,Bar stock - Marine Hall,Drinks,
Wyre Council,http://opendatacommunities.org/doc/district-council/wyre,29/09/2023,People and Places,Cultural and Related Services,132A,L W C Drinks LTD,13/09/2023,PE152885,1313.64,0.00,Marine Hall bar stock,Drinks,
Wyre Council,http://opendatacommunities.org/doc/district-council/wyre,29/09/2023,People and Places,Cultural and Related Services,132A,N Power LTD,18/09/2023,PE152778,1016.96,0.00,MPAN1600000125794 Electricity consumption charges for the period 01/08/23-31/08/23 - consumption 4364.8KWH E,Electricity,
Wyre Council,http://opendatacommunities.org/doc/district-council/wyre,29/09/2023,People and Places,Cultural and Related Services,132A,N Power LTD,18/09/2023,PE152778,134.69,0.00,MPAN1600000125794 standing and metering charges for the period 01/08/23-31/08/23,Electricity,
Wyre Council,http://opendatacommunities.org/doc/district-council/wyre,29/09/2023,People and Places,Cultural and Related Services,132A,N Power LTD,18/09/2023,PE152778,33.83,0.00,MPAN1600000125794 climate change levey for the period 01/08/23-31/08/23,Electricity,
Wyre Council,http://opendatacommunities.org/doc/district-council/wyre,29/09/2023,People and Places,Cultural and Related Services,132A,N Power LTD,18/09/2023,PE152781,7189.88,0.00,MPAN1600000162884 consumption and capacity charges for the period 01/08/23-31/08/23 31655.7 KWH,Electricity,
Wyre Council,http://opendatacommunities.org/doc/district-council/wyre,29/09/2023,People and Places,Cultural and Related Services,132A,N Power LTD,18/09/2023,PE152781,0.75,0.00,MPAN1600000162884 network charges for the period 01/08/23-31/08/23,Electricity,
Wyre Council,http://opendatacommunities.org/doc/district-council/wyre,29/09/2023,People and Places,Cultural and Related Services,132A,N Power LTD,18/09/2023,PE152781,355.52,0.00,MPAN1600000162884  standing and metering charges for the period 01/08/23-31/08/23,Electricity,
Wyre Council,http://opendatacommunities.org/doc/district-council/wyre,29/09/2023,People and Places,Cultural and Related Services,132A,N Power LTD,18/09/2023,PE152781,245.33,0.00,MPAN1600000162884 climate change levy for the period 01/08/23-31/08/23,Electricity,
Wyre Council,http://opendatacommunities.org/doc/district-council/wyre,29/09/2023,People and Places,Cultural and Related Services,132A,N Power LTD,18/09/2023,PE152780,7785.38,0.00,MPAN2500000793090 consumption and capacity charges for the period 01/08/23-31/08/23 - 32194.7 KWH,Electricity,
Wyre Council,http://opendatacommunities.org/doc/district-council/wyre,29/09/2023,People and Places,Cultural and Related Services,132A,N Power LTD,18/09/2023,PE152780,0.06,0.00,MPAN2500000793090 network charges for the period 01/08/23-31/08/23,Electricity,
Wyre Council,http://opendatacommunities.org/doc/district-council/wyre,29/09/2023,People and Places,Cultural and Related Services,132A,N Power LTD,18/09/2023,PE152780,559.84,0.00,MPAN2500000793090 standing and metering charges for the period 01/08/23-31/08/23,Electricity,
Wyre Council,http://opendatacommunities.org/doc/district-council/wyre,29/09/2023,People and Places,Cultural and Related Services,132A,N Power LTD,18/09/2023,PE152780,249.51,0.00,MPAN2500000793090 climate change levy for the period 01/08/23-31/08/23,Electricity,
Wyre Council,http://opendatacommunities.org/doc/district-council/wyre,29/09/2023,People and Places,Cultural and Related Services,132A,N Power LTD,18/09/2023,PE152777,648.24,0.00,MPAN1610023220857 Electricity chargs for the period 01/08/23-31/08/23 - electricity consumption 2430.3 KWH,Electricity,
Wyre Council,http://opendatacommunities.org/doc/district-council/wyre,29/09/2023,People and Places,Cultural and Related Services,132A,N Power LTD,18/09/2023,PE152777,114.70,0.00,MPAN1610023220857 Standing and metering charges for the period 01/08/23-31/08/23,Electricity,
Wyre Council,http://opendatacommunities.org/doc/district-council/wyre,29/09/2023,People and Places,Cultural and Related Services,132A,N Power LTD,18/09/2023,PE152777,18.83,0.00,MPAN1610023220857 Climate Change Levey (CCL) for the period 01/08/23-31/08/23,Electricity,
Wyre Council,http://opendatacommunities.org/doc/district-council/wyre,29/09/2023,People and Places,Parking Services,133F,N Power LTD,08/09/2023,PE152655,2.80,0.00,1610036002855 unmetered supply Civic Centre 01/08/23 to 31/08/23 (9.8kWh),Electricity,
Wyre Council,http://opendatacommunities.org/doc/district-council/wyre,29/09/2023,People and Places,Cultural and Related Services,132A,N Power LTD,18/09/2023,PE152779,4058.68,0.00,MPAN2500000676813 electricity charges for the period 01/08/23 - 16689.7KWH,Electricity,
Wyre Council,http://opendatacommunities.org/doc/district-council/wyre,29/09/2023,People and Places,Cultural and Related Services,132A,N Power LTD,18/09/2023,PE152779,0.09,0.00,MPAN2500000676813 Network charges for the period 01/08/23-31/08/23,Electricity,
Wyre Council,http://opendatacommunities.org/doc/district-council/wyre,29/09/2023,People and Places,Cultural and Related Services,132A,N Power LTD,18/09/2023,PE152779,559.84,0.00,MPAN2500000676813 standing and metering charges for the period 01/08/23-31/08/23,Electricity,
Wyre Council,http://opendatacommunities.org/doc/district-council/wyre,29/09/2023,People and Places,Cultural and Related Services,132A,N Power LTD,18/09/2023,PE152779,129.35,0.00,MPAN2500000676813 climate change levy for the period 01/08/23-31/08/23,Electricity,
Wyre Council,http://opendatacommunities.org/doc/district-council/wyre,29/09/2023,People and Places,Environmental Services,132B,N Power LTD,08/09/2023,PE152653,262.03,0.00,"1610036002846 unmetered supply lighting Civic Centre, 01/08/23 to 31/08/23 (5008.1 kWh)",Electricity,
Wyre Council,http://opendatacommunities.org/doc/district-council/wyre,29/09/2023,People and Places,Environmental Services,132B,N Power LTD,08/09/2023,PE152655,0.51,0.00,1610036002855 unmetered supply Civic Centre 01/08/23 to 31/08/23 (9.8kWh),Electricity,
Wyre Council,http://opendatacommunities.org/doc/district-council/wyre,29/09/2023,People and Places,Parking Services,133F,N Power LTD,08/09/2023,PE152653,1469.52,0.00,"1610036002846 unmetered supply lighting Civic Centre, 01/08/23 to 31/08/23 (5008.1 kWh)",Electricity,
Wyre Council,http://opendatacommunities.org/doc/district-council/wyre,29/09/2023,People and Places,Parking Services,133F,N Power LTD,08/09/2023,PE152654,459.09,0.00,"1620000821031 unmetered supply lighting Civic Centre, 01/08/23 to 31/08/23 (1327.8 kWh)",Electricity,
Wyre Council,http://opendatacommunities.org/doc/district-council/wyre,29/09/2023,People and Places,Parking Services,133F,N Power LTD,08/09/2023,PE152655,0.08,0.00,1610036002855 unmetered supply Civic Centre 01/08/23 to 31/08/23 (9.8kWh),Electricity,
Wyre Council,http://opendatacommunities.org/doc/district-council/wyre,29/09/2023,People and Places,Cultural and Related Services,132A,Corona Energy Retail 4 Limited,12/09/2023,PE152765,213.70,0.00,1640000233705 Coastal Observation Point  Rossal Point Fleetwood FY78AF 01/08/23 to 31/08/23 (551kWh),Electricity,
Wyre Council,http://opendatacommunities.org/doc/district-council/wyre,29/09/2023,People and Places,Environmental Services,132B,Corona Energy Retail 4 Limited,12/09/2023,PE152761,389.81,0.00,1610004742413 Stanah Pumphouse 11 River  Road Stanah Pumphouse 11 FY55LR 01/08/23 to 01/09/23 E (482Kwh),Electricity,
Wyre Council,http://opendatacommunities.org/doc/district-council/wyre,29/09/2023,People and Places,Planning and Development Servs,132C,Corona Energy Retail 4 Limited,12/09/2023,PE152767,1886.09,0.00,1640000184606 Council Depot Copse Road  Fleetwood FY76RP 01/08/23 to 31/08/23 (5072kWh),Electricity,
Wyre Council,http://opendatacommunities.org/doc/district-council/wyre,29/09/2023,People and Places,Cultural and Related Services,132A,Corona Energy Retail 4 Limited,12/09/2023,PE152769,2282.07,0.00,1630000670291 Promendae Cafe North  Promenade Thornton-Cleveleys FY51DB 01/08/23 to 31/08/23 (6409kWh),Electricity,
Wyre Council,http://opendatacommunities.org/doc/district-council/wyre,29/09/2023,People and Places,Cultural and Related Services,132A,Corona Energy Retail 4 Limited,12/09/2023,PE152749,230.22,0.00,1610004863632 Beach Bungalows The Esplanade  Beach Bungalows FY76QD 01/08/23 to 01/09/23 E (150Kwh),Electricity,
Wyre Council,http://opendatacommunities.org/doc/district-council/wyre,29/09/2023,People and Places,Environmental Services,132B,Corona Energy Retail 4 Limited,12/09/2023,PE152753,1425.92,0.00,1610004347328 East Cemetry Garstang Road  East East Cemetry FY67SN 01/08/23 to 01/09/23 E (1886Kwh),Electricity,
Wyre Council,http://opendatacommunities.org/doc/district-council/wyre,29/09/2023,People and Places,Planning and Development Servs,132C,Corona Energy Retail 4 Limited,12/09/2023,PE152768,804.01,0.00,1620000784666 Main Hall Adelaide Street  Fleetwood FY76AB 01/08/23 to 31/08/23 (0kWh),Electricity,
Wyre Council,http://opendatacommunities.org/doc/district-council/wyre,29/09/2023,People and Places,Cultural and Related Services,132A,Corona Energy Retail 4 Limited,12/09/2023,PE152763,74.08,0.00,1610004318841 Jean Stansfield Bowling Green  Vicarage Road Jean Stansfield Bowling Green FY67BE 01/08/23 to 01/09/23 R  (3Kwh),Electricity,
Wyre Council,http://opendatacommunities.org/doc/district-council/wyre,29/09/2023,People and Places,Cultural and Related Services,132A,Corona Energy Retail 4 Limited,12/09/2023,PE152751,57.86,0.00,1610004305434 Sports Pavilion Sports  Pavilion Cottam Hall FY67RH 01/08/23 to 01/09/23 E (24Kwh),Electricity,
Wyre Council,http://opendatacommunities.org/doc/district-council/wyre,29/09/2023,People and Places,Cultural and Related Services,132A,Corona Energy Retail 4 Limited,12/09/2023,PE152756,36.85,0.00,1610004305443 Sports Pavilion Sports  Pavilion Cottam Hall FY67RH 01/08/23 to 01/09/23 E (48Kwh),Electricity,
Wyre Council,http://opendatacommunities.org/doc/district-council/wyre,29/09/2023,People and Places,Central Services to the Public,131C,Corona Energy Retail 4 Limited,12/09/2023,PE152747,3237.06,0.00,1610004322012 Womens Royal Voluntary  Service Teanlowe Day Centre Teanlowe Day Centre FY67ST 01/08/23 to 01/09/23 R  (4131Kwh),Electricity,
Wyre Council,http://opendatacommunities.org/doc/district-council/wyre,29/09/2023,People and Places,Cultural and Related Services,132A,Corona Energy Retail 4 Limited,12/09/2023,PE152752,1526.53,0.00,1610004773866 Wyre Borough Council Lecture  Hall Lecture Hall FY54AD 01/08/23 to 01/09/23 E (639Kwh),Electricity,
Wyre Council,http://opendatacommunities.org/doc/district-council/wyre,29/09/2023,People and Places,Cultural and Related Services,132A,Corona Energy Retail 4 Limited,12/09/2023,PE152766,5575.37,0.00,1600000162875 Marine Hall The Esplanade  Fleetwood FY76HF 01/08/23 to 31/08/23 (12260kWh),Electricity,
Wyre Council,http://opendatacommunities.org/doc/district-council/wyre,29/09/2023,People and Places,Support Services,135B,Corona Energy Retail 4 Limited,12/09/2023,PE152770,10432.26,0.00,1600000162857 Civic Centre Breck Road  Blackpool FY39DT 01/08/23 to 31/08/23 (27242kWh),Electricity,
Wyre Council,http://opendatacommunities.org/doc/district-council/wyre,29/09/2023,People and Places,Cultural and Related Services,132A,Corona Energy Retail 4 Limited,12/09/2023,PE152754,108.50,0.00,1610004724089 Pavilion North Drive Pavilion  FY52QD 01/08/23 to 01/09/23 R (128Kwh),Electricity,
Wyre Council,http://opendatacommunities.org/doc/district-council/wyre,29/09/2023,People and Places,Environmental Services,132B,Corona Energy Retail 4 Limited,12/09/2023,PE152771,127.42,0.00,1600000023675 Royles Brook Pumping Station  Off Victoria Road East Thornton FY55OX 01/08/23 to 31/08/23 (321kWh),Electricity,
Wyre Council,http://opendatacommunities.org/doc/district-council/wyre,29/09/2023,People and Places,Environmental Services,132B,Corona Energy Retail 4 Limited,12/09/2023,PE152760,25.74,0.00,1610004421042 Pumping Station;1 New Lane  Pumping Station;1 FY55NS 01/08/23 to 01/09/23 E (2Kwh),Electricity,
Wyre Council,http://opendatacommunities.org/doc/district-council/wyre,29/09/2023,People and Places,Environmental Services,132B,Corona Energy Retail 4 Limited,12/09/2023,PE152755,26.66,0.00,1610004421200 Pumping Station 2 New Lane  Pumping Station 2 FY55NH 01/08/23 to 01/09/23 E (14Kwh),Electricity,
Wyre Council,http://opendatacommunities.org/doc/district-council/wyre,29/09/2023,People and Places,Cultural and Related Services,132A,Corona Energy Retail 4 Limited,12/09/2023,PE152748,352.49,0.00,1640000960322 The Mount Lodge The Esplanade  The Mount Lodge FY76EZ 01/08/23 to 01/09/23 R (447Kwh),Electricity,
Wyre Council,http://opendatacommunities.org/doc/district-council/wyre,29/09/2023,People and Places,Cultural and Related Services,132A,Corona Energy Retail 4 Limited,12/09/2023,PE152759,8.14,0.00,1610004742404 River Road Thornton Cleveleys  River Road FY55LR 01/08/23 to 01/09/23 R (0Kwh),Electricity,
Wyre Council,http://opendatacommunities.org/doc/district-council/wyre,29/09/2023,People and Places,Cultural and Related Services,132A,Corona Energy Retail 4 Limited,12/09/2023,PE152764,212.27,0.00,1610004742431 Visitors Centre River Road  Visitors Centre FY55LR 01/08/23 to 01/09/23 E (371Kwh),Electricity,
Wyre Council,http://opendatacommunities.org/doc/district-council/wyre,29/09/2023,People and Places,Cultural and Related Services,132A,Corona Energy Retail 4 Limited,12/09/2023,PE152772,334.74,0.00,1610004742399 River Road Thornton Cleveleys  River Road FY55LR 01/08/23 to 01/09/23 R (410Kwh),Electricity,
Wyre Council,http://opendatacommunities.org/doc/district-council/wyre,29/09/2023,People and Places,Environmental Services,132B,Corona Energy Retail 4 Limited,12/09/2023,PE152750,633.79,0.00,1610004665168 Public Conven Public Conven  Bus Station FY51BW 01/08/23 to 01/09/23 R (801Kwh),Electricity,
Wyre Council,http://opendatacommunities.org/doc/district-council/wyre,29/09/2023,People and Places,Environmental Services,132B,Corona Energy Retail 4 Limited,12/09/2023,PE152758,730.17,0.00,1610004313728 Public Convenience Off  Queensway Teanlowe Centre FY67DF 01/08/23 to 01/09/23 E (927Kwh),Electricity,
Wyre Council,http://opendatacommunities.org/doc/district-council/wyre,29/09/2023,People and Places,Environmental Services,132B,Corona Energy Retail 4 Limited,12/09/2023,PE152762,146.66,0.00,1610023232505 Public Conveniences Public  Conveniences Car Park PR31EA 01/08/23 to 01/09/23 R (168Kwh),Electricity,
Wyre Council,http://opendatacommunities.org/doc/district-council/wyre,29/09/2023,People and Places,Cultural and Related Services,132A,Corona Energy Retail 4 Limited,12/09/2023,PE152757,236.49,0.00,1650000008330 The Mount Pavilion Mount Road  Fleetwood FY76EZ 01/08/23 to 01/09/23 R (311Kwh),Electricity,
Wyre Council,http://opendatacommunities.org/doc/district-council/wyre,29/09/2023,People and Places,Planning and Development Servs,132C,Drax Energy Solutions Limited,19/09/2023,PE152982,56.56,0.00,3200000534782 Electricity charges for the period 01/09/23-11/09/23 for unit 9 Dock Ave Fleetwood - 33 KWH used,Electricity,
Wyre Council,http://opendatacommunities.org/doc/district-council/wyre,29/09/2023,People and Places,Planning and Development Servs,132C,Drax Energy Solutions Limited,19/09/2023,PE152984,54.27,0.00,"3200000534807 Electricity charges for the period 01-09-23 to 11-09-23 for LL Supply c/o ABP Port Office, Dock Ave, Fleetwood",Electricity,
Wyre Council,http://opendatacommunities.org/doc/district-council/wyre,29/09/2023,People and Places,Planning and Development Servs,132C,Drax Energy Solutions Limited,19/09/2023,PE152983,56.18,0.00,3200000534791 Electricity charges for the period 01-09-23 to 11-09-23 for Unit 10 Dock Ave Fleetwood - 32 KWH used,Electricity,
Wyre Council,http://opendatacommunities.org/doc/district-council/wyre,29/09/2023,People and Places,Planning and Development Servs,132C,Drax Energy Solutions Limited,06/09/2023,PE152682,138.46,0.00,"3200000534773  Unit 8, Dock Ave, Fleetwood, FY7 6PS 01/08/23 to 31/08/23 A 38Kwh",Electricity,
Wyre Council,http://opendatacommunities.org/doc/district-council/wyre,29/09/2023,People and Places,Planning and Development Servs,132C,Drax Energy Solutions Limited,06/09/2023,PE152681,131.61,0.00,"3200000534764  Unit 7B, Dock Ave, Fleetwood, FY7 6PS 01/08/23 to 31/08/23 A 20Kwh",Electricity,
Wyre Council,http://opendatacommunities.org/doc/district-council/wyre,29/09/2023,People and Places,Planning and Development Servs,132C,Drax Energy Solutions Limited,06/09/2023,PE152680,134.27,0.00,"3200000534755  Unit 7A, Dock Ave, Fleetwood, FY7 6PS 01/08/23 to 31/08/23 A 27Kwh",Electricity,
Wyre Council,http://opendatacommunities.org/doc/district-council/wyre,29/09/2023,People and Places,Planning and Development Servs,132C,Drax Energy Solutions Limited,06/09/2023,PE152679,134.27,0.00,"3200000534746  Unit 6, Dock Ave, Fleetwood, FY7 6PS 01/08/23 to 31/08/23 A 27Kwh",Electricity,
Wyre Council,http://opendatacommunities.org/doc/district-council/wyre,29/09/2023,People and Places,Planning and Development Servs,132C,Drax Energy Solutions Limited,06/09/2023,PE152678,133.89,0.00,"3200000534737  Unit 5, Dock Ave, Fleetwood, FY7 6PS 01/08/23 to 31/08/23 A 26Kwh",Electricity,
Wyre Council,http://opendatacommunities.org/doc/district-council/wyre,29/09/2023,People and Places,Planning and Development Servs,132C,Drax Energy Solutions Limited,06/09/2023,PE152677,135.03,0.00,"3200000534728  Unit 4, Dock Ave, Fleetwood, FY7 6PS 01/08/23 to 31/08/23 A 29Kwh",Electricity,
Wyre Council,http://opendatacommunities.org/doc/district-council/wyre,29/09/2023,People and Places,Planning and Development Servs,132C,Drax Energy Solutions Limited,06/09/2023,PE152676,133.13,0.00,"3200000534719  Unit 3, Dock Ave, Fleetwood, FY7 6PS 01/08/23 to 31/08/23 E 24Kwh",Electricity,
Wyre Council,http://opendatacommunities.org/doc/district-council/wyre,29/09/2023,People and Places,Planning and Development Servs,132C,Drax Energy Solutions Limited,06/09/2023,PE152675,132.75,0.00,"3200000534700  Unit 2, Dock Ave, Fleetwood, FY7 6PS 01/08/23 to 31/08/23 E 23Kwh",Electricity,
Wyre Council,http://opendatacommunities.org/doc/district-council/wyre,29/09/2023,People and Places,Planning and Development Servs,132C,Drax Energy Solutions Limited,06/09/2023,PE152685,126.66,0.00,"3200000534807  LL Supply c/o ABP Port Office, Dock Ave, Fleetwood, FY7 6PS 01/08/23 to  31/08/23 A 7Kwh",Electricity,
Wyre Council,http://opendatacommunities.org/doc/district-council/wyre,29/09/2023,People and Places,Planning and Development Servs,132C,Drax Energy Solutions Limited,06/09/2023,PE152684,132.75,0.00,"3200000534791  Unit 10, Dock Ave, Fleetwood, FY7 6PS 01/08/23 to 31/08/23 A 23Kwh",Electricity,
Wyre Council,http://opendatacommunities.org/doc/district-council/wyre,29/09/2023,People and Places,Planning and Development Servs,132C,Drax Energy Solutions Limited,06/09/2023,PE152683,133.89,0.00,"3200000534782  Unit 9, Dock Ave, Fleetwood, FY7 6PS 01/08/23 to 31/08/23 A 26Kwh",Electricity,
Wyre Council,http://opendatacommunities.org/doc/district-council/wyre,29/09/2023,People and Places,Cultural and Related Services,132A,Engie Power Limited,18/09/2023,PE152853,90.40,0.00,"1610004932427 King Georges Field,  Boradwater, Fleetwood Road, Fleetwood, Lancashire, FY7 8BD 01/08/23 to  31/08/23 E (64kWh)",Electricity,
Wyre Council,http://opendatacommunities.org/doc/district-council/wyre,29/09/2023,People and Places,Cultural and Related Services,132A,Engie Power Limited,18/09/2023,PE152846,104.86,0.00,"1610004775074 The Windmill, Fleetwood Rd  North, Thornton Cleveleys, FY5 4BP 01/08/23 to 31/08/23 A (87.8kWh)",Electricity,
Wyre Council,http://opendatacommunities.org/doc/district-council/wyre,29/09/2023,People and Places,Cultural and Related Services,132A,Engie Power Limited,18/09/2023,PE152842,272.26,0.00,"1610004775083 The Windmill, Fleetwood Road  North, Thornton Cleveleys, FY5 4BP 01/08/23 to 31/08/23 E (753.9kWh)",Electricity,
Wyre Council,http://opendatacommunities.org/doc/district-council/wyre,29/09/2023,People and Places,Cultural and Related Services,132A,Engie Power Limited,18/09/2023,PE152857,403.95,0.00,"1610004890636 Fishermans Walk, Lord St,  Fleetwood, FY7 6DU 01/08/23 to 31/08/23 E (926kWh)",Electricity,
Wyre Council,http://opendatacommunities.org/doc/district-council/wyre,29/09/2023,People and Places,Cultural and Related Services,132A,Engie Power Limited,18/09/2023,PE152841,73.71,0.00,"1610004846502 Valve House, Marine Lake,  Laidleys Walk, Fleetwood, FY7 7JL 01/08/23 to 31/08/23 E (0.5kWh)",Electricity,
Wyre Council,http://opendatacommunities.org/doc/district-council/wyre,29/09/2023,People and Places,Cultural and Related Services,132A,Engie Power Limited,18/09/2023,PE152831,287.41,0.00,"1640000118533 Feeder Pillar, Vicarage Rd,  Poulton le Fylde, FY6 7BE 01/08/23 to 31/08/23 A (728.8kWh)",Electricity,
Wyre Council,http://opendatacommunities.org/doc/district-council/wyre,29/09/2023,People and Places,Cultural and Related Services,132A,Engie Power Limited,18/09/2023,PE152863,104.60,0.00,"1640000004924 Feeder Pillar, Hawthorne  Park, Hawthorne Rd, Thornton Cleveleys, FY5 5DH 01/08/23 to 31/08/23 A  (88kWh)",Electricity,
Wyre Council,http://opendatacommunities.org/doc/district-council/wyre,29/09/2023,People and Places,Planning and Development Servs,132C,Engie Power Limited,18/09/2023,PE152826,134.33,0.00,"1640000947172 Kiosk 5, Fleetwood Market,  Adelaide St, Fleetwood, FY7 6AB 01/08/23 to 31/08/23 A (260.5kWh)",Electricity,
Wyre Council,http://opendatacommunities.org/doc/district-council/wyre,29/09/2023,People and Places,Planning and Development Servs,132C,Engie Power Limited,18/09/2023,PE152825,71.77,0.00,"1640000947181 Kiosk 6, Fleetwood Market,  Adelaide St, Fleetwood, FY7 6AB 01/08/23 to 31/08/23 A (69.1kWh)",Electricity,
Wyre Council,http://opendatacommunities.org/doc/district-council/wyre,29/09/2023,People and Places,Planning and Development Servs,132C,Engie Power Limited,18/09/2023,PE152824,53.46,0.00,"1640000947163 Kiosk 4, Fleetwood Market,  Adelaide St, Fleetwood, FY7 6AB 01/08/23 to 31/08/23 A (13.1kWh)",Electricity,
Wyre Council,http://opendatacommunities.org/doc/district-council/wyre,29/09/2023,People and Places,Planning and Development Servs,132C,Engie Power Limited,18/09/2023,PE152823,65.20,0.00,"1640000947154 Kiosk 3, Fleetwood Market,  Adelaide St, Fleetwood, FY7 6AB 01/08/23 to 31/08/23 A (49kWh)",Electricity,
Wyre Council,http://opendatacommunities.org/doc/district-council/wyre,29/09/2023,People and Places,Cultural and Related Services,132A,Engie Power Limited,18/09/2023,PE152838,403.59,0.00,"1610004863623 Pitch &amp; Putt Kiosk, Carr  Rd, The Esplanade, Fleetwood, FY7 6QE 01/08/23 to 31/08/23 E (925kWh)",Electricity,
Wyre Council,http://opendatacommunities.org/doc/district-council/wyre,29/09/2023,People and Places,Cultural and Related Services,132A,Engie Power Limited,18/09/2023,PE152837,577.77,0.00,"1610004863605 Central Toilets Kiosk, The  Esplanade, Fleetwood, FY7 7BE 01/08/23 to 31/08/23 A (1383.1kWh)",Electricity,
Wyre Council,http://opendatacommunities.org/doc/district-council/wyre,29/09/2023,People and Places,Cultural and Related Services,132A,Engie Power Limited,18/09/2023,PE152840,458.96,0.00,"1610004846390 Pump House, Model Yacht Pond,  Laidleys Walk, Fleetwood, FY7 7JL 01/08/23 to 31/08/23 A (1057.2kWh)",Electricity,
Wyre Council,http://opendatacommunities.org/doc/district-council/wyre,29/09/2023,People and Places,Cultural and Related Services,132A,Engie Power Limited,18/09/2023,PE152852,403.59,0.00,"1610004897400 Ladies Bowls Pavilion,  Memorial Park, Fleetwood, FY7 7AE 01/08/23 to 31/08/23 E (925kWh)",Electricity,
Wyre Council,http://opendatacommunities.org/doc/district-council/wyre,29/09/2023,People and Places,Cultural and Related Services,132A,Engie Power Limited,18/09/2023,PE152850,102.08,0.00,"1610004897394 Bowls House, Memorial Park,  Fleetwood, FY7 7AE 01/08/23 to 31/08/23 A (80kWh)",Electricity,
Wyre Council,http://opendatacommunities.org/doc/district-council/wyre,29/09/2023,People and Places,Cultural and Related Services,132A,Engie Power Limited,18/09/2023,PE152858,229.19,0.00,"1610004897385 Tennis Pavillion, Memorial  Park, Fleetwood, FY7 7AE 01/08/23 to 31/08/23 E (469.5kWh)",Electricity,
Wyre Council,http://opendatacommunities.org/doc/district-council/wyre,29/09/2023,People and Places,Cultural and Related Services,132A,Engie Power Limited,18/09/2023,PE152859,139.43,0.00,"1610004867441 Mount Hotel, Mount Rd,  Fleetwood, FY7 6RA 01/08/23 to 31/08/23 E (250kWh)",Electricity,
Wyre Council,http://opendatacommunities.org/doc/district-council/wyre,29/09/2023,People and Places,Cultural and Related Services,132A,Engie Power Limited,18/09/2023,PE152862,341.33,0.00,"1610004867432 Mount Hotel, Mount Rd,  Fleetwood, FY7 6RA 01/08/23 to 31/08/23 E (750.5kWh)",Electricity,
Wyre Council,http://opendatacommunities.org/doc/district-council/wyre,29/09/2023,People and Places,Cultural and Related Services,132A,Engie Power Limited,18/09/2023,PE152855,139.35,0.00,"1610004867488 Mount Pavilion, Mount Rd,  Fleetwood, FY7 6EZ 01/08/23 to 31/08/23 E (249.7kWh)",Electricity,
Wyre Council,http://opendatacommunities.org/doc/district-council/wyre,29/09/2023,People and Places,Planning and Development Servs,132C,Engie Power Limited,18/09/2023,PE152833,53.27,0.00,"1640000947190 Kiosk 7, Fleetwood Market,  Adelaide St, Fleetwood, FY7 6AB 01/08/23 to 31/08/23 A (12.5kWh)",Electricity,
Wyre Council,http://opendatacommunities.org/doc/district-council/wyre,29/09/2023,People and Places,Planning and Development Servs,132C,Engie Power Limited,18/09/2023,PE152835,49.70,0.00,"1640000947215 Landlord Supply, Fleetwood  Market, Adelaide St, Fleetwood, FY7 6AB 01/08/23 to 31/08/23 A (1.6kWh)",Electricity,
Wyre Council,http://opendatacommunities.org/doc/district-council/wyre,29/09/2023,People and Places,Planning and Development Servs,132C,Engie Power Limited,18/09/2023,PE152834,74.68,0.00,"1640000947206 Kiosk 8, Fleetwood Market,  Adelaide St, Fleetwood, FY7 6AB 01/08/23 to 31/08/23 A (78kWh)",Electricity,
Wyre Council,http://opendatacommunities.org/doc/district-council/wyre,29/09/2023,People and Places,Planning and Development Servs,132C,Engie Power Limited,18/09/2023,PE152829,49.28,0.00,"1640000947136 Kiosk 1, Fleetwood Market,  Adelaide St, Fleetwood, FY7 6AB 01/08/23 to 31/08/23 A (0.3kWh)",Electricity,
Wyre Council,http://opendatacommunities.org/doc/district-council/wyre,29/09/2023,People and Places,Planning and Development Servs,132C,Engie Power Limited,18/09/2023,PE152830,180.81,0.00,"1640000947145 Kiosk 2, Fleetwood Market,  Adelaie St, Fleetwood, FY7 6AB 01/08/23 to 31/08/23 A (402.7kWh)",Electricity,
Wyre Council,http://opendatacommunities.org/doc/district-council/wyre,29/09/2023,People and Places,Environmental Services,132B,Engie Power Limited,18/09/2023,PE152843,424.11,0.00,"1610004828771 Council Depot, Chatsworth Day  Centre, Chatsworth Ave, Fleetwood, FY7 8AP 01/08/23 to 31/08/23 E (982.5kWh)",Electricity,
Wyre Council,http://opendatacommunities.org/doc/district-council/wyre,29/09/2023,People and Places,Environmental Services,132B,Engie Power Limited,18/09/2023,PE152864,107.96,0.00,"1620001343345 PC, Thornton Centre, Victoria  Rd East, FY5 5DZ 01/08/23 to 31/08/23 A (96.5kWh)",Electricity,
Wyre Council,http://opendatacommunities.org/doc/district-council/wyre,29/09/2023,People and Places,Environmental Services,132B,Engie Power Limited,18/09/2023,PE152867,197.31,0.00,"1630000584632 PC, rear of Tesco, Rough Lea  Rd, Thornton Cleveleys, FY5 1BW 01/08/23 to 31/08/23 E (346.9kWh)",Electricity,
Wyre Council,http://opendatacommunities.org/doc/district-council/wyre,29/09/2023,People and Places,Environmental Services,132B,Engie Power Limited,18/09/2023,PE152866,130.34,0.00,"1630000819048 Public Conveniences,  Cherestanc Square, Garstang, Lancashire, PR3 1EF 01/08/23 to 31/08/23 E  (159.2kWh)",Electricity,
Wyre Council,http://opendatacommunities.org/doc/district-council/wyre,29/09/2023,People and Places,Environmental Services,132B,Engie Power Limited,18/09/2023,PE152827,119.62,0.00,"1640000258365 PC, River Road, Thornton  Cleveleys, FY5 5LR 01/08/23 to 31/08/23 E (215.5kWh)",Electricity,
Wyre Council,http://opendatacommunities.org/doc/district-council/wyre,29/09/2023,People and Places,Environmental Services,132B,Engie Power Limited,18/09/2023,PE152839,129.66,0.00,"1610004845322 PC, Beach Rd, Fleetwood, FY7  8PH 01/08/23 to 31/08/23 E (157.3kWh)",Electricity,
Wyre Council,http://opendatacommunities.org/doc/district-council/wyre,29/09/2023,People and Places,Environmental Services,132B,Engie Power Limited,18/09/2023,PE152848,202.95,0.00,"1610023195261 PC, Smallwood Hey, Pilling,  Preston, PR3 6HJ 01/08/23 to 31/08/23 E (362.7kWh)",Electricity,
Wyre Council,http://opendatacommunities.org/doc/district-council/wyre,29/09/2023,People and Places,Environmental Services,132B,Engie Power Limited,18/09/2023,PE152847,180.51,0.00,"1610013371994 PC, The Weind, Great  Eccleston, PR3 0ZU 01/08/23 to 31/08/23 E (299.8kWh)",Electricity,
Wyre Council,http://opendatacommunities.org/doc/district-council/wyre,29/09/2023,People and Places,Environmental Services,132B,Engie Power Limited,18/09/2023,PE152849,136.87,0.00,"1610023169146 Public Conveniences, Barton  Square, Knott End on Sea, Lancashire, FY6 0AG 01/08/23 to 31/08/23 E (183kWh)",Electricity,
Wyre Council,http://opendatacommunities.org/doc/district-council/wyre,29/09/2023,People and Places,Environmental Services,132B,Engie Power Limited,18/09/2023,PE152851,256.62,0.00,"1610023251891 PC, Gubberford Lane, Scorton,  PR3 1BL 01/08/23 to 31/08/23 E (513.1kWh)",Electricity,
Wyre Council,http://opendatacommunities.org/doc/district-council/wyre,29/09/2023,People and Places,Environmental Services,132B,Engie Power Limited,18/09/2023,PE152828,80.85,0.00,"1640000400837 PC, River Road, Thornton  Cleveleys, FY5 5LR 01/08/23 to 31/08/23 E (96.9kWh)",Electricity,
Wyre Council,http://opendatacommunities.org/doc/district-council/wyre,29/09/2023,People and Places,Environmental Services,132B,Engie Power Limited,18/09/2023,PE152832,154.21,0.00,"1640000218200 PC, Bold St, Fleetwood, FY7  6BW 01/08/23 to 31/08/23 E (321.3kWh)",Electricity,
Wyre Council,http://opendatacommunities.org/doc/district-council/wyre,29/09/2023,People and Places,Environmental Services,132B,Engie Power Limited,18/09/2023,PE152856,371.91,0.00,"1610004885487 PC, Preston St, Fleetwood,  FY7 6JA 01/08/23 to 31/08/23 E (836.2kWh)",Electricity,
Wyre Council,http://opendatacommunities.org/doc/district-council/wyre,29/09/2023,People and Places,Environmental Services,132B,Engie Power Limited,18/09/2023,PE152865,238.38,0.00,"1630000740099 PC, Wyreside, Knott End on  Sea, FY6 0AA 01/08/23 to 31/08/23 E (462kWh)",Electricity,
Wyre Council,http://opendatacommunities.org/doc/district-council/wyre,29/09/2023,People and Places,Cultural and Related Services,132A,Engie Power Limited,18/09/2023,PE152860,73.53,0.00,"1610004863776 Tourist Information Office,  The Esplanade, Fleetwood, FY7 6DL 01/08/23 to 31/08/23 A (0kWh)",Electricity,
Wyre Council,http://opendatacommunities.org/doc/district-council/wyre,29/09/2023,People and Places,Environmental Services,132B,Engie Power Limited,18/09/2023,PE152854,197.35,0.00,"1610004933625 Springfield Pumping Station  17, Fleeetwood Road, Fleetwood, Lancashire, FY7 8TW 01/08/23 to 31/08/23 E  (363.7kWh)",Electricity,
Wyre Council,http://opendatacommunities.org/doc/district-council/wyre,29/09/2023,People and Places,Environmental Services,132B,Engie Power Limited,18/09/2023,PE152845,225.52,0.00,"1610004845313 Fleetwood Corp Cemetery,  Beach Rd, Fleetwood, FY7 8PH 01/08/23 to 31/08/23 E (576.6kWh)",Electricity,
Wyre Council,http://opendatacommunities.org/doc/district-council/wyre,29/09/2023,People and Places,Environmental Services,132B,Engie Power Limited,18/09/2023,PE152844,112.50,0.00,"1610004845304 Fleetwood Corp Cemetery,  Beach Rd, Fleetwood, FY7 8PH 01/08/23 to 31/08/23 E (109.2kWh)",Electricity,
Wyre Council,http://opendatacommunities.org/doc/district-council/wyre,29/09/2023,People and Places,Planning and Development Servs,132C,Special EFX Limited,05/09/2023,PE152661,1099.00,0.00,"16 slate awards with engraving, for Wyre Business Awards",Event Hospitality,
Wyre Council,http://opendatacommunities.org/doc/district-council/wyre,29/09/2023,People and Places,Cultural and Related Services,132A,Ignorant peasants ltd,11/09/2023,PE152736,550.00,0.00,volunteer celebration,Event Hospitality,
Wyre Council,http://opendatacommunities.org/doc/district-council/wyre,29/09/2023,People and Places,Support Services,135B,Preston City Council,11/09/2023,PE150693,8.75,0.00,Ne invoice due to incorrec vat on original invoice - business cards for wyre council officer job no 1208,Event Support,
Wyre Council,http://opendatacommunities.org/doc/district-council/wyre,29/09/2023,Resources,Cultural and Related Services,132A,Amazon Business,04/09/2023,RS152597,8.32,0.00,22cm folding step(For use with giant deckchair at events),Exhibitions and Events,
Wyre Council,http://opendatacommunities.org/doc/district-council/wyre,29/09/2023,People and Places,Environmental Services,132B,NWIFCA      N W Inshore Fisheries and Conservation,27/09/2023,PE153051,203.00,0.00,Shellfish Collections sept 23- Mar24,Food and Drug Etc Samples,
Wyre Council,http://opendatacommunities.org/doc/district-council/wyre,29/09/2023,People and Places,Environmental Services,132B,NWIFCA      N W Inshore Fisheries and Conservation,08/09/2023,PE152701,623.00,0.00,Shellfish Collections sept 23- Mar24,Food and Drug Etc Samples,
Wyre Council,http://opendatacommunities.org/doc/district-council/wyre,29/09/2023,People and Places,Environmental Services,132B,NWIFCA      N W Inshore Fisheries and Conservation,07/09/2023,PE152394,623.00,0.00,SHELL FISH COLLECTION  22CD AUGUST 2023,Food and Drug Etc Samples,
Wyre Council,http://opendatacommunities.org/doc/district-council/wyre,29/09/2023,People and Places,Support Services,135B,Allstar Business Solutions LTD,20/09/2023,PE152625,53.90,0.00,Fuel to 29/08/23,Fuel,
Wyre Council,http://opendatacommunities.org/doc/district-council/wyre,29/09/2023,People and Places,Support Services,135B,Allstar Business Solutions LTD,14/09/2023,PE152625,362.47,0.00,Fuel to 29/08/23,Fuel,
Wyre Council,http://opendatacommunities.org/doc/district-council/wyre,29/09/2023,People and Places,Support Services,135B,Allstar Business Solutions LTD,21/09/2023,PE152989,248.26,0.00,Fuel to 14/09/23,Fuel,
Wyre Council,http://opendatacommunities.org/doc/district-council/wyre,29/09/2023,People and Places,Support Services,135B,Allstar Business Solutions LTD,14/09/2023,PE152625,311.27,0.00,Fuel to 29/08/23,Fuel,
Wyre Council,http://opendatacommunities.org/doc/district-council/wyre,29/09/2023,People and Places,Support Services,135B,Allstar Business Solutions LTD,21/09/2023,PE152989,272.05,0.00,Fuel to 14/09/23,Fuel,
Wyre Council,http://opendatacommunities.org/doc/district-council/wyre,29/09/2023,People and Places,Cultural and Related Services,132A,British Gas,21/09/2023,PE153016,121.82,0.00,"603764149 - Victoria Road East, Thornton Little Theatre 04/08/23 to 30/08/23",Gas,
Wyre Council,http://opendatacommunities.org/doc/district-council/wyre,29/09/2023,People and Places,Planning and Development Servs,132C,British Gas,21/09/2023,PE153016,1025.66,0.00,"603764162 - Adelaide Street, Wyre  Borough Council 01/07/23 to  31/08/23",Gas,
Wyre Council,http://opendatacommunities.org/doc/district-council/wyre,29/09/2023,People and Places,Planning and Development Servs,132C,British Gas,21/09/2023,PE153016,-551.16,0.00,"603764162 -  Adelaide Street, Wyre Borough Council  credit",Gas,
Wyre Council,http://opendatacommunities.org/doc/district-council/wyre,29/09/2023,People and Places,Support Services,135B,British Gas,21/09/2023,PE153016,1537.69,0.00,"603764151 - Wyre Borough Council,  Wyre Civic Centre 01/08/23 to  31/08/23",Gas,
Wyre Council,http://opendatacommunities.org/doc/district-council/wyre,29/09/2023,People and Places,Planning and Development Servs,132C,British Gas,21/09/2023,PE153016,58.22,0.00,"603764150 - Copse Road, Copse Road  Depot 01/08/23 to 31/08/23",Gas,
Wyre Council,http://opendatacommunities.org/doc/district-council/wyre,29/09/2023,People and Places,"Cultural, Environ and Planning",137B,RH Property Management Ltd,07/09/2023,PE152712,8379.00,0.00,"Fleetwood HSHAZ Grant: Former HSBC Bank, Albert St, Fleetwood, FY7 6AH",Grants and Advances,
Wyre Council,http://opendatacommunities.org/doc/district-council/wyre,29/09/2023,People and Places,Cultural and Related Services,132A,VISIT ENGLAND ASSESSMENT SERVICES AT THE AA,21/09/2023,PE153019,620.76,0.00,Visit England member renewal,Green Flag and Other Awards,
Wyre Council,http://opendatacommunities.org/doc/district-council/wyre,29/09/2023,People and Places,Environmental Services,132B,SOCOTEC UK LTD,28/09/2023,PE153270,1167.00,0.00,Sample testing 4 bulk bags of fly tipped waste,Hazardous Waste Disposal,
Wyre Council,http://opendatacommunities.org/doc/district-council/wyre,29/09/2023,People and Places,Cultural and Related Services,132A,Tina Dempsey,29/09/2023,PE151857,1200.00,0.00,For the contribution of art work and community engagement towards the production of the Little Book Of Hope - Inspired Minds arts and health project.   400 to be invoiced between April and June 2023 on completion of the engagement work within communities,Healthier Fleetwood Events & Activities,
Wyre Council,http://opendatacommunities.org/doc/district-council/wyre,29/09/2023,Resources,Support Services,135B,Konica Minolta Business Solutions UK LTD,13/09/2023,RS152738,723.45,0.00,1165408088,Hire of Tools or Equipment,
Wyre Council,http://opendatacommunities.org/doc/district-council/wyre,29/09/2023,People and Places,Environmental Services,132B,Poulton Pets LTD,15/09/2023,PE152932,1591.50,0.00,Provision of stray dog kennelling service 2023/24,Impounded Dogs Costs,
Wyre Council,http://opendatacommunities.org/doc/district-council/wyre,29/09/2023,People and Places,Support Services,135B,Daisy Communications LTD,08/09/2023,PE152716,80.86,0.00,Service Charges 01/09/23 to 30/09/23,Internet and Telephone Charges,
Wyre Council,http://opendatacommunities.org/doc/district-council/wyre,29/09/2023,Resources,Support Services,135B,Daisy Communications LTD,06/09/2023,RS151775,19.39,0.00,Calls and Service Charges to 31/07/23,Internet and Telephone Charges,
Wyre Council,http://opendatacommunities.org/doc/district-council/wyre,29/09/2023,People and Places,Support Services,135B,Daisy Communications LTD,08/09/2023,PE152716,19.39,0.00,Service Charges 01/09/23 to 30/09/23,Internet and Telephone Charges,
Wyre Council,http://opendatacommunities.org/doc/district-council/wyre,29/09/2023,Resources,Cultural and Related Services,132A,Daisy Communications LTD,06/09/2023,RS151775,33.25,0.00,Calls and Service Charges to 31/07/23,Internet and Telephone Charges,
Wyre Council,http://opendatacommunities.org/doc/district-council/wyre,29/09/2023,Resources,Corporate and Democratic Core,131A,Daisy Communications LTD,06/09/2023,RS151775,13.87,0.00,Calls and Service Charges to 31/07/23,Internet and Telephone Charges,
Wyre Council,http://opendatacommunities.org/doc/district-council/wyre,29/09/2023,People and Places,Cultural and Related Services,132A,Daisy Communications LTD,08/09/2023,PE152716,13.87,0.00,Service Charges 01/09/23 to 30/09/23,Internet and Telephone Charges,
Wyre Council,http://opendatacommunities.org/doc/district-council/wyre,29/09/2023,People and Places,Cultural and Related Services,132A,Daisy Communications LTD,08/09/2023,PE152716,33.25,0.00,Service Charges 01/09/23 to 30/09/23,Internet and Telephone Charges,
Wyre Council,http://opendatacommunities.org/doc/district-council/wyre,29/09/2023,People and Places,Corporate and Democratic Core,131A,Daisy Communications LTD,08/09/2023,PE152716,13.87,0.00,Service Charges 01/09/23 to 30/09/23,Internet and Telephone Charges,
Wyre Council,http://opendatacommunities.org/doc/district-council/wyre,29/09/2023,Resources,Cultural and Related Services,132A,Daisy Communications LTD,06/09/2023,RS151775,13.87,0.00,Calls and Service Charges to 31/07/23,Internet and Telephone Charges,
Wyre Council,http://opendatacommunities.org/doc/district-council/wyre,29/09/2023,Resources,Support Services,135B,Daisy Communications LTD,06/09/2023,RS151775,80.86,0.00,Calls and Service Charges to 31/07/23,Internet and Telephone Charges,
Wyre Council,http://opendatacommunities.org/doc/district-council/wyre,29/09/2023,People and Places,Support Services,135B,8x8 UK Limited,06/09/2023,PE152641,251.00,0.00,Additional Local Number,Internet and Telephone Charges,
Wyre Council,http://opendatacommunities.org/doc/district-council/wyre,29/09/2023,People and Places,Support Services,135B,8x8 UK Limited,06/09/2023,PE152641,1117.20,0.00,SVC : X Series - X1 UK Gov,Internet and Telephone Charges,
Wyre Council,http://opendatacommunities.org/doc/district-council/wyre,29/09/2023,People and Places,Support Services,135B,8x8 UK Limited,06/09/2023,PE152641,218.40,0.00,X Series - X2,Internet and Telephone Charges,
Wyre Council,http://opendatacommunities.org/doc/district-council/wyre,29/09/2023,People and Places,Support Services,135B,8x8 UK Limited,06/09/2023,PE152641,580.00,0.00,X Series - X4,Internet and Telephone Charges,
Wyre Council,http://opendatacommunities.org/doc/district-council/wyre,29/09/2023,People and Places,Public Transport,133G,Andrew Signs LTD,01/09/2023,PE152590,159.00,0.00,SIGNS FOR  BOB AND MARK JULY 2023,Landing Stage Maintenance,
Wyre Council,http://opendatacommunities.org/doc/district-council/wyre,29/09/2023,People and Places,Planning and Development Servs,132C,Kings Chambers,22/09/2023,PE153101,1125.00,0.00,"Legal advice The Cube, Breck Road, Poulton Le Fylde Enforcment 22/00071/NOCOMP - Philip Robson",Legal Fees,
Wyre Council,http://opendatacommunities.org/doc/district-council/wyre,29/09/2023,Resources,Support Services,135B,Forbes Solicitors,13/09/2023,RS152875,1562.50,0.00,Legal fees 29/06/23 - 26/07/23,Legal Fees,
Wyre Council,http://opendatacommunities.org/doc/district-council/wyre,29/09/2023,People and Places,Environmental Services,132B,Lancashire DAF,25/09/2023,PE153023,91.00,0.00,MOT Test fee,Licences/MOT Certificates,
Wyre Council,http://opendatacommunities.org/doc/district-council/wyre,29/09/2023,People and Places,Environmental Services,132B,Lancashire DAF,25/09/2023,PE153023,45.00,0.00,lane fee,Licences/MOT Certificates,
Wyre Council,http://opendatacommunities.org/doc/district-council/wyre,29/09/2023,People and Places,Planning and Development Servs,132C,EAS Electrical Mechanical,20/09/2023,PE153047,108.00,0.00,"Fleetwood Market: investigate sockets tripped.  Found RCBO and switched back on, tested and satisfactory.  Reason for trip unknown",Maintenance of Tools or Equipment,
Wyre Council,http://opendatacommunities.org/doc/district-council/wyre,29/09/2023,People and Places,Parking Services,133F,CHIPSIDE LTD,13/09/2023,PE152900,15.00,0.00,Provide 2 no. 500 Mb SIMS for Wyre handheld units - 1 April 2023 - 31 March 2024,Maintenance of Tools or Equipment,
Wyre Council,http://opendatacommunities.org/doc/district-council/wyre,29/09/2023,People and Places,Parking Services,133F,FLOWBIRD SMART CITY UK LTD,21/09/2023,PE153064,423.50,0.00,Maintenance of CWT pay and display machines as per your quotation PS/43/0663,Maintenance of Tools or Equipment,
Wyre Council,http://opendatacommunities.org/doc/district-council/wyre,29/09/2023,People and Places,Highways,133B,Dr Tree Surgeons,29/09/2023,PE153290,850.00,0.00,Quote Number: 834 Quote Ref: Highway quotes1 Pedestrian alley � side of 34 Garstang Road East � young twin stemelm tree has outgrown the hedge and is filling the gap betweenhouses. Please could you reduce to below the current hedge height �desir,Maintenance of Trees and Shrubs,
Wyre Council,http://opendatacommunities.org/doc/district-council/wyre,29/09/2023,People and Places,Environmental Services,132B,Andrew Signs LTD,27/09/2023,PE152590,530.00,0.00,SIGNS FOR  BOB AND MARK JULY 2023,Materials and Consumables,
Wyre Council,http://opendatacommunities.org/doc/district-council/wyre,29/09/2023,People and Places,Support Services,135B,EK Motors Factors LTD,15/09/2023,PE152963,121.99,0.00,Parts,Materials and Consumables,
Wyre Council,http://opendatacommunities.org/doc/district-council/wyre,29/09/2023,People and Places,Support Services,135B,EK Motors Factors LTD,15/09/2023,PE152962,11.07,0.00,Parts,Materials and Consumables,
Wyre Council,http://opendatacommunities.org/doc/district-council/wyre,29/09/2023,People and Places,Support Services,135B,EK Motors Factors LTD,15/09/2023,PE152961,20.99,0.00,Parts,Materials and Consumables,
Wyre Council,http://opendatacommunities.org/doc/district-council/wyre,29/09/2023,People and Places,Support Services,135B,EK Motors Factors LTD,15/09/2023,PE152960,9.55,0.00,Parts,Materials and Consumables,
Wyre Council,http://opendatacommunities.org/doc/district-council/wyre,29/09/2023,People and Places,Support Services,135B,EK Motors Factors LTD,15/09/2023,PE152959,13.99,0.00,Parts,Materials and Consumables,
Wyre Council,http://opendatacommunities.org/doc/district-council/wyre,29/09/2023,People and Places,Support Services,135B,EK Motors Factors LTD,15/09/2023,PE152958,46.66,0.00,Parts,Materials and Consumables,
Wyre Council,http://opendatacommunities.org/doc/district-council/wyre,29/09/2023,People and Places,Support Services,135B,EK Motors Factors LTD,15/09/2023,PE152957,4.61,0.00,Parts,Materials and Consumables,
Wyre Council,http://opendatacommunities.org/doc/district-council/wyre,29/09/2023,People and Places,Support Services,135B,Key Engineering & Hygiene Supplies LTD,04/09/2023,PE152629,344.40,0.00,"Supply Heavy duty black bags as per quotation 20327Delivery to Wyre Council, Copse Road Depot, Copse Road, Fleetwood, FY7 6RP",Materials and Consumables,
Wyre Council,http://opendatacommunities.org/doc/district-council/wyre,29/09/2023,People and Places,Support Services,135B,MC & MA Stewart (Haulage) LTD,20/09/2023,PE153040,610.00,0.00,"Supply and deliver Grade 1 soil 30.50 per tonne based on 20 / 30 tonne loadsOrder a 20 Ton load to be delivered to Copse Road Depot, Copse Road, Fleetwood, FY7 6RP Please could you let me know a delivery date then someone can be around to meet wi",Materials and Consumables,
Wyre Council,http://opendatacommunities.org/doc/district-council/wyre,29/09/2023,Resources,Housing General Fund,134A,Solon Security LTD,06/09/2023,RS152687,1296.40,0.00,payment of invoice - SI23008592,Materials and Consumables,
Wyre Council,http://opendatacommunities.org/doc/district-council/wyre,29/09/2023,People and Places,Environmental Services,132B,Probrush T/A Northern Municipal Spares LTD,07/09/2023,PE152163,3672.00,0.00,Supply 500/850mm blue 2.8mm Poly & 3.3mm Wire Universal disk  71107/1HD,Materials and Consumables,
Wyre Council,http://opendatacommunities.org/doc/district-council/wyre,29/09/2023,People and Places,Environmental Services,132B,Probrush T/A Northern Municipal Spares LTD,07/09/2023,PE152163,3000.00,0.00,515/850mm blue 2.4mm Poly & 3.3mm Wire 3 Row Brush for HAKO HAK-1147,Materials and Consumables,
Wyre Council,http://opendatacommunities.org/doc/district-council/wyre,29/09/2023,Resources,Housing General Fund,134A,HUWS GRAY LTD,06/09/2023,RS152686,330.00,0.00,Part payment of invoice - NO - IF257209 - Mopsticks,Materials and Consumables,
Wyre Council,http://opendatacommunities.org/doc/district-council/wyre,29/09/2023,People and Places,Environmental Services,132B,HUWS GRAY LTD,21/09/2023,PE153078,47.94,0.00,2023/2024 Direct Works/ Sea Wall Engineer purchases for works around the Borough,Materials and Consumables,
Wyre Council,http://opendatacommunities.org/doc/district-council/wyre,29/09/2023,People and Places,Environmental Services,132B,HUWS GRAY LTD,22/09/2023,PE153089,493.25,0.00,2023/2024 Direct Works/ Sea Wall Engineer purchases for works around the Borough,Materials and Consumables,
Wyre Council,http://opendatacommunities.org/doc/district-council/wyre,29/09/2023,People and Places,Environmental Services,132B,HUWS GRAY LTD,01/09/2023,PE152489,48.52,0.00,2023/2024 Direct Works/ Sea Wall Engineer purchases for works around the Borough,Materials and Consumables,
Wyre Council,http://opendatacommunities.org/doc/district-council/wyre,29/09/2023,Resources,Environmental Services,132B,HUWS GRAY LTD,06/09/2023,RS152686,179.92,0.00,2023/2024 Direct Works/ Sea Wall Engineer purchases for works around the Borough,Materials and Consumables,
Wyre Council,http://opendatacommunities.org/doc/district-council/wyre,29/09/2023,People and Places,Cultural and Related Services,132A,HUWS GRAY LTD,05/09/2023,PE152069,87.96,0.00,top dressing 1 ton,Materials and Consumables,
Wyre Council,http://opendatacommunities.org/doc/district-council/wyre,29/09/2023,People and Places,Environmental Services,132B,HUWS GRAY LTD,14/09/2023,PE152499,67.00,0.00,10 heavy duty bags  Street Cleansing,Materials and Consumables,
Wyre Council,http://opendatacommunities.org/doc/district-council/wyre,29/09/2023,People and Places,Support Services,135B,HUWS GRAY LTD,14/09/2023,PE152499,117.60,0.00,Materials  keith urwin,Materials and Consumables,
Wyre Council,http://opendatacommunities.org/doc/district-council/wyre,29/09/2023,People and Places,Support Services,135B,HUWS GRAY LTD,14/09/2023,PE152499,76.89,0.00,Materials Keith Urwin,Materials and Consumables,
Wyre Council,http://opendatacommunities.org/doc/district-council/wyre,29/09/2023,People and Places,Environmental Services,132B,HUWS GRAY LTD,22/09/2023,PE153091,59.75,0.00,2023/2024 Direct Works/ Sea Wall Engineer purchases for works around the Borough,Materials and Consumables,
Wyre Council,http://opendatacommunities.org/doc/district-council/wyre,29/09/2023,People and Places,Support Services,135B,HUWS GRAY LTD,28/09/2023,PE153216,53.02,0.00,Materials  Keith Urwin,Materials and Consumables,
Wyre Council,http://opendatacommunities.org/doc/district-council/wyre,29/09/2023,People and Places,Support Services,135B,HUWS GRAY LTD,26/09/2023,PE153217,74.48,0.00,4ft wooden marking out pegs x 28 at 2.66 per peg + VAT for collection from Huws Gray Ltd 74.48 VAT at 14.89,Materials and Consumables,
Wyre Council,http://opendatacommunities.org/doc/district-council/wyre,29/09/2023,People and Places,Support Services,135B,HUWS GRAY LTD,07/09/2023,PE152070,150.00,0.00,20 Hanson fast set postfix R16126 Memorial Park goal posts,Materials and Consumables,
Wyre Council,http://opendatacommunities.org/doc/district-council/wyre,29/09/2023,People and Places,Support Services,135B,HUWS GRAY LTD,22/09/2023,PE153012,35.91,0.00,items for Playgrounds ( keith urwin ) already received  coach screws/penny washers/round post/pozidrive screwdriver bits+ rubble bags,Materials and Consumables,
Wyre Council,http://opendatacommunities.org/doc/district-council/wyre,29/09/2023,People and Places,Support Services,135B,HUWS GRAY LTD,22/09/2023,PE153011,103.59,0.00,items as collected and invoiced  for keith urwin playground work cloths/ acrylic primer/sealer/ hazard tape/ drill set/impact drill set/ paintbrushes,Materials and Consumables,
Wyre Council,http://opendatacommunities.org/doc/district-council/wyre,29/09/2023,People and Places,Environmental Services,132B,HUWS GRAY LTD,29/09/2023,PE153304,254.75,0.00,2023/2024 Direct Works/ Sea Wall Engineer purchases for works around the Borough,Materials and Consumables,
Wyre Council,http://opendatacommunities.org/doc/district-council/wyre,29/09/2023,People and Places,Environmental Services,132B,HUWS GRAY LTD,04/09/2023,PE152071,14.99,0.00,2023/2024 Direct Works/ Sea Wall Engineer purchases for works around the Borough,Materials and Consumables,
Wyre Council,http://opendatacommunities.org/doc/district-council/wyre,29/09/2023,People and Places,Environmental Services,132B,HUWS GRAY LTD,04/09/2023,PE152601,144.39,0.00,2023/2024 Direct Works/ Sea Wall Engineer purchases for works around the Borough,Materials and Consumables,
Wyre Council,http://opendatacommunities.org/doc/district-council/wyre,29/09/2023,People and Places,Cultural and Related Services,132A,HUWS GRAY LTD,20/09/2023,PE153060,89.33,0.00,screws for Fleetwood board walk,Materials and Consumables,
Wyre Council,http://opendatacommunities.org/doc/district-council/wyre,29/09/2023,People and Places,Cultural and Related Services,132A,HUWS GRAY LTD,20/09/2023,PE153059,90.29,0.00,Wood for Fleetwood board walk,Materials and Consumables,
Wyre Council,http://opendatacommunities.org/doc/district-council/wyre,29/09/2023,People and Places,Housing General Fund,134A,HUWS GRAY LTD,14/09/2023,PE152499,16.50,0.00,Part payment of invoice no  - IF024205,Materials and Consumables,
Wyre Council,http://opendatacommunities.org/doc/district-council/wyre,29/09/2023,People and Places,Housing General Fund,134A,HUWS GRAY LTD,14/09/2023,PE152499,109.18,0.00,Brush & handle  Anti-climb paint Care & Repair,Materials and Consumables,
Wyre Council,http://opendatacommunities.org/doc/district-council/wyre,29/09/2023,People and Places,Support Services,135B,Amazon Business,20/09/2023,PE153029,45.84,0.00,Weed spraying books,Materials and Consumables,
Wyre Council,http://opendatacommunities.org/doc/district-council/wyre,29/09/2023,Resources,Support Services,135B,Amazon Business,04/09/2023,RS152596,7.14,0.00,"Haus Projekt Reusable Cable Ties, 100 x Black 150x12mm Adjustable Hook and Loop Cable Management Straps, Cable Tidy Under Desk Organiser, Garden Tree Plant Tie Wraps, Cable Straps, PC, TV Wire Tidy.",Materials and Consumables,
Wyre Council,http://opendatacommunities.org/doc/district-council/wyre,29/09/2023,Resources,Housing General Fund,134A,J A DICKENS LIMITED,25/09/2023,RS153149,147.00,0.00,REDACT,Minor Adaptations,
Wyre Council,http://opendatacommunities.org/doc/district-council/wyre,29/09/2023,Resources,Housing General Fund,134A,J A DICKENS LIMITED,25/09/2023,RS153144,190.00,0.00,REDACT,Minor Adaptations,
Wyre Council,http://opendatacommunities.org/doc/district-council/wyre,29/09/2023,Resources,Housing General Fund,134A,J A DICKENS LIMITED,25/09/2023,RS153144,118.00,0.00,REDACT,Minor Adaptations,
Wyre Council,http://opendatacommunities.org/doc/district-council/wyre,29/09/2023,Resources,Housing General Fund,134A,J A DICKENS LIMITED,25/09/2023,RS153145,180.00,0.00,REDACT,Minor Adaptations,
Wyre Council,http://opendatacommunities.org/doc/district-council/wyre,29/09/2023,Resources,Housing General Fund,134A,J A DICKENS LIMITED,25/09/2023,RS153145,174.00,0.00,REDACT,Minor Adaptations,
Wyre Council,http://opendatacommunities.org/doc/district-council/wyre,29/09/2023,Resources,Housing General Fund,134A,J A DICKENS LIMITED,25/09/2023,RS153146,200.00,0.00,REDACT,Minor Adaptations,
Wyre Council,http://opendatacommunities.org/doc/district-council/wyre,29/09/2023,Resources,Housing General Fund,134A,J A DICKENS LIMITED,25/09/2023,RS153146,262.00,0.00,REDACT,Minor Adaptations,
Wyre Council,http://opendatacommunities.org/doc/district-council/wyre,29/09/2023,Resources,Housing General Fund,134A,J A DICKENS LIMITED,25/09/2023,RS153147,360.00,0.00,REDACT,Minor Adaptations,
Wyre Council,http://opendatacommunities.org/doc/district-council/wyre,29/09/2023,Resources,Housing General Fund,134A,J A DICKENS LIMITED,25/09/2023,RS153147,420.00,0.00,REDACT,Minor Adaptations,
Wyre Council,http://opendatacommunities.org/doc/district-council/wyre,29/09/2023,Resources,Housing General Fund,134A,J A DICKENS LIMITED,25/09/2023,RS153141,84.00,0.00,REDACT,Minor Adaptations,
Wyre Council,http://opendatacommunities.org/doc/district-council/wyre,29/09/2023,Resources,Housing General Fund,134A,J A DICKENS LIMITED,25/09/2023,RS153143,160.00,0.00,REDACT,Minor Adaptations,
Wyre Council,http://opendatacommunities.org/doc/district-council/wyre,29/09/2023,Resources,Housing General Fund,134A,J A DICKENS LIMITED,25/09/2023,RS153141,70.00,0.00,REDACT,Minor Adaptations,
Wyre Council,http://opendatacommunities.org/doc/district-council/wyre,29/09/2023,Resources,Housing General Fund,134A,J A DICKENS LIMITED,25/09/2023,RS153142,84.00,0.00,REDACT,Minor Adaptations,
Wyre Council,http://opendatacommunities.org/doc/district-council/wyre,29/09/2023,Resources,Housing General Fund,134A,J A DICKENS LIMITED,25/09/2023,RS153142,70.00,0.00,REDACT,Minor Adaptations,
Wyre Council,http://opendatacommunities.org/doc/district-council/wyre,29/09/2023,Resources,Housing General Fund,134A,J A DICKENS LIMITED,25/09/2023,RS153143,127.00,0.00,REDACT,Minor Adaptations,
Wyre Council,http://opendatacommunities.org/doc/district-council/wyre,29/09/2023,Resources,Housing General Fund,134A,J A DICKENS LIMITED,25/09/2023,RS153150,160.00,0.00,REDACT,Minor Adaptations,
Wyre Council,http://opendatacommunities.org/doc/district-council/wyre,29/09/2023,Resources,Housing General Fund,134A,J A DICKENS LIMITED,25/09/2023,RS153150,148.00,0.00,REDACT,Minor Adaptations,
Wyre Council,http://opendatacommunities.org/doc/district-council/wyre,29/09/2023,Resources,Housing General Fund,134A,J A DICKENS LIMITED,25/09/2023,RS153148,70.00,0.00,REDACT,Minor Adaptations,
Wyre Council,http://opendatacommunities.org/doc/district-council/wyre,29/09/2023,Resources,Housing General Fund,134A,J A DICKENS LIMITED,25/09/2023,RS153148,84.00,0.00,REDACT,Minor Adaptations,
Wyre Council,http://opendatacommunities.org/doc/district-council/wyre,29/09/2023,Resources,Housing General Fund,134A,J A DICKENS LIMITED,25/09/2023,RS153149,140.00,0.00,REDACT,Minor Adaptations,
Wyre Council,http://opendatacommunities.org/doc/district-council/wyre,29/09/2023,Resources,Current Assets,130B,SME HCI Ltd,01/09/2023,RS152592,1304.20,0.00,Invoice Number:- 146844,Miscellaneous Debits,
Wyre Council,http://opendatacommunities.org/doc/district-council/wyre,29/09/2023,Resources,Support Services,135B,VODAFONE LIMITED,06/09/2023,RS152459,49.68,0.00,Monthly Mobile Phone charges,Mobile Devices,
Wyre Council,http://opendatacommunities.org/doc/district-council/wyre,29/09/2023,Resources,Support Services,135B,VODAFONE LIMITED,06/09/2023,RS152459,180.00,0.00,Monthly Mobile Phone charges,Mobile Devices,
Wyre Council,http://opendatacommunities.org/doc/district-council/wyre,29/09/2023,Resources,Cultural and Related Services,132A,VODAFONE LIMITED,06/09/2023,RS152459,12.00,0.00,Monthly Mobile Phone charges,Mobile Devices,
Wyre Council,http://opendatacommunities.org/doc/district-council/wyre,29/09/2023,Resources,Cultural and Related Services,132A,VODAFONE LIMITED,06/09/2023,RS152459,24.00,0.00,Monthly Mobile Phone charges,Mobile Devices,
Wyre Council,http://opendatacommunities.org/doc/district-council/wyre,29/09/2023,Resources,Housing General Fund,134A,VODAFONE LIMITED,06/09/2023,RS152459,84.39,0.00,Monthly Mobile Phone charges,Mobile Devices,
Wyre Council,http://opendatacommunities.org/doc/district-council/wyre,29/09/2023,Resources,Central Services to the Public,131C,VODAFONE LIMITED,06/09/2023,RS152459,24.00,0.00,Monthly Mobile Phone charges,Mobile Devices,
Wyre Council,http://opendatacommunities.org/doc/district-council/wyre,29/09/2023,Resources,Support Services,135B,VODAFONE LIMITED,06/09/2023,RS152459,12.00,0.00,Monthly Mobile Phone charges,Mobile Devices,
Wyre Council,http://opendatacommunities.org/doc/district-council/wyre,29/09/2023,Resources,Environmental Services,132B,VODAFONE LIMITED,06/09/2023,RS152459,84.00,0.00,Monthly Mobile Phone charges,Mobile Devices,
Wyre Council,http://opendatacommunities.org/doc/district-council/wyre,29/09/2023,Resources,Support Services,135B,VODAFONE LIMITED,06/09/2023,RS152459,24.00,0.00,Monthly Mobile Phone charges,Mobile Devices,
Wyre Council,http://opendatacommunities.org/doc/district-council/wyre,29/09/2023,Resources,Cultural and Related Services,132A,VODAFONE LIMITED,06/09/2023,RS152459,24.00,0.00,Monthly Mobile Phone charges,Mobile Devices,
Wyre Council,http://opendatacommunities.org/doc/district-council/wyre,29/09/2023,People and Places,Cultural and Related Services,132A,VODAFONE LIMITED,20/09/2023,PE152987,12.00,0.00,Phone charges 01/08/23 to 31/08/23,Mobile Devices,
Wyre Council,http://opendatacommunities.org/doc/district-council/wyre,29/09/2023,People and Places,Support Services,135B,VODAFONE LIMITED,20/09/2023,PE152987,78.97,0.00,Phone charges 01/08/23 to 31/08/23,Mobile Devices,
Wyre Council,http://opendatacommunities.org/doc/district-council/wyre,29/09/2023,People and Places,Support Services,135B,VODAFONE LIMITED,20/09/2023,PE152987,156.00,0.00,Phone charges 01/08/23 to 31/08/23,Mobile Devices,
Wyre Council,http://opendatacommunities.org/doc/district-council/wyre,29/09/2023,People and Places,Housing General Fund,134A,VODAFONE LIMITED,20/09/2023,PE152987,23.61,0.00,Phone charges 01/08/23 to 31/08/23,Mobile Devices,
Wyre Council,http://opendatacommunities.org/doc/district-council/wyre,29/09/2023,People and Places,Housing General Fund,134A,VODAFONE LIMITED,20/09/2023,PE152987,72.00,0.00,Phone charges 01/08/23 to 31/08/23,Mobile Devices,
Wyre Council,http://opendatacommunities.org/doc/district-council/wyre,29/09/2023,People and Places,Housing General Fund,134A,VODAFONE LIMITED,20/09/2023,PE152987,32.00,0.00,Phone charges 01/08/23 to 31/08/23,Mobile Devices,
Wyre Council,http://opendatacommunities.org/doc/district-council/wyre,29/09/2023,People and Places,Support Services,135B,VODAFONE LIMITED,20/09/2023,PE152987,36.00,0.00,Phone charges 01/08/23 to 31/08/23,Mobile Devices,
Wyre Council,http://opendatacommunities.org/doc/district-council/wyre,29/09/2023,People and Places,Support Services,135B,VODAFONE LIMITED,20/09/2023,PE152987,292.00,0.00,Phone charges 01/08/23 to 31/08/23,Mobile Devices,
Wyre Council,http://opendatacommunities.org/doc/district-council/wyre,29/09/2023,People and Places,Environmental Services,132B,VODAFONE LIMITED,20/09/2023,PE152987,16.00,0.00,Phone charges 01/08/23 to 31/08/23,Mobile Devices,
Wyre Council,http://opendatacommunities.org/doc/district-council/wyre,29/09/2023,People and Places,Housing General Fund,134A,VODAFONE LIMITED,20/09/2023,PE152987,36.00,0.00,Phone charges 01/08/23 to 31/08/23,Mobile Devices,
Wyre Council,http://opendatacommunities.org/doc/district-council/wyre,29/09/2023,People and Places,Support Services,135B,VODAFONE LIMITED,20/09/2023,PE152987,36.00,0.00,Phone charges 01/08/23 to 31/08/23,Mobile Devices,
Wyre Council,http://opendatacommunities.org/doc/district-council/wyre,29/09/2023,People and Places,Support Services,135B,VODAFONE LIMITED,20/09/2023,PE152987,120.33,0.00,Phone charges 01/08/23 to 31/08/23,Mobile Devices,
Wyre Council,http://opendatacommunities.org/doc/district-council/wyre,29/09/2023,People and Places,Support Services,135B,VODAFONE LIMITED,20/09/2023,PE152987,24.00,0.00,Phone charges 01/08/23 to 31/08/23,Mobile Devices,
Wyre Council,http://opendatacommunities.org/doc/district-council/wyre,29/09/2023,People and Places,Support Services,135B,VODAFONE LIMITED,20/09/2023,PE152987,32.00,0.00,Phone charges 01/08/23 to 31/08/23,Mobile Devices,
Wyre Council,http://opendatacommunities.org/doc/district-council/wyre,29/09/2023,People and Places,Support Services,135B,VODAFONE LIMITED,20/09/2023,PE152987,36.00,0.00,Phone charges 01/08/23 to 31/08/23,Mobile Devices,
Wyre Council,http://opendatacommunities.org/doc/district-council/wyre,29/09/2023,People and Places,Support Services,135B,VODAFONE LIMITED,20/09/2023,PE152987,20.00,0.00,Phone charges 01/08/23 to 31/08/23,Mobile Devices,
Wyre Council,http://opendatacommunities.org/doc/district-council/wyre,29/09/2023,People and Places,Cultural and Related Services,132A,VODAFONE LIMITED,20/09/2023,PE152987,24.00,0.00,Phone charges 01/08/23 to 31/08/23,Mobile Devices,
Wyre Council,http://opendatacommunities.org/doc/district-council/wyre,29/09/2023,Resources,Corporate and Democratic Core,131A,VODAFONE LIMITED,06/09/2023,RS152459,12.00,0.00,Monthly Mobile Phone charges,Mobile Devices,
Wyre Council,http://opendatacommunities.org/doc/district-council/wyre,29/09/2023,People and Places,Support Services,135B,VODAFONE LIMITED,20/09/2023,PE152987,12.00,0.00,Phone charges 01/08/23 to 31/08/23,Mobile Devices,
Wyre Council,http://opendatacommunities.org/doc/district-council/wyre,29/09/2023,People and Places,Support Services,135B,VODAFONE LIMITED,20/09/2023,PE152987,48.00,0.00,Phone charges 01/08/23 to 31/08/23,Mobile Devices,
Wyre Council,http://opendatacommunities.org/doc/district-council/wyre,29/09/2023,People and Places,Support Services,135B,VODAFONE LIMITED,20/09/2023,PE152987,208.00,0.00,Phone charges 01/08/23 to 31/08/23,Mobile Devices,
Wyre Council,http://opendatacommunities.org/doc/district-council/wyre,29/09/2023,People and Places,Support Services,135B,VODAFONE LIMITED,20/09/2023,PE152987,169.06,0.00,Phone charges 01/08/23 to 31/08/23,Mobile Devices,
Wyre Council,http://opendatacommunities.org/doc/district-council/wyre,29/09/2023,People and Places,Support Services,135B,VODAFONE LIMITED,20/09/2023,PE152987,48.00,0.00,Phone charges 01/08/23 to 31/08/23,Mobile Devices,
Wyre Council,http://opendatacommunities.org/doc/district-council/wyre,29/09/2023,People and Places,Support Services,135B,VODAFONE LIMITED,20/09/2023,PE152987,80.56,0.00,Phone charges 01/08/23 to 31/08/23,Mobile Devices,
Wyre Council,http://opendatacommunities.org/doc/district-council/wyre,29/09/2023,People and Places,Cultural and Related Services,132A,VODAFONE LIMITED,20/09/2023,PE152987,12.00,0.00,Phone charges 01/08/23 to 31/08/23,Mobile Devices,
Wyre Council,http://opendatacommunities.org/doc/district-council/wyre,29/09/2023,Resources,Central Services to the Public,131C,VODAFONE LIMITED,06/09/2023,RS152459,12.00,0.00,Monthly Mobile Phone charges,Mobile Devices,
Wyre Council,http://opendatacommunities.org/doc/district-council/wyre,29/09/2023,Resources,Support Services,135B,VODAFONE LIMITED,06/09/2023,RS152459,80.00,0.00,Monthly Mobile Phone charges,Mobile Devices,
Wyre Council,http://opendatacommunities.org/doc/district-council/wyre,29/09/2023,Resources,Support Services,135B,VODAFONE LIMITED,06/09/2023,RS152459,168.00,0.00,Monthly Mobile Phone charges,Mobile Devices,
Wyre Council,http://opendatacommunities.org/doc/district-council/wyre,29/09/2023,Resources,Support Services,135B,VODAFONE LIMITED,06/09/2023,RS152459,48.00,0.00,Monthly Mobile Phone charges,Mobile Devices,
Wyre Council,http://opendatacommunities.org/doc/district-council/wyre,29/09/2023,People and Places,Corporate and Democratic Core,131A,VODAFONE LIMITED,20/09/2023,PE152987,12.00,0.00,Phone charges 01/08/23 to 31/08/23,Mobile Devices,
Wyre Council,http://opendatacommunities.org/doc/district-council/wyre,29/09/2023,Resources,Support Services,135B,VODAFONE LIMITED,06/09/2023,RS152459,20.00,0.00,Monthly Mobile Phone charges,Mobile Devices,
Wyre Council,http://opendatacommunities.org/doc/district-council/wyre,29/09/2023,Resources,Support Services,135B,VODAFONE LIMITED,06/09/2023,RS152459,32.00,0.00,Monthly Mobile Phone charges,Mobile Devices,
Wyre Council,http://opendatacommunities.org/doc/district-council/wyre,29/09/2023,Resources,Support Services,135B,VODAFONE LIMITED,06/09/2023,RS152459,36.33,0.00,Monthly Mobile Phone charges,Mobile Devices,
Wyre Council,http://opendatacommunities.org/doc/district-council/wyre,29/09/2023,People and Places,Central Services to the Public,131C,VODAFONE LIMITED,20/09/2023,PE152987,24.00,0.00,Phone charges 01/08/23 to 31/08/23,Mobile Devices,
Wyre Council,http://opendatacommunities.org/doc/district-council/wyre,29/09/2023,Resources,Housing General Fund,134A,VODAFONE LIMITED,06/09/2023,RS152459,36.00,0.00,Monthly Mobile Phone charges,Mobile Devices,
Wyre Council,http://opendatacommunities.org/doc/district-council/wyre,29/09/2023,Resources,Support Services,135B,VODAFONE LIMITED,06/09/2023,RS152459,36.00,0.00,Monthly Mobile Phone charges,Mobile Devices,
Wyre Council,http://opendatacommunities.org/doc/district-council/wyre,29/09/2023,Resources,Environmental Services,132B,VODAFONE LIMITED,06/09/2023,RS152459,16.30,0.00,Monthly Mobile Phone charges,Mobile Devices,
Wyre Council,http://opendatacommunities.org/doc/district-council/wyre,29/09/2023,Resources,Support Services,135B,VODAFONE LIMITED,06/09/2023,RS152459,120.00,0.00,Monthly Mobile Phone charges,Mobile Devices,
Wyre Council,http://opendatacommunities.org/doc/district-council/wyre,29/09/2023,Resources,Support Services,135B,VODAFONE LIMITED,06/09/2023,RS152459,60.00,0.00,Monthly Mobile Phone charges,Mobile Devices,
Wyre Council,http://opendatacommunities.org/doc/district-council/wyre,29/09/2023,Resources,Support Services,135B,VODAFONE LIMITED,06/09/2023,RS152459,292.33,0.00,Monthly Mobile Phone charges,Mobile Devices,
Wyre Council,http://opendatacommunities.org/doc/district-council/wyre,29/09/2023,Resources,Support Services,135B,VODAFONE LIMITED,06/09/2023,RS152459,24.00,0.00,Monthly Mobile Phone charges,Mobile Devices,
Wyre Council,http://opendatacommunities.org/doc/district-council/wyre,29/09/2023,Resources,Housing General Fund,134A,VODAFONE LIMITED,06/09/2023,RS152459,32.00,0.00,Monthly Mobile Phone charges,Mobile Devices,
Wyre Council,http://opendatacommunities.org/doc/district-council/wyre,29/09/2023,Resources,Support Services,135B,VODAFONE LIMITED,06/09/2023,RS152459,36.00,0.00,Monthly Mobile Phone charges,Mobile Devices,
Wyre Council,http://opendatacommunities.org/doc/district-council/wyre,29/09/2023,Resources,Support Services,135B,VODAFONE LIMITED,06/09/2023,RS152459,156.99,0.00,Monthly Mobile Phone charges,Mobile Devices,
Wyre Council,http://opendatacommunities.org/doc/district-council/wyre,29/09/2023,People and Places,Cultural and Related Services,132A,VODAFONE LIMITED,20/09/2023,PE152987,24.00,0.00,Phone charges 01/08/23 to 31/08/23,Mobile Devices,
Wyre Council,http://opendatacommunities.org/doc/district-council/wyre,29/09/2023,People and Places,Support Services,135B,VODAFONE LIMITED,20/09/2023,PE152987,168.00,0.00,Phone charges 01/08/23 to 31/08/23,Mobile Devices,
Wyre Council,http://opendatacommunities.org/doc/district-council/wyre,29/09/2023,Resources,Support Services,135B,VODAFONE LIMITED,06/09/2023,RS152459,211.33,0.00,Monthly Mobile Phone charges,Mobile Devices,
Wyre Council,http://opendatacommunities.org/doc/district-council/wyre,29/09/2023,Resources,Support Services,135B,VODAFONE LIMITED,06/09/2023,RS152459,12.00,0.00,Monthly Mobile Phone charges,Mobile Devices,
Wyre Council,http://opendatacommunities.org/doc/district-council/wyre,29/09/2023,People and Places,Support Services,135B,VODAFONE LIMITED,20/09/2023,PE152987,12.00,0.00,Phone charges 01/08/23 to 31/08/23,Mobile Devices,
Wyre Council,http://opendatacommunities.org/doc/district-council/wyre,29/09/2023,Resources,Support Services,135B,VODAFONE LIMITED,06/09/2023,RS152459,48.00,0.00,Monthly Mobile Phone charges,Mobile Devices,
Wyre Council,http://opendatacommunities.org/doc/district-council/wyre,29/09/2023,Resources,Cultural and Related Services,132A,VODAFONE LIMITED,06/09/2023,RS152459,12.00,0.00,Monthly Mobile Phone charges,Mobile Devices,
Wyre Council,http://opendatacommunities.org/doc/district-council/wyre,29/09/2023,People and Places,Support Services,135B,VODAFONE LIMITED,20/09/2023,PE152987,40.00,0.00,Phone charges 01/08/23 to 31/08/23,Mobile Devices,
Wyre Council,http://opendatacommunities.org/doc/district-council/wyre,29/09/2023,People and Places,Environmental Services,132B,VODAFONE LIMITED,20/09/2023,PE152987,84.00,0.00,Phone charges 01/08/23 to 31/08/23,Mobile Devices,
Wyre Council,http://opendatacommunities.org/doc/district-council/wyre,29/09/2023,People and Places,Support Services,135B,VODAFONE LIMITED,20/09/2023,PE152987,24.00,0.00,Phone charges 01/08/23 to 31/08/23,Mobile Devices,
Wyre Council,http://opendatacommunities.org/doc/district-council/wyre,29/09/2023,People and Places,Central Services to the Public,131C,VODAFONE LIMITED,20/09/2023,PE152987,12.00,0.00,Phone charges 01/08/23 to 31/08/23,Mobile Devices,
Wyre Council,http://opendatacommunities.org/doc/district-council/wyre,29/09/2023,People and Places,Highways,133B,HUWS GRAY LTD,21/09/2023,PE153010,6.99,0.00,Ronseal fence stain  Street name plates,Naming of Streets,
Wyre Council,http://opendatacommunities.org/doc/district-council/wyre,29/09/2023,Finance,Current Assets,130B,,12/09/2023,WPST00118406,3721.22,0.00,8/09/23 NNDR Refunds,NNDR Refunds,
Wyre Council,http://opendatacommunities.org/doc/district-council/wyre,29/09/2023,Finance,Current Assets,130B,,05/09/2023,WPST00117682,123082.35,0.00,01/09/23 NNDR Refunds,NNDR Refunds,
Wyre Council,http://opendatacommunities.org/doc/district-council/wyre,29/09/2023,Finance,Collection Fund Revenue Accts,138A,DEPARTMENT FOR COMMUNITIES AND LOCAL GOVERNMENT,21/09/2023,WPST00119242,1022749.00,0.00,DLUHC - Bus Rates Central Share 19/09/23,NNDR Tariff to Government,
Wyre Council,http://opendatacommunities.org/doc/district-council/wyre,29/09/2023,Finance,General Fund below the line,136A,DEPARTMENT FOR COMMUNITIES AND LOCAL GOVERNMENT,21/09/2023,WPST00119318,643840.00,0.00,19/09/2023R V B C GENERAL,NNDR Tariff to Government,
Wyre Council,http://opendatacommunities.org/doc/district-council/wyre,29/09/2023,People and Places,Support Services,135B,People Asset Management LTD,20/09/2023,PE152664,688.29,0.00,PAM Monthly PAYG charges - August 2023,Occupational Health Fees,
Wyre Council,http://opendatacommunities.org/doc/district-council/wyre,29/09/2023,Resources,Support Services,135B,Karen Openshaw Consultancy,29/09/2023,RS153302,520.00,0.00,Listening Services until March 22024,Occupational Health Fees,
Wyre Council,http://opendatacommunities.org/doc/district-council/wyre,29/09/2023,People and Places,Cultural and Related Services,132A,ELECTRIC BLUE UK,20/09/2023,PE153021,1725.00,0.00,"Provide, install and maintain 23 fast chargers to Wyre car parks as agreed under OZEV ORCs scheme.",Other Contributions,
Wyre Council,http://opendatacommunities.org/doc/district-council/wyre,29/09/2023,People and Places,Parking Services,133F,ELECTRIC BLUE UK,20/09/2023,PE153021,5606.25,0.00,"Provide, install and maintain 23 fast chargers to Wyre car parks as agreed under OZEV ORCs scheme.",Other Contributions,
Wyre Council,http://opendatacommunities.org/doc/district-council/wyre,29/09/2023,People and Places,Support Services,135B,ELECTRIC BLUE UK,20/09/2023,PE153021,5606.25,0.00,"Provide, install and maintain 23 fast chargers to Wyre car parks as agreed under OZEV ORCs scheme.",Other Contributions,
Wyre Council,http://opendatacommunities.org/doc/district-council/wyre,29/09/2023,People and Places,Cultural and Related Services,132A,ELECTRIC BLUE UK,20/09/2023,PE153021,5606.25,0.00,"Provide, install and maintain 23 fast chargers to Wyre car parks as agreed under OZEV ORCs scheme.",Other Contributions,
Wyre Council,http://opendatacommunities.org/doc/district-council/wyre,29/09/2023,People and Places,Parking Services,133F,ELECTRIC BLUE UK,20/09/2023,PE153021,24581.25,0.00,"Provide, install and maintain 23 fast chargers to Wyre car parks as agreed under OZEV ORCs scheme.",Other Contributions,
Wyre Council,http://opendatacommunities.org/doc/district-council/wyre,29/09/2023,People and Places,Environmental Services,132B,DANFO (UK) LTD,21/09/2023,PE153045,23387.86,0.00,Public Conveniences - Maintenance and Cleaning 2023/24,Other Establishments,
Wyre Council,http://opendatacommunities.org/doc/district-council/wyre,29/09/2023,People and Places,Environmental Services,132B,DANFO (UK) LTD,14/09/2023,PE152812,23387.86,0.00,Public Conveniences - Maintenance and Cleaning 2023/24,Other Establishments,
Wyre Council,http://opendatacommunities.org/doc/district-council/wyre,29/09/2023,Finance,Collection Fund Revenue Accts,138A,LANCASHIRE COUNTY COUNCIL,18/09/2023,WPST00118860,6061941.00,0.00,LCC 23/24 Council Tax,Other Local Authorities,
Wyre Council,http://opendatacommunities.org/doc/district-council/wyre,29/09/2023,Finance,Collection Fund Revenue Accts,138A,LANCASHIRE FIRE AUTHORITY,18/09/2023,WPST00118861,297674.00,0.00,LCC 22/23 Council Tax Surplus,Other Local Authorities,
Wyre Council,http://opendatacommunities.org/doc/district-council/wyre,29/09/2023,Finance,Collection Fund Revenue Accts,138A,LANCASHIRE FIRE AUTHORITY,18/09/2023,WPST00118864,316703.00,0.00,Lancs Fire 23/24 Council Tax,Other Local Authorities,
Wyre Council,http://opendatacommunities.org/doc/district-council/wyre,29/09/2023,Finance,Collection Fund Revenue Accts,138A,,18/09/2023,WPST00118865,15190.00,0.00,Lancs Fire 22/23 Council Tax Surplus,Other Local Authorities,
Wyre Council,http://opendatacommunities.org/doc/district-council/wyre,29/09/2023,Finance,Collection Fund Revenue Accts,138A,,18/09/2023,WPST00118868,967972.00,0.00,PCCL 23/24 Council Tax,Other Local Authorities,
Wyre Council,http://opendatacommunities.org/doc/district-council/wyre,29/09/2023,Finance,Collection Fund Revenue Accts,138A,,18/09/2023,WPST00118869,46481.00,0.00,PCCL 22/23 Council Tax Surplus,Other Local Authorities,
Wyre Council,http://opendatacommunities.org/doc/district-council/wyre,29/09/2023,Finance,Collection Fund Revenue Accts,138A,LANCASHIRE FIRE AUTHORITY,18/09/2023,WPST00118866,25569.00,0.00,Lancs Fire 23/24 Business Rates,Other Local Authorities,
Wyre Council,http://opendatacommunities.org/doc/district-council/wyre,29/09/2023,Finance,Collection Fund Revenue Accts,138A,LANCASHIRE COUNTY COUNCIL,18/09/2023,WPST00118862,230119.00,0.00,LCC 23/24 Business Rates,Other Local Authorities,
Wyre Council,http://opendatacommunities.org/doc/district-council/wyre,29/09/2023,People and Places,Parking Services,133F,Park Now Limited,18/09/2023,PE152793,809.74,0.00,RingGo Fees for 1 April 2023 - 31 March 2024 - service charges - text summary charges - text reminder charges - card processing fess,Other Parking Fees and Commission,
Wyre Council,http://opendatacommunities.org/doc/district-council/wyre,29/09/2023,People and Places,Environmental Services,132B,D Hollowell & Sons LTD,19/09/2023,PE153017,1032.00,0.00,REDACT,Other Rechargeable Services,
Wyre Council,http://opendatacommunities.org/doc/district-council/wyre,29/09/2023,People and Places,Parking Services,133F,SHARD SURFACING LTD,14/09/2023,PE152915,2071.17,0.00," Create a new, accessible Fire Muster Point approx 45m2 hard standing area between the two MUGA games courts. Ensure access is level with the car park and no step up/down to enable wheelchair users to access safely. All as per quotation 2023.153/ 22/6/23","Paths, Roads and Car Park Mtnce Annual",
Wyre Council,http://opendatacommunities.org/doc/district-council/wyre,29/09/2023,People and Places,Parking Services,133F,SHARD SURFACING LTD,14/09/2023,PE152915,1499.82,0.00," Create a new, accessible Fire Muster Point approx 45m2 hard standing area between the two MUGA games courts. Ensure access is level with the car park and no step up/down to enable wheelchair users to access safely. All as per quotation 2023.153/ 22/6/23","Paths, Roads and Car Park Mtnce Annual",
Wyre Council,http://opendatacommunities.org/doc/district-council/wyre,29/09/2023,Finance,Corporate and Democratic Core,131A,LANCASHIRE COUNTY COUNCIL,14/09/2023,WPST00118680,77199.58,0.00,Compensatory Added Years pension contrib,Pension Increase Act Payments,
Wyre Council,http://opendatacommunities.org/doc/district-council/wyre,29/09/2023,People and Places,Support Services,135B,Allstar Business Solutions LTD,14/09/2023,PE152625,457.98,0.00,Fuel to 29/08/23,Petrol,
Wyre Council,http://opendatacommunities.org/doc/district-council/wyre,29/09/2023,People and Places,Support Services,135B,Allstar Business Solutions LTD,21/09/2023,PE152989,573.54,0.00,Fuel to 14/09/23,Petrol,
Wyre Council,http://opendatacommunities.org/doc/district-council/wyre,29/09/2023,People and Places,Planning and Development Servs,132C,EAS Electrical Mechanical,28/09/2023,PE153286,282.00,0.00,Unit 16 Butts Close: EICR report,Planned Building Maintenance,
Wyre Council,http://opendatacommunities.org/doc/district-council/wyre,29/09/2023,Resources,Cultural and Related Services,132A,Lancashire County Council,14/09/2023,RS152903,88.52,0.00,29.06.2022 INS273533 Fleetwood Rossall Point Observatory - PAT,Planned Building Maintenance,
Wyre Council,http://opendatacommunities.org/doc/district-council/wyre,29/09/2023,Resources,Environmental Services,132B,Lancashire County Council,14/09/2023,RS152903,243.74,0.00,05.01.2023 INS294192 Poulton Le Fylde New Cemetery - Legionella Risk  Assessment,Planned Building Maintenance,
Wyre Council,http://opendatacommunities.org/doc/district-council/wyre,29/09/2023,Resources,Environmental Services,132B,Lancashire County Council,14/09/2023,RS152903,135.04,0.00,21.06.2022 INS273391 Wyre Council - Sea  Defence Depot - PAT,Planned Building Maintenance,
Wyre Council,http://opendatacommunities.org/doc/district-council/wyre,29/09/2023,Resources,Planning and Development Servs,132C,Lancashire County Council,14/09/2023,RS152903,442.84,0.00,02.03.2023 INS307687 Fleetwood Copse Road Depot - PAT,Planned Building Maintenance,
Wyre Council,http://opendatacommunities.org/doc/district-council/wyre,29/09/2023,Resources,Cultural and Related Services,132A,Lancashire County Council,14/09/2023,RS152903,196.04,0.00,03.01.2023 INS322896 Fleetwood The Mount Pavilion - Lightning Conductor,Planned Building Maintenance,
Wyre Council,http://opendatacommunities.org/doc/district-council/wyre,29/09/2023,Resources,Cultural and Related Services,132A,Lancashire County Council,14/09/2023,RS152903,174.00,0.00,19.10.2022 INS294198 Fleetwood The Esplande Kiosks 03 - Legionella Risk  Assessment,Planned Building Maintenance,
Wyre Council,http://opendatacommunities.org/doc/district-council/wyre,29/09/2023,Resources,Cultural and Related Services,132A,Lancashire County Council,14/09/2023,RS152903,174.00,0.00,19.10.2022 INS294199 Fleetwood The Esplande Kiosks 06 - Legionella Risk  Assessment,Planned Building Maintenance,
Wyre Council,http://opendatacommunities.org/doc/district-council/wyre,29/09/2023,Resources,Cultural and Related Services,132A,Lancashire County Council,14/09/2023,RS152903,174.00,0.00,19.10.2022 INS294772 Fleetwood The Esplande Kiosks 07 - Legionella Risk  Assessment,Planned Building Maintenance,
Wyre Council,http://opendatacommunities.org/doc/district-council/wyre,29/09/2023,Resources,Cultural and Related Services,132A,Lancashire County Council,14/09/2023,RS152903,243.74,0.00,28.10.2022 INS294062 Fleetwood The Mount Pavillion - Legionella Risk  Assessment,Planned Building Maintenance,
Wyre Council,http://opendatacommunities.org/doc/district-council/wyre,29/09/2023,Resources,Cultural and Related Services,132A,Lancashire County Council,14/09/2023,RS152903,371.34,0.00,18.10.2022 INS293885 Thornton Cleveleys Little Theatre - Legionella Risk  Assessment,Planned Building Maintenance,
Wyre Council,http://opendatacommunities.org/doc/district-council/wyre,29/09/2023,Resources,Cultural and Related Services,132A,Lancashire County Council,14/09/2023,RS152903,68.83,0.00,22.06.2022 INS273343 Garstang Tourist Information Centre - PAT,Planned Building Maintenance,
Wyre Council,http://opendatacommunities.org/doc/district-council/wyre,29/09/2023,Resources,Public Transport,133G,Lancashire County Council,14/09/2023,RS152903,371.34,0.00,20.12.2022 INS294189 Thornton Cleveleys Bus Station - Legionella Risk  Assessment,Planned Building Maintenance,
Wyre Council,http://opendatacommunities.org/doc/district-council/wyre,29/09/2023,Resources,Cultural and Related Services,132A,Lancashire County Council,14/09/2023,RS152903,243.74,0.00,22.12.2022 INS294059 Thornton Cleveleys Marsh Mill - Legionella Risk  Assessment,Planned Building Maintenance,
Wyre Council,http://opendatacommunities.org/doc/district-council/wyre,29/09/2023,Resources,Cultural and Related Services,132A,Lancashire County Council,14/09/2023,RS152903,43.47,0.00,30.01.2023 INS308260 Thornton Cleveleys Marsh Mill - PAT,Planned Building Maintenance,
Wyre Council,http://opendatacommunities.org/doc/district-council/wyre,29/09/2023,Resources,Planning and Development Servs,132C,Lancashire County Council,14/09/2023,RS152903,208.98,0.00,03.11.2022 INS294186 Thornton Cleveleys Unit 07 Croft Court - Legionella  Risk Assessment,Planned Building Maintenance,
Wyre Council,http://opendatacommunities.org/doc/district-council/wyre,29/09/2023,Resources,Planning and Development Servs,132C,Lancashire County Council,14/09/2023,RS152903,208.86,0.00,03.11.2022 INS294188 Thornton Cleveleys Unit 4 Croft Court - Legionella  Risk Assessment,Planned Building Maintenance,
Wyre Council,http://opendatacommunities.org/doc/district-council/wyre,29/09/2023,Resources,Planning and Development Servs,132C,Lancashire County Council,14/09/2023,RS152903,208.86,0.00,03.11.2022 INS294180 Thornton Cleveleys Unit 8 Croft Court - Legionella  Risk Assessment,Planned Building Maintenance,
Wyre Council,http://opendatacommunities.org/doc/district-council/wyre,29/09/2023,Resources,Planning and Development Servs,132C,Lancashire County Council,14/09/2023,RS152903,243.74,0.00,04.11.2022 INS294119 Thornton Cleveleys Unit 1 Croft Court - Legionella  Risk Assessment,Planned Building Maintenance,
Wyre Council,http://opendatacommunities.org/doc/district-council/wyre,29/09/2023,Resources,Planning and Development Servs,132C,Lancashire County Council,14/09/2023,RS152903,208.99,0.00,04.11.2022 INS294116 Thornton Cleveleys Unit 3 Croft Court - Legionella  Risk Assessment,Planned Building Maintenance,
Wyre Council,http://opendatacommunities.org/doc/district-council/wyre,29/09/2023,Resources,Planning and Development Servs,132C,Lancashire County Council,14/09/2023,RS152903,208.87,0.00,04.11.2022 INS294744 Thornton Cleveleys Unit 18 Croft Court - Legionella  Risk Assessment,Planned Building Maintenance,
Wyre Council,http://opendatacommunities.org/doc/district-council/wyre,29/09/2023,Resources,Planning and Development Servs,132C,Lancashire County Council,14/09/2023,RS152903,208.87,0.00,04.11.2022 INS294182 Thornton Cleveleys Unit 17 Croft Court - Legionella  Risk Assessment,Planned Building Maintenance,
Wyre Council,http://opendatacommunities.org/doc/district-council/wyre,29/09/2023,Resources,Planning and Development Servs,132C,Lancashire County Council,14/09/2023,RS152903,208.87,0.00,04.11.2022 INS294181 Thornton Cleveleys Unit 5 Croft Court - Legionella  Risk Assessment,Planned Building Maintenance,
Wyre Council,http://opendatacommunities.org/doc/district-council/wyre,29/09/2023,Resources,Planning and Development Servs,132C,Lancashire County Council,14/09/2023,RS152903,371.34,0.00,20.12.2022 INS294117 Fleetwood Market Hall - Legionella Risk Assessment,Planned Building Maintenance,
Wyre Council,http://opendatacommunities.org/doc/district-council/wyre,29/09/2023,People and Places,Cultural and Related Services,132A,COWLEY FIRE,13/09/2023,PE151937,405.11,0.00,"Riverside Rooms, Stanah Park: service fire equipment",Planned Building Maintenance,
Wyre Council,http://opendatacommunities.org/doc/district-council/wyre,29/09/2023,People and Places,Planning and Development Servs,132C,COWLEY FIRE,13/09/2023,PE151910,242.12,0.00,Market Hall Studio`s: Service fire equipment,Planned Building Maintenance,
Wyre Council,http://opendatacommunities.org/doc/district-council/wyre,29/09/2023,People and Places,Support Services,135B,RENTOKIL INITIAL UK LTD,20/09/2023,PE152776,709.35,0.00,R14120 - Civic 21/09 to 20/12/23 hygiene services,Planned Building Maintenance,
Wyre Council,http://opendatacommunities.org/doc/district-council/wyre,29/09/2023,People and Places,Cultural and Related Services,132A,RENTOKIL INITIAL UK LTD,20/09/2023,PE152776,247.30,0.00,R14123 -  Marine Hall 21/09/ to 20/12/23 hygiene services,Planned Building Maintenance,
Wyre Council,http://opendatacommunities.org/doc/district-council/wyre,29/09/2023,People and Places,Cultural and Related Services,132A,RENTOKIL INITIAL UK LTD,20/09/2023,PE152776,21.33,0.00,R14124,Planned Building Maintenance,
Wyre Council,http://opendatacommunities.org/doc/district-council/wyre,29/09/2023,People and Places,Planning and Development Servs,132C,RENTOKIL INITIAL UK LTD,20/09/2023,PE152776,243.04,0.00,R14121 - Copse Rd 21/09 to 20/12/23 hygiene services,Planned Building Maintenance,
Wyre Council,http://opendatacommunities.org/doc/district-council/wyre,29/09/2023,People and Places,Planning and Development Servs,132C,RENTOKIL INITIAL UK LTD,20/09/2023,PE152776,333.32,0.00,R14122 -  Fleetwood Market 21/09 to 20/12/23 hygiene services,Planned Building Maintenance,
Wyre Council,http://opendatacommunities.org/doc/district-council/wyre,29/09/2023,People and Places,"Cultural, Environ and Planning",137B,Wicksteed Leisure LTD,22/09/2023,PE153111,16159.31,0.00,"Supply and deliver as per quotation WLLQ7144-03 of a Crusader at Memorial Park, Fleetwood - Drawing ref: 16/89487 Iss 1","Plant, equipment and furniture",
Wyre Council,http://opendatacommunities.org/doc/district-council/wyre,29/09/2023,People and Places,Environmental Services,132B,The Columbaria Company,05/09/2023,PE151480,114.60,0.00,REDACT,Plaque Inscriptions and Furniture,
Wyre Council,http://opendatacommunities.org/doc/district-council/wyre,29/09/2023,People and Places,Environmental Services,132B,The Columbaria Company,26/09/2023,PE153156,191.50,0.00,REDACT,Plaque Inscriptions and Furniture,
Wyre Council,http://opendatacommunities.org/doc/district-council/wyre,29/09/2023,People and Places,Environmental Services,132B,The Columbaria Company,26/09/2023,PE153156,120.00,0.00,REDACT,Plaque Inscriptions and Furniture,
Wyre Council,http://opendatacommunities.org/doc/district-council/wyre,29/09/2023,People and Places,Environmental Services,132B,The Columbaria Company,21/09/2023,PE153077,107.00,0.00,REDACT,Plaque Inscriptions and Furniture,
Wyre Council,http://opendatacommunities.org/doc/district-council/wyre,29/09/2023,Finance,Central Services to the Public,131C,SANTANDER,08/09/2023,WPST00118135,773.70,0.00,06/09/2023SAN UK ACC RECEIVE,Plastic Cards Processing Fees,
Wyre Council,http://opendatacommunities.org/doc/district-council/wyre,29/09/2023,Resources,Corporate and Democratic Core,131A,SOUTH WEST COUNCILS,27/09/2023,RS153269,1295.00,0.00,ADSO Diploma in Local Democracy October 2023 cohort value 1295 plus VAT (discount for ADSO members and previous achievement of the ADSO Certificate),Post Entry/Professional Training,
Wyre Council,http://opendatacommunities.org/doc/district-council/wyre,29/09/2023,Resources,Central Services to the Public,131C,Critiqom LTD,20/09/2023,RS153034,459.99,0.00,Aug 23 Services Daily Bills,Postage,
Wyre Council,http://opendatacommunities.org/doc/district-council/wyre,29/09/2023,Resources,Central Services to the Public,131C,Critiqom LTD,06/09/2023,RS152689,1899.85,0.00,Aug 23 postage Daily Bills,Postage,
Wyre Council,http://opendatacommunities.org/doc/district-council/wyre,29/09/2023,Resources,Housing General Fund,134A,Critiqom LTD,06/09/2023,RS152689,157.35,0.00,Aug 23 postage Benefit Notifications,Postage,
Wyre Council,http://opendatacommunities.org/doc/district-council/wyre,29/09/2023,Resources,Housing General Fund,134A,Critiqom LTD,20/09/2023,RS153034,40.76,0.00,Aug 23 Services Benefit Notifications,Postage,
Wyre Council,http://opendatacommunities.org/doc/district-council/wyre,29/09/2023,Resources,Central Services to the Public,131C,Critiqom LTD,20/09/2023,RS153034,709.41,0.00,Aug 23 Services IQ post - Electoral,Postage,
Wyre Council,http://opendatacommunities.org/doc/district-council/wyre,29/09/2023,Resources,Support Services,135B,Critiqom LTD,20/09/2023,RS153034,905.02,0.00,Aug 23 Services IQ post - Off Serv Admin,Postage,
Wyre Council,http://opendatacommunities.org/doc/district-council/wyre,29/09/2023,Resources,Support Services,135B,Critiqom LTD,20/09/2023,RS153034,1.04,0.00,Aug 23 Services IQ post - Recovery,Postage,
Wyre Council,http://opendatacommunities.org/doc/district-council/wyre,29/09/2023,Resources,Support Services,135B,Critiqom LTD,20/09/2023,RS153034,230.40,0.00,Aug 23 Services Ctax Reminders,Postage,
Wyre Council,http://opendatacommunities.org/doc/district-council/wyre,29/09/2023,Resources,Support Services,135B,Critiqom LTD,20/09/2023,RS153034,5.91,0.00,Aug 23 Services NNDR Reminders,Postage,
Wyre Council,http://opendatacommunities.org/doc/district-council/wyre,29/09/2023,Resources,Support Services,135B,Critiqom LTD,20/09/2023,RS153034,149.39,0.00,Aug 23 Services Ctax Summons,Postage,
Wyre Council,http://opendatacommunities.org/doc/district-council/wyre,29/09/2023,Resources,Support Services,135B,Critiqom LTD,20/09/2023,RS153034,6.29,0.00,Aug 23 Services NNDR Summons,Postage,
Wyre Council,http://opendatacommunities.org/doc/district-council/wyre,29/09/2023,Resources,Support Services,135B,Critiqom LTD,06/09/2023,RS152689,727.24,0.00,Aug 23 postage Council Tax Reminders,Postage,
Wyre Council,http://opendatacommunities.org/doc/district-council/wyre,29/09/2023,Resources,Support Services,135B,Critiqom LTD,06/09/2023,RS152689,39.22,0.00,Aug 23 postage NNDR Reminders,Postage,
Wyre Council,http://opendatacommunities.org/doc/district-council/wyre,29/09/2023,Resources,Support Services,135B,Critiqom LTD,06/09/2023,RS152689,415.31,0.00,Aug 23 postage Council Tax Summons,Postage,
Wyre Council,http://opendatacommunities.org/doc/district-council/wyre,29/09/2023,Resources,Support Services,135B,Critiqom LTD,06/09/2023,RS152689,18.65,0.00,Aug 23 postage NNDR Summons,Postage,
Wyre Council,http://opendatacommunities.org/doc/district-council/wyre,29/09/2023,Resources,Support Services,135B,Critiqom LTD,20/09/2023,RS153034,881.02,0.00,Aug 23 Services IQ post - CC,Postage,
Wyre Council,http://opendatacommunities.org/doc/district-council/wyre,29/09/2023,Resources,Support Services,135B,Critiqom LTD,20/09/2023,RS153034,298.18,0.00,Aug 23 Services IQ Post - Planning,Postage,
Wyre Council,http://opendatacommunities.org/doc/district-council/wyre,29/09/2023,People and Places,Environmental Services,132B,PermiServ Ltd,12/09/2023,PE152815,788.46,0.00,"27,000 Production, Postage and Management of Green Waste  Subscription Stickers/Portal, as per Lancashire Agreement (Unit cost 1.02 per sticker)  Please leave PO open as it will be drawn-off each month  e-mail address: Rebecca Padgham rebecca@permiserv.c",Postage,
Wyre Council,http://opendatacommunities.org/doc/district-council/wyre,29/09/2023,Resources,Corporate and Democratic Core,131A,Preston City Council,11/09/2023,RS152490,136.04,0.00,New invoice raised due to incorrect vat code on original invoice - members diaries,Printing,
Wyre Council,http://opendatacommunities.org/doc/district-council/wyre,29/09/2023,People and Places,Parking Services,133F,FLOWBIRD SMART CITY UK LTD,15/09/2023,PE152927,1817.00,0.00,"Please provide 12 boxes HYBRID4 100mmsingle use, non-adhesive tickets, REVERSE WOUND, for use in CWT machines as per your quotation 070923LMWYRE01 - Express Delivery1817Delivery to Paul LongRoom 135Wyre Civic CentreBreck RoadPoulton-le-Fyl",Printing,
Wyre Council,http://opendatacommunities.org/doc/district-council/wyre,29/09/2023,Finance,Housing General Fund,134A,,08/09/2023,WPST00118138,8312.91,0.00,06/09/23 HB Payments Homes for Ukraine,Private Contractors,
Wyre Council,http://opendatacommunities.org/doc/district-council/wyre,29/09/2023,People and Places,Parking Services,133F,NSL Services Group,06/09/2023,PE152696,4719.60,0.00,Provide enforcement officer for Wyre Council car parks - 1 April 2023 - 31 March 2024,Private Contractors,
Wyre Council,http://opendatacommunities.org/doc/district-council/wyre,29/09/2023,People and Places,Support Services,135B,Agrovista UK LTD,27/09/2023,PE153257,2916.00,0.00,Works to weed and feed pitches at the following sites for the week beginning 15th May 2023 (early start if possible to be arranged with Roger BrocklebankDates could change weather dependant  We will have 5 sites in total. King Georges Fleetwood,Private Contractors,
Wyre Council,http://opendatacommunities.org/doc/district-council/wyre,29/09/2023,People and Places,Environmental Services,132B,Floating Pontoon Solutions,19/09/2023,PE153027,240.00,0.00,"Carry out strimming works to the watercourse banks at the following areas of Swan Drive, Thornton-Cleveleys:-Please note: A comprehensive bird nesting survey is to be carried out prior to the works.Northern section 60m x 2 (both sides) at 2 per m",Private Contractors,
Wyre Council,http://opendatacommunities.org/doc/district-council/wyre,29/09/2023,People and Places,Environmental Services,132B,Floating Pontoon Solutions,19/09/2023,PE153027,488.00,0.00,Southern section 122m x 2 (both sides) at 2 per metre488.00,Private Contractors,
Wyre Council,http://opendatacommunities.org/doc/district-council/wyre,29/09/2023,People and Places,Environmental Services,132B,Floating Pontoon Solutions,19/09/2023,PE153027,192.00,0.00,West section 48m x 2 (both sides) at 2 per metre192.00,Private Contractors,
Wyre Council,http://opendatacommunities.org/doc/district-council/wyre,29/09/2023,People and Places,Environmental Services,132B,Floating Pontoon Solutions,19/09/2023,PE153027,94.00,0.00,Pond area north 47m at 2 per metre94.00,Private Contractors,
Wyre Council,http://opendatacommunities.org/doc/district-council/wyre,29/09/2023,People and Places,Environmental Services,132B,Floating Pontoon Solutions,19/09/2023,PE153027,60.00,0.00,Pond area south 30m at 2 per metre60.00,Private Contractors,
Wyre Council,http://opendatacommunities.org/doc/district-council/wyre,29/09/2023,People and Places,Environmental Services,132B,Floating Pontoon Solutions,19/09/2023,PE153027,80.00,0.00,"Pond area west 40m at 2 per metre80.00 TOTAL:1,154.00",Private Contractors,
Wyre Council,http://opendatacommunities.org/doc/district-council/wyre,29/09/2023,People and Places,Environmental Services,132B,Floating Pontoon Solutions,20/09/2023,PE153032,3795.00,0.00,"Please carry out urgent necessary de-silting works at all areas of Swan Drive watercourse, Thornton-Cleveleys as discussed at site meeting:-Please note: These works are to be carried out at the end of the summer following the general bird nesting seas",Private Contractors,
Wyre Council,http://opendatacommunities.org/doc/district-council/wyre,29/09/2023,People and Places,Environmental Services,132B,T ROBSON AND SONS,25/09/2023,PE153152,700.00,0.00,"To load and haul bailed grass from the grasslands of Fleetwood and take to green waste at Iron House Farm, lancaster Road, Out Rawcliffe, Preston",Private Contractors,
Wyre Council,http://opendatacommunities.org/doc/district-council/wyre,29/09/2023,People and Places,Parking Services,133F,CHIPSIDE LTD,08/09/2023,PE152723,48.70,0.00,Wyre Council bank transaction fees 1 April 2023 - 31 March 2024,Private Contractors,
Wyre Council,http://opendatacommunities.org/doc/district-council/wyre,29/09/2023,People and Places,Parking Services,133F,CHIPSIDE LTD,11/09/2023,PE152794,11.15,0.00,provision of notice processing services 1 April 2023 - 31 March 2024; including postage,Private Contractors,
Wyre Council,http://opendatacommunities.org/doc/district-council/wyre,29/09/2023,People and Places,Parking Services,133F,CHIPSIDE LTD,19/09/2023,PE153025,807.33,0.00,provision of notice processing services 1 April 2023 - 31 March 2024; including postage,Private Contractors,
Wyre Council,http://opendatacommunities.org/doc/district-council/wyre,29/09/2023,People and Places,Cultural and Related Services,132A,Bramley Chippy Ltd T/A The Fish House,26/09/2023,PE153123,550.00,0.00,Fish & Chips - wedding at Marine Hall 23/9/23,Private Contractors,
Wyre Council,http://opendatacommunities.org/doc/district-council/wyre,29/09/2023,People and Places,Cultural and Related Services,132A,Fylde Coast YMCA,22/09/2023,PE153110,10630.00,0.00,Summer HAF 2023 Thornton YMCA,Project Costs,
Wyre Council,http://opendatacommunities.org/doc/district-council/wyre,29/09/2023,People and Places,Cultural and Related Services,132A,Fylde Coast YMCA,22/09/2023,PE153107,10630.00,0.00,Summer HAF 2023Thornton YMCA,Project Costs,
Wyre Council,http://opendatacommunities.org/doc/district-council/wyre,29/09/2023,People and Places,Cultural and Related Services,132A,Fylde Coast YMCA,22/09/2023,PE153107,-10630.00,0.00,Summer HAF 2023Thornton YMCA,Project Costs,
Wyre Council,http://opendatacommunities.org/doc/district-council/wyre,29/09/2023,Resources,Cultural and Related Services,132A,Fylde Coast YMCA,22/09/2023,RS153102,10630.00,0.00,Summer HAF 2023 Fleetwood YMCA,Project Costs,
Wyre Council,http://opendatacommunities.org/doc/district-council/wyre,29/09/2023,People and Places,Cultural and Related Services,132A,THORNTON CLEVELEYS SPORTS CLUB,25/09/2023,PE153082,1920.00,0.00,Summer HAF Food Provision - Thornton - Cleveleys Football Club,Project Costs,
Wyre Council,http://opendatacommunities.org/doc/district-council/wyre,29/09/2023,People and Places,Cultural and Related Services,132A,Play Inclusion Project,22/09/2023,PE153094,6762.50,0.00,Summer HAF 2023 Play Inclusion ProjectPart 2,Project Costs,
Wyre Council,http://opendatacommunities.org/doc/district-council/wyre,29/09/2023,Resources,Planning and Development Servs,132C,Cleveleys Town Centre Group Ltd,18/09/2023,RS152993,16000.00,0.00,Cleveleys Multiple Arts- This purchase order is from Aug-Dec,Project Costs,
Wyre Council,http://opendatacommunities.org/doc/district-council/wyre,29/09/2023,People and Places,Planning and Development Servs,132C,STANTEC UK LTD,21/09/2023,PE153085,19889.00,0.00,Garstang Town Centre Public Realm Improvements: Design & Public Consultation - Second Payment (UKSPF E01: Improvements To Town Centres & High Streets),Project Costs,
Wyre Council,http://opendatacommunities.org/doc/district-council/wyre,29/09/2023,People and Places,Cultural and Related Services,132A,The Fylde Rugby Community Foundation,21/09/2023,PE153084,2709.00,0.00,Summer HAF 2024 Club,Project Costs,
Wyre Council,http://opendatacommunities.org/doc/district-council/wyre,29/09/2023,People and Places,Cultural and Related Services,132A,Absolute Futbol Ltd,19/09/2023,PE152876,-58377.00,0.00,Summer HAF camp 2023 - Absolute Futbol,Project Costs,
Wyre Council,http://opendatacommunities.org/doc/district-council/wyre,29/09/2023,People and Places,Cultural and Related Services,132A,Absolute Futbol Ltd,19/09/2023,PE152877,58377.00,0.00,Summer HAF camp 2023 - Absolute Futbol,Project Costs,
Wyre Council,http://opendatacommunities.org/doc/district-council/wyre,29/09/2023,People and Places,Cultural and Related Services,132A,Absolute Futbol Ltd,08/09/2023,PE152728,58377.00,0.00,Summer HAF camp 2023 - Absolute Futbol,Project Costs,
Wyre Council,http://opendatacommunities.org/doc/district-council/wyre,29/09/2023,Resources,Planning and Development Servs,132C,Fleetwood Civic Society,20/09/2023,RS153044,1100.00,0.00,Blue Plaque Heritage Project,Project Costs,
Wyre Council,http://opendatacommunities.org/doc/district-council/wyre,29/09/2023,People and Places,Cultural and Related Services,132A,Educraft Limited,22/09/2023,PE153100,6750.00,0.00,Summer HAF 2023 - Educraft,Project Costs,
Wyre Council,http://opendatacommunities.org/doc/district-council/wyre,29/09/2023,People and Places,Cultural and Related Services,132A,The Little Sandwich Shop,21/09/2023,PE153049,920.00,0.00,Little Sandwich Shop Week 4 HAF Summer Camp,Project Costs,
Wyre Council,http://opendatacommunities.org/doc/district-council/wyre,29/09/2023,People and Places,Planning and Development Servs,132C,East Lancashire Chamber of Commerce & Industry,28/09/2023,PE153287,12000.00,0.00,"UKSPF project with Chamber Low Carbon - Supporting low carbon businesses in Wyre2023/2024  -  35,0002024/2025  -  35,000",Project Costs,
Wyre Council,http://opendatacommunities.org/doc/district-council/wyre,29/09/2023,People and Places,Cultural and Related Services,132A,Ignorant peasants ltd,22/09/2023,PE152737,150.00,0.00,Summer HAF Food (Xplorer Activity),Project Costs,
Wyre Council,http://opendatacommunities.org/doc/district-council/wyre,29/09/2023,People and Places,Planning and Development Servs,132C,A T Graphics LTD,18/09/2023,PE152994,360.00,0.00,October 23 edition for FM,Promotions - General,
Wyre Council,http://opendatacommunities.org/doc/district-council/wyre,29/09/2023,People and Places,Environmental Services,132B,Preston City Council,11/09/2023,PE151587,-656.39,0.00,Credit issued by supplier and new invoice sent due to incorrect charges on vat on original invoice for Monday Urban Wyre Collection Calendar x 69000,Promotions - General,
Wyre Council,http://opendatacommunities.org/doc/district-council/wyre,29/09/2023,People and Places,Environmental Services,132B,Preston City Council,11/09/2023,PE151606,-1715.00,0.00,Credit note received due to incorrect vat on original invoice - recycling slf lock bin tags job no 0045,Promotions - General,
Wyre Council,http://opendatacommunities.org/doc/district-council/wyre,29/09/2023,People and Places,Environmental Services,132B,Preston City Council,11/09/2023,PE150692,114.58,0.00,New invoice due to incorrect vat on original invoice - recycling survey print job 1296,Promotions - General,
Wyre Council,http://opendatacommunities.org/doc/district-council/wyre,29/09/2023,People and Places,Environmental Services,132B,Preston City Council,11/09/2023,PE151544,243.97,0.00,New invoice sent by supplier due to charging incorrect vat on original invoice for Friday Rural Wyre Collection Calendar x 4000,Promotions - General,
Wyre Council,http://opendatacommunities.org/doc/district-council/wyre,29/09/2023,People and Places,Environmental Services,132B,Preston City Council,11/09/2023,PE151543,243.97,0.00,new invoice issued by supplier due to icharging incorrect vat on original invoice for Thursday Rural Wyre Collection Calendar x 4700,Promotions - General,
Wyre Council,http://opendatacommunities.org/doc/district-council/wyre,29/09/2023,Resources,Central Services to the Public,131C,Preston City Council,11/09/2023,RS151566,50.00,0.00,New invoice from supplier due to incorrect vat on original invoice for Vaccine Pub Poster,Promotions - General,
Wyre Council,http://opendatacommunities.org/doc/district-council/wyre,29/09/2023,People and Places,Planning and Development Servs,132C,Preston City Council,11/09/2023,PE151567,46.88,0.00,New invoice due to supplier charging incorrect vat on original invoice for Festive Trail Certificates,Promotions - General,
Wyre Council,http://opendatacommunities.org/doc/district-council/wyre,29/09/2023,People and Places,Planning and Development Servs,132C,Preston City Council,11/09/2023,PE152773,46.88,0.00,New invoice due to supplier charging incorrect vat on original invoice - festive trail certificate,Promotions - General,
Wyre Council,http://opendatacommunities.org/doc/district-council/wyre,29/09/2023,People and Places,Planning and Development Servs,132C,Preston City Council,11/09/2023,PE151567,-46.88,0.00,New invoice due to supplier charging incorrect vat on original invoice for Festive Trail Certificates,Promotions - General,
Wyre Council,http://opendatacommunities.org/doc/district-council/wyre,29/09/2023,People and Places,Environmental Services,132B,Preston City Council,11/09/2023,PE151542,243.97,0.00,New invoice due to supplier charging incorrct vat on original invoice for Wednesday Rural Wyre Collection Calendar x 3500,Promotions - General,
Wyre Council,http://opendatacommunities.org/doc/district-council/wyre,29/09/2023,People and Places,Environmental Services,132B,Preston City Council,11/09/2023,PE151541,243.97,0.00,Preston issued new invoice due to charging incorrect vat on original for Tuesday Rural Wyre Collection Calendar x 5100,Promotions - General,
Wyre Council,http://opendatacommunities.org/doc/district-council/wyre,29/09/2023,People and Places,Environmental Services,132B,Preston City Council,11/09/2023,PE151552,143.10,0.00,New invoice issued due to incorrect vat on original invoice for Boxes to bins postcards,Promotions - General,
Wyre Council,http://opendatacommunities.org/doc/district-council/wyre,29/09/2023,People and Places,Environmental Services,132B,Preston City Council,11/09/2023,PE151551,243.97,0.00,New invoice due to incorrect vat code on original invoice - Monday rutal wyre collection calendar job no 828,Promotions - General,
Wyre Council,http://opendatacommunities.org/doc/district-council/wyre,29/09/2023,People and Places,Environmental Services,132B,Preston City Council,11/09/2023,PE151550,243.97,0.00,New invoice issued due to incorrect vat on original invoice for Friday Urban Wyre Collection Calendar,Promotions - General,
Wyre Council,http://opendatacommunities.org/doc/district-council/wyre,29/09/2023,People and Places,Environmental Services,132B,Preston City Council,11/09/2023,PE151549,243.97,0.00,Credit and new invoice issued due to incorrect vat on original invoice for Thursday Urban Wyre Collection Calendar,Promotions - General,
Wyre Council,http://opendatacommunities.org/doc/district-council/wyre,29/09/2023,People and Places,Environmental Services,132B,Preston City Council,11/09/2023,PE151548,243.97,0.00,New invoice due to incorrect vat on original invoice - Wednesday urban wyre collection calendat job no 821-,Promotions - General,
Wyre Council,http://opendatacommunities.org/doc/district-council/wyre,29/09/2023,People and Places,Environmental Services,132B,Preston City Council,11/09/2023,PE151547,243.97,0.00,New invoice received for Tuesday Urban Wyre Collectionm supplier due to incorrect vat on original invoice for,Promotions - General,
Wyre Council,http://opendatacommunities.org/doc/district-council/wyre,29/09/2023,People and Places,Environmental Services,132B,Preston City Council,11/09/2023,PE151546,243.97,0.00,New invoice due to incorrect vat on original invoice - Monday Urban Wyre Collection calendar job 827,Promotions - General,
Wyre Council,http://opendatacommunities.org/doc/district-council/wyre,29/09/2023,People and Places,Environmental Services,132B,Preston City Council,11/09/2023,PE151545,546.99,0.00,"New invoice, credit note issued by supplier due to incorrect vat onoriginal invoice for Monday Urban Wyre Collection Calendar",Promotions - General,
Wyre Council,http://opendatacommunities.org/doc/district-council/wyre,29/09/2023,People and Places,Environmental Services,132B,Preston City Council,11/09/2023,PE151564,1429.17,0.00,New invoice due to incorrect vat on original invoice for  recycling self lock bin tags,Promotions - General,
Wyre Council,http://opendatacommunities.org/doc/district-council/wyre,29/09/2023,People and Places,Environmental Services,132B,Preston City Council,11/09/2023,PE151562,329.67,0.00,New invoice due to incorrect vat on original invoice - Friday calendar job no 1283,Promotions - General,
Wyre Council,http://opendatacommunities.org/doc/district-council/wyre,29/09/2023,People and Places,Environmental Services,132B,Preston City Council,11/09/2023,PE151561,329.67,0.00,New invoices issued due to incorrect vat being charged on original invoice forr Thursdays Calendar,Promotions - General,
Wyre Council,http://opendatacommunities.org/doc/district-council/wyre,29/09/2023,People and Places,Environmental Services,132B,Preston City Council,11/09/2023,PE151560,329.67,0.00,Invoice raised by supplier due to incorrect vat being charged on original invoice for Wednesday Calendar,Promotions - General,
Wyre Council,http://opendatacommunities.org/doc/district-council/wyre,29/09/2023,People and Places,Environmental Services,132B,Preston City Council,11/09/2023,PE151559,329.67,0.00,New invoice raised by supplier duee to incorrect vat on original invoice for Tuesday Calendat x 8900,Promotions - General,
Wyre Council,http://opendatacommunities.org/doc/district-council/wyre,29/09/2023,People and Places,Environmental Services,132B,Preston City Council,11/09/2023,PE151558,329.67,0.00,New invoice raised by supplier due to charging incorrect vat on oriignal invoice for Monday Urban Wyre Collection Calendar,Promotions - General,
Wyre Council,http://opendatacommunities.org/doc/district-council/wyre,29/09/2023,People and Places,Environmental Services,132B,Preston City Council,11/09/2023,PE151557,234.83,0.00,New invoice due to incorrect vat being charged on original invoice for Friday Calendar,Promotions - General,
Wyre Council,http://opendatacommunities.org/doc/district-council/wyre,29/09/2023,People and Places,Environmental Services,132B,Preston City Council,11/09/2023,PE151556,234.83,0.00,New invoice raised by supplier due to charging incorrect vat on original invoice for Thursdays Calendars,Promotions - General,
Wyre Council,http://opendatacommunities.org/doc/district-council/wyre,29/09/2023,People and Places,Environmental Services,132B,Preston City Council,11/09/2023,PE151555,234.83,0.00,New invoice raised by supplier due to charging incorrect vat on original invoice for Wednesday Calendar x 4000,Promotions - General,
Wyre Council,http://opendatacommunities.org/doc/district-council/wyre,29/09/2023,People and Places,Environmental Services,132B,Preston City Council,11/09/2023,PE151554,234.83,0.00,new invoice due to incorrect vat on original for Tuesday Calendar,Promotions - General,
Wyre Council,http://opendatacommunities.org/doc/district-council/wyre,29/09/2023,People and Places,Environmental Services,132B,Preston City Council,11/09/2023,PE151553,234.83,0.00,New invoice issued by supplier due to incorrect vat on original invoice for Monday Rural Wyre Collection Calendar,Promotions - General,
Wyre Council,http://opendatacommunities.org/doc/district-council/wyre,29/09/2023,People and Places,Planning and Development Servs,132C,Preston City Council,11/09/2023,PE151540,98.75,0.00,"Supplier charged incorrect vat on original invoice, credit note issued and new incoice received for Market Receipt Books x 4",Promotions - General,
Wyre Council,http://opendatacommunities.org/doc/district-council/wyre,29/09/2023,People and Places,Cultural and Related Services,132A,Fleetwood Town Community Trust,08/09/2023,PE152732,600.00,0.00,FTFC Sensory Bags at 600 to use on match days with young people with SEND.,Promotions - General,
Wyre Council,http://opendatacommunities.org/doc/district-council/wyre,29/09/2023,People and Places,Planning and Development Servs,132C,Prodigital And Event Management Ltd LTD,14/09/2023,PE152911,495.00,0.00,Autumn edition of A Grand Day Out,Promotions - General,
Wyre Council,http://opendatacommunities.org/doc/district-council/wyre,29/09/2023,People and Places,Planning and Development Servs,132C,Prodigital And Event Management Ltd LTD,01/09/2023,PE152588,495.00,0.00,A Grand Day Out Christmas 23 supplement,Promotions - General,
Wyre Council,http://opendatacommunities.org/doc/district-council/wyre,29/09/2023,People and Places,Environmental Services,132B,PermiServ Ltd,12/09/2023,PE152815,788.46,0.00,"27,000 Production, Postage and Management of Green Waste  Subscription Stickers/Portal, as per Lancashire Agreement (Unit cost 1.02 per sticker)  Please leave PO open as it will be drawn-off each month  e-mail address: Rebecca Padgham rebecca@permiserv.c",Promotions - General,
Wyre Council,http://opendatacommunities.org/doc/district-council/wyre,29/09/2023,Resources,Cultural and Related Services,132A,Visual Print and Design Ltd,12/09/2023,RS152115,395.00,0.00,Re-print of `Little Cucumber Fish of Wyre` Leaflets x 1000,Promotions - General,
Wyre Council,http://opendatacommunities.org/doc/district-council/wyre,29/09/2023,Resources,Cultural and Related Services,132A,Visual Print and Design Ltd,21/09/2023,RS153066,475.00,0.00,Garstang Heritage leaflets print run - 2000 each leaflet,Promotions - General,
Wyre Council,http://opendatacommunities.org/doc/district-council/wyre,29/09/2023,People and Places,Planning and Development Servs,132C,PSM Group,01/09/2023,PE152581,300.00,0.00,SIGNS FOR NEW VEGAN UNIT OUTSIDE,Promotions - General,
Wyre Council,http://opendatacommunities.org/doc/district-council/wyre,29/09/2023,People and Places,Planning and Development Servs,132C,PSM Group,26/09/2023,PE153234,895.00,0.00,SIGNS assorted meet and greet sign market office  diebond sign meet and greet 16 foot outside on railings sign installation,Promotions - General,
Wyre Council,http://opendatacommunities.org/doc/district-council/wyre,29/09/2023,People and Places,Planning and Development Servs,132C,PSM Group,13/09/2023,PE152878,580.00,0.00,SIGNs road closure 10 corex board signs including artwork,Promotions - General,
Wyre Council,http://opendatacommunities.org/doc/district-council/wyre,29/09/2023,People and Places,Planning and Development Servs,132C,PSM Group,26/09/2023,PE153219,825.00,0.00,20 toilets this way signs printed both sides,Promotions - General,
Wyre Council,http://opendatacommunities.org/doc/district-council/wyre,29/09/2023,People and Places,Planning and Development Servs,132C,Colston Media Ltd,26/09/2023,PE153048,170.00,0.00,Issue Number - 264 / invoice 21560,Promotions - General,
Wyre Council,http://opendatacommunities.org/doc/district-council/wyre,29/09/2023,People and Places,Planning and Development Servs,132C,Colston Media Ltd,26/09/2023,PE152934,170.00,0.00,Issue 260 - invoice 21219,Promotions - General,
Wyre Council,http://opendatacommunities.org/doc/district-council/wyre,29/09/2023,People and Places,Planning and Development Servs,132C,Colston Media Ltd,26/09/2023,PE152600,170.00,0.00,Issue 263 PAGE 5 for the North West Times,Promotions - General,
Wyre Council,http://opendatacommunities.org/doc/district-council/wyre,29/09/2023,People and Places,Planning and Development Servs,132C,Colston Media Ltd,05/09/2023,PE150451,170.00,0.00,Fleetwood Market advert,Promotions - General,
Wyre Council,http://opendatacommunities.org/doc/district-council/wyre,29/09/2023,People and Places,Planning and Development Servs,132C,Devil Tree Media Ltd,07/09/2023,PE152700,150.00,0.00,August edition of Lancashire Now to advertise FM summer event,Promotions - General,
Wyre Council,http://opendatacommunities.org/doc/district-council/wyre,29/09/2023,People and Places,Planning and Development Servs,132C,Devil Tree Media Ltd,27/09/2023,PE153255,356.50,0.00,Christmas section magazine - FM,Promotions - General,
Wyre Council,http://opendatacommunities.org/doc/district-council/wyre,29/09/2023,People and Places,Planning and Development Servs,132C,Devil Tree Media Ltd,27/09/2023,PE153256,450.00,0.00,Publication Date(S) -11.10.23 till 08.11.23                                 08.11.23 till 13.12.23                                 13.12.23 till 10.01.24  3x one per issue for the next three months in our Christmas section,Promotions - General,
Wyre Council,http://opendatacommunities.org/doc/district-council/wyre,29/09/2023,People and Places,Support Services,135B,Key Engineering & Hygiene Supplies LTD,20/09/2023,PE152973,63.66,0.00,"Supply as per quotation 20334 29/8/23 Protective Clothing  Engineers 45.24 Street Cleansing 230.14 Grounds 84.43 Delivery to Wyre Council, Copse Road Depot, Copse Road, Fleetwood, FY7 6RP.",Protective Clothing,
Wyre Council,http://opendatacommunities.org/doc/district-council/wyre,29/09/2023,People and Places,Environmental Services,132B,Key Engineering & Hygiene Supplies LTD,07/09/2023,PE152715,130.05,0.00,"Supply as per quotation 20334 29/8/23 Protective Clothing  Engineers 45.24 Street Cleansing 230.14 Grounds 84.43 Delivery to Wyre Council, Copse Road Depot, Copse Road, Fleetwood, FY7 6RP.",Protective Clothing,
Wyre Council,http://opendatacommunities.org/doc/district-council/wyre,29/09/2023,People and Places,Environmental Services,132B,Key Engineering & Hygiene Supplies LTD,07/09/2023,PE152715,100.09,0.00,"Supply as per quotation 20334 29/8/23 Protective Clothing  Engineers 45.24 Street Cleansing 230.14 Grounds 84.43 Delivery to Wyre Council, Copse Road Depot, Copse Road, Fleetwood, FY7 6RP.",Protective Clothing,
Wyre Council,http://opendatacommunities.org/doc/district-council/wyre,29/09/2023,People and Places,Environmental Services,132B,Key Engineering & Hygiene Supplies LTD,19/09/2023,PE152938,40.05,0.00,Boots  size 12  Street Cleansing,Protective Clothing,
Wyre Council,http://opendatacommunities.org/doc/district-council/wyre,29/09/2023,People and Places,Support Services,135B,Key Engineering & Hygiene Supplies LTD,07/09/2023,PE152715,5.09,0.00,"Supply as per quotation 20334 29/8/23 Protective Clothing  Engineers 45.24 Street Cleansing 230.14 Grounds 84.43 Delivery to Wyre Council, Copse Road Depot, Copse Road, Fleetwood, FY7 6RP.",Protective Clothing,
Wyre Council,http://opendatacommunities.org/doc/district-council/wyre,29/09/2023,People and Places,Support Services,135B,Key Engineering & Hygiene Supplies LTD,20/09/2023,PE152973,45.24,0.00,"Supply as per quotation 20334 29/8/23 Protective Clothing  Engineers 45.24 Street Cleansing 230.14 Grounds 84.43 Delivery to Wyre Council, Copse Road Depot, Copse Road, Fleetwood, FY7 6RP.",Protective Clothing,
Wyre Council,http://opendatacommunities.org/doc/district-council/wyre,29/09/2023,People and Places,Environmental Services,132B,Key Engineering & Hygiene Supplies LTD,15/09/2023,PE152972,883.00,0.00,"Supply 50 boxes of Blue refuse bags, code BL09OC1 @ 17.66 per box of 200 Delivery to Wyre Council, Copse Road Depot, Copse Road, Fleetwood, FY7 6RP","Provision of Bins, Boxes and Sacks",
Wyre Council,http://opendatacommunities.org/doc/district-council/wyre,29/09/2023,People and Places,Environmental Services,132B,A & C Weber UK LTD,15/09/2023,PE152935,10360.00,0.00,240ltr Grey Carcasses @ 19.00 per unit,"Provision of Bins, Boxes and Sacks",
Wyre Council,http://opendatacommunities.org/doc/district-council/wyre,29/09/2023,People and Places,Environmental Services,132B,A & C Weber UK LTD,15/09/2023,PE152935,2986.50,0.00,240ltr Grey Carcasses with Blue Lid @ 21.95 per unit,"Provision of Bins, Boxes and Sacks",
Wyre Council,http://opendatacommunities.org/doc/district-council/wyre,29/09/2023,People and Places,Environmental Services,132B,A & C Weber UK LTD,15/09/2023,PE152935,2986.50,0.00,240ltr Grey Carcasses with Red Lid @ 21.95 per unit,"Provision of Bins, Boxes and Sacks",
Wyre Council,http://opendatacommunities.org/doc/district-council/wyre,29/09/2023,People and Places,Environmental Services,132B,A & C Weber UK LTD,15/09/2023,PE152935,2986.50,0.00,240ltr Grey Carcasses with Green Lid @ 21.95 per unit,"Provision of Bins, Boxes and Sacks",
Wyre Council,http://opendatacommunities.org/doc/district-council/wyre,29/09/2023,People and Places,Environmental Services,132B,A & C Weber UK LTD,15/09/2023,PE152935,110.00,0.00,"Delivery  Prices as per ESPO Contract Schedule 860ADD  Delivery ASAP  (can accept delivery any time, but please advise in advance if possible) e-mail address: sales@w-weber.com & d.elliott@w-weber.com  & t.anklam@w-weber.com     To be delivered to: Copse","Provision of Bins, Boxes and Sacks",
Wyre Council,http://opendatacommunities.org/doc/district-council/wyre,29/09/2023,People and Places,Environmental Services,132B,Veolia ES (UK) LTD,12/09/2023,PE152810,4977.81,0.00,Bin Provision,"Provision of Bins, Boxes and Sacks",
Wyre Council,http://opendatacommunities.org/doc/district-council/wyre,29/09/2023,People and Places,Support Services,135B,Steve Wear Blinds,22/09/2023,PE153108,119.00,0.00,Blinds for Room 27,Purchase Furniture,
Wyre Council,http://opendatacommunities.org/doc/district-council/wyre,29/09/2023,People and Places,Support Services,135B,Steve Wear Blinds,22/09/2023,PE153106,395.00,0.00,Blinds for mayors parlour,Purchase Furniture,
Wyre Council,http://opendatacommunities.org/doc/district-council/wyre,29/09/2023,People and Places,Housing General Fund,134A,VODAFONE LIMITED,20/09/2023,PE152987,12.00,0.00,Phone charges 01/08/23 to 31/08/23,Purchase Furniture,
Wyre Council,http://opendatacommunities.org/doc/district-council/wyre,29/09/2023,Resources,Housing General Fund,134A,VODAFONE LIMITED,06/09/2023,RS152459,14.71,0.00,Monthly Mobile Phone charges,Purchase Furniture,
Wyre Council,http://opendatacommunities.org/doc/district-council/wyre,29/09/2023,People and Places,Support Services,135B,EVOLUTION CONSTRUCTION GROUP LTD,27/09/2023,PE153186,48.39,0.00,Supply and fit replacement carpet strips to Members Lounge,Purchase Furniture,
Wyre Council,http://opendatacommunities.org/doc/district-council/wyre,29/09/2023,People and Places,Support Services,135B,EVOLUTION CONSTRUCTION GROUP LTD,27/09/2023,PE153183,48.31,0.00,Fix mirror in members Lounge,Purchase Furniture,
Wyre Council,http://opendatacommunities.org/doc/district-council/wyre,29/09/2023,People and Places,Support Services,135B,Vitax LTD,26/09/2023,PE153220,1632.00,0.00,to supply and deliver 3x  TFS  25 supaturf pitch markers @ 544 each plus vat,Purchase of Tools or Equipment,
Wyre Council,http://opendatacommunities.org/doc/district-council/wyre,29/09/2023,People and Places,Cultural and Related Services,132A,HUWS GRAY LTD,20/09/2023,PE153061,29.97,0.00,wood saws,Purchase of Tools or Equipment,
Wyre Council,http://opendatacommunities.org/doc/district-council/wyre,29/09/2023,People and Places,Environmental Services,132B,Amazon Business,25/09/2023,PE153159,66.62,0.00,2 x fans for copse road meeting room and office area,Purchase of Tools or Equipment,
Wyre Council,http://opendatacommunities.org/doc/district-council/wyre,29/09/2023,People and Places,Cultural and Related Services,132A,PHYLLIS DAVIES SCHOOL OF DANCING,06/09/2023,PE152693,9654.00,0.00,Round of Applause 2023 8th to 11th August 23 ticket sales,Refund of Ticket Sales to Ext Promoters,
Wyre Council,http://opendatacommunities.org/doc/district-council/wyre,29/09/2023,People and Places,Cultural and Related Services,132A,Wilding Dance Company,12/09/2023,PE152821,3351.00,0.00,Final settlement related to Megan Wilding Dance Company 26-29 July 2023,Refund of Ticket Sales to Ext Promoters,
Wyre Council,http://opendatacommunities.org/doc/district-council/wyre,29/09/2023,People and Places,Cultural and Related Services,132A,ELP,06/09/2023,PE152688,4254.00,0.00,Oliver 24th to 26th August ticket sales,Refund of Ticket Sales to Ext Promoters,
Wyre Council,http://opendatacommunities.org/doc/district-council/wyre,29/09/2023,People and Places,Cultural and Related Services,132A,Anton Benson Productions Ltd,21/09/2023,PE153057,6300.00,0.00,Beauty & The Beast Christmas Panto 2022 - Box Office Settlement,Refund of Ticket Sales to Ext Promoters,
Wyre Council,http://opendatacommunities.org/doc/district-council/wyre,29/09/2023,People and Places,Planning and Development Servs,132C,Suez Recycling And Recovery UK LTD,25/09/2023,PE152606,1500.31,0.00,waste removal market suez,Refuse Collection,
Wyre Council,http://opendatacommunities.org/doc/district-council/wyre,29/09/2023,People and Places,Environmental Services,132B,Blackpool Council,05/09/2023,PE152622,1161.02,0.00,Bulky Matters Service Recharge 2022/23,Refuse Collection Contract,
Wyre Council,http://opendatacommunities.org/doc/district-council/wyre,29/09/2023,People and Places,Environmental Services,132B,Blackpool Council,05/09/2023,PE152623,2736.88,0.00,Bulky Matters Service Recharge 2023/24,Refuse Collection Contract,
Wyre Council,http://opendatacommunities.org/doc/district-council/wyre,29/09/2023,People and Places,Environmental Services,132B,Blackpool Council,05/09/2023,PE152623,794.82,0.00,Bulky Matters Service Recharge 2023/24- insurance,Refuse Collection Contract,
Wyre Council,http://opendatacommunities.org/doc/district-council/wyre,29/09/2023,People and Places,Environmental Services,132B,Veolia ES (UK) LTD,12/09/2023,PE152810,194020.84,0.00,Domestic Waste Management Collection Contract 2023/24,Refuse Collection Contract,
Wyre Council,http://opendatacommunities.org/doc/district-council/wyre,29/09/2023,People and Places,Environmental Services,132B,Veolia ES (UK) LTD,12/09/2023,PE152810,1558.32,0.00,Pension Pass Through,Refuse Collection Contract,
Wyre Council,http://opendatacommunities.org/doc/district-council/wyre,29/09/2023,People and Places,Environmental Services,132B,Calico Enterprise,19/09/2023,PE153018,2250.00,0.00,Bulky Matters Contract Calico 2023/24,Refuse Collection Contract,
Wyre Council,http://opendatacommunities.org/doc/district-council/wyre,29/09/2023,People and Places,Environmental Services,132B,Calico Enterprise,05/09/2023,PE152632,2336.97,0.00,Bulky Matters Contract Calico 2023/24,Refuse Collection Contract,
Wyre Council,http://opendatacommunities.org/doc/district-council/wyre,29/09/2023,People and Places,Environmental Services,132B,Calico Enterprise,19/09/2023,PE153018,10462.89,0.00,Bulky Matters Contract Calico 2023/24,Refuse Collection Contract,
Wyre Council,http://opendatacommunities.org/doc/district-council/wyre,29/09/2023,People and Places,Public Transport,133G,HUWS GRAY LTD,07/09/2023,PE152673,896.37,0.00,Postcrete and posts  Sea Defence,Repairs to Non-WBC Buildings,
Wyre Council,http://opendatacommunities.org/doc/district-council/wyre,29/09/2023,People and Places,Public Transport,133G,G W SHELTER SOLUTIONS LTD,26/09/2023,PE153230,3424.19,0.00,Your quotation GWQ1349Supply and install replacement glass and fittings to Wyre bus shelters as per your quotation.,Repairs to Non-WBC Buildings,
Wyre Council,http://opendatacommunities.org/doc/district-council/wyre,29/09/2023,Resources,General Fund below the line,136A,Department for Levelling Up Housing and Communitie,05/09/2023,RS152660,23269.00,0.00,DLUHC Recovery A/C 401817 Ref SD1608 (Doc 2300003615) 2015 flooding business rate relief recovery of overpayment,Repayment of Grant,
Wyre Council,http://opendatacommunities.org/doc/district-council/wyre,29/09/2023,People and Places,Support Services,135B,Andrew Signs LTD,27/09/2023,PE153124,40.00,0.00,Altered door nameplates,Responsive Building Maintenance,
Wyre Council,http://opendatacommunities.org/doc/district-council/wyre,29/09/2023,People and Places,Planning and Development Servs,132C,EAS Electrical Mechanical,21/09/2023,PE153074,395.00,0.00,Copse Rd Depot: replace 6 x breakers,Responsive Building Maintenance,
Wyre Council,http://opendatacommunities.org/doc/district-council/wyre,29/09/2023,People and Places,Planning and Development Servs,132C,EAS Electrical Mechanical,15/09/2023,PE152931,1922.31,0.00,"Fleetwood Market: Investigate fault on water cylinder. Replaced cylinder, valve pack and 24hr time clocl",Responsive Building Maintenance,
Wyre Council,http://opendatacommunities.org/doc/district-council/wyre,29/09/2023,People and Places,Cultural and Related Services,132A,EAS Electrical Mechanical,28/09/2023,PE153285,855.60,0.00,Marine Hall: EICR Remedials,Responsive Building Maintenance,
Wyre Council,http://opendatacommunities.org/doc/district-council/wyre,29/09/2023,People and Places,Support Services,135B,EAS Electrical Mechanical,05/09/2023,PE152635,22.13,0.00,Materials,Responsive Building Maintenance,
Wyre Council,http://opendatacommunities.org/doc/district-council/wyre,29/09/2023,People and Places,Support Services,135B,EAS Electrical Mechanical,05/09/2023,PE152635,96.00,0.00,Labour,Responsive Building Maintenance,
Wyre Council,http://opendatacommunities.org/doc/district-council/wyre,29/09/2023,People and Places,Support Services,135B,John Carney,14/09/2023,PE152909,180.00,0.00,"Civic Centre: Carry out repairs to roof over reception area, sealing up all around vent ducts on roof",Responsive Building Maintenance,
Wyre Council,http://opendatacommunities.org/doc/district-council/wyre,29/09/2023,People and Places,Cultural and Related Services,132A,John Carney,14/09/2023,PE152907,180.00,0.00,"Wyreside cafe, River Road: Minor gutter repairs, pointing gables in sand cement where needed,  Finally to supply and fix gutters, brackets and pipe clips where needed",Responsive Building Maintenance,
Wyre Council,http://opendatacommunities.org/doc/district-council/wyre,29/09/2023,People and Places,Cultural and Related Services,132A,John Carney,14/09/2023,PE152905,160.00,0.00,"Boathouse, Fleetwood: Minor repairs to flat roof.  Clear all debris, prime, prepare and seal up all around cracked asphalt, to apply Crompol solution",Responsive Building Maintenance,
Wyre Council,http://opendatacommunities.org/doc/district-council/wyre,29/09/2023,People and Places,Cultural and Related Services,132A,John Carney,14/09/2023,PE152906,190.00,0.00,"Beach Bungalow, 18, Esplanade: Repairs around outlet to flat roof over property",Responsive Building Maintenance,
Wyre Council,http://opendatacommunities.org/doc/district-council/wyre,29/09/2023,People and Places,Cultural and Related Services,132A,John Carney,14/09/2023,PE152904,240.00,0.00,"Jubilee Bowls Pavillion: Roof repair to flat roof.  Taking off trim to upstand wall, re-sealing with Crompol. Replacing fibreglass trim. NB Roof needs replacing soon",Responsive Building Maintenance,
Wyre Council,http://opendatacommunities.org/doc/district-council/wyre,29/09/2023,People and Places,Cultural and Related Services,132A,John Carney,29/09/2023,PE153300,1400.00,0.00,Jubilee Bowls Pavillion: Carry out all roof repairs; prime and prepare flat roof; felt roof with 1 layer of HT polyester torch on felt.  Apply Crompol solution onto wall to finish,Responsive Building Maintenance,
Wyre Council,http://opendatacommunities.org/doc/district-council/wyre,29/09/2023,People and Places,Cultural and Related Services,132A,John Carney,14/09/2023,PE152908,750.00,0.00,"Rangers Office, River Road: Repairs to asbestos roof:  Cleaning of all debris, prime and prepare.  Applying flash band to all affected areas, mainly to ridges, also for repairing damaged asbestos sheets",Responsive Building Maintenance,
Wyre Council,http://opendatacommunities.org/doc/district-council/wyre,29/09/2023,People and Places,Cultural and Related Services,132A,GARRY CARR BUILDING SERVICES LTD,14/09/2023,PE152695,412.00,0.00,"Poulton Swimming Centre: Full clean of roofs, gutters and outlets and various roof repairs",Responsive Building Maintenance,
Wyre Council,http://opendatacommunities.org/doc/district-council/wyre,29/09/2023,People and Places,Cultural and Related Services,132A,GARRY CARR BUILDING SERVICES LTD,28/09/2023,PE153213,283.00,0.00,Lower lighthouse Fleetwood: weedkill external and Magicide internal. Disinfect and power wash,Responsive Building Maintenance,
Wyre Council,http://opendatacommunities.org/doc/district-council/wyre,29/09/2023,People and Places,Support Services,135B,GARRY CARR BUILDING SERVICES LTD,27/09/2023,PE153211,4580.00,0.00,"civic Centre decoration to committee room 1 as quoted plus: supply and fit 9 rolls wallpaper, remove carpet and underlay and dispose of",Responsive Building Maintenance,
Wyre Council,http://opendatacommunities.org/doc/district-council/wyre,29/09/2023,People and Places,Support Services,135B,GARRY CARR BUILDING SERVICES LTD,27/09/2023,PE153210,4580.00,0.00,Civic Centre committe room 2: decoration as quoted plus supply and fit 9 rolls wallpaper; remove carpet and underlay and dispose of,Responsive Building Maintenance,
Wyre Council,http://opendatacommunities.org/doc/district-council/wyre,29/09/2023,People and Places,Support Services,135B,EVOLUTION CONSTRUCTION GROUP LTD,27/09/2023,PE153176,401.91,0.00,Work carried out to repair cracked window in committee room 2,Responsive Building Maintenance,
Wyre Council,http://opendatacommunities.org/doc/district-council/wyre,29/09/2023,People and Places,Cultural and Related Services,132A,EVOLUTION CONSTRUCTION GROUP LTD,27/09/2023,PE153207,49.10,0.00,Repairs to loose timber handrail at Pharos Lighthouse,Responsive Building Maintenance,
Wyre Council,http://opendatacommunities.org/doc/district-council/wyre,29/09/2023,People and Places,Cultural and Related Services,132A,EVOLUTION CONSTRUCTION GROUP LTD,27/09/2023,PE153181,151.42,0.00,Repairs to electric box doors/locks opposite Daves kiosk Fleetwood,Responsive Building Maintenance,
Wyre Council,http://opendatacommunities.org/doc/district-council/wyre,29/09/2023,People and Places,Cultural and Related Services,132A,EVOLUTION CONSTRUCTION GROUP LTD,27/09/2023,PE153208,50.81,0.00,Replace re fix loose boards to underside of stairs at Lower Lighthouse,Responsive Building Maintenance,
Wyre Council,http://opendatacommunities.org/doc/district-council/wyre,29/09/2023,People and Places,Environmental Services,132B,EVOLUTION CONSTRUCTION GROUP LTD,27/09/2023,PE153187,49.10,0.00,Repairs to leaks to main front windows at Garstang Cemetery,Responsive Building Maintenance,
Wyre Council,http://opendatacommunities.org/doc/district-council/wyre,29/09/2023,People and Places,Cultural and Related Services,132A,EVOLUTION CONSTRUCTION GROUP LTD,27/09/2023,PE153200,195.06,0.00,Repairs to Ceiling tiles due to leaks at Jubilee Bowls Pavilion,Responsive Building Maintenance,
Wyre Council,http://opendatacommunities.org/doc/district-council/wyre,29/09/2023,People and Places,Support Services,135B,EVOLUTION CONSTRUCTION GROUP LTD,27/09/2023,PE153170,300.18,0.00,To Install brass kick plates to internal/external doors and repair warped board to bay window in the Members Lounge,Responsive Building Maintenance,
Wyre Council,http://opendatacommunities.org/doc/district-council/wyre,29/09/2023,People and Places,Support Services,135B,EVOLUTION CONSTRUCTION GROUP LTD,27/09/2023,PE153168,169.71,0.00,Board over mising boards and re-fix mesh at the Civic Centre,Responsive Building Maintenance,
Wyre Council,http://opendatacommunities.org/doc/district-council/wyre,29/09/2023,People and Places,Support Services,135B,EVOLUTION CONSTRUCTION GROUP LTD,27/09/2023,PE153167,199.70,0.00,Works undertaken to floor in Members Lounge,Responsive Building Maintenance,
Wyre Council,http://opendatacommunities.org/doc/district-council/wyre,29/09/2023,People and Places,Support Services,135B,EVOLUTION CONSTRUCTION GROUP LTD,27/09/2023,PE153166,12.28,0.00,Re-fix marble tile above security doors adjacent to room 081,Responsive Building Maintenance,
Wyre Council,http://opendatacommunities.org/doc/district-council/wyre,29/09/2023,People and Places,Support Services,135B,EVOLUTION CONSTRUCTION GROUP LTD,27/09/2023,PE153198,24.55,0.00,Ease and adjust top opening light at Civic Centre,Responsive Building Maintenance,
Wyre Council,http://opendatacommunities.org/doc/district-council/wyre,29/09/2023,People and Places,Support Services,135B,EVOLUTION CONSTRUCTION GROUP LTD,27/09/2023,PE153197,78.71,0.00,To ease central bay sliding sash windows in committee rooms 1 & 2,Responsive Building Maintenance,
Wyre Council,http://opendatacommunities.org/doc/district-council/wyre,29/09/2023,People and Places,Support Services,135B,EVOLUTION CONSTRUCTION GROUP LTD,27/09/2023,PE153201,129.04,0.00,Supply and fit new door closer to rear staff door at Civic Centre,Responsive Building Maintenance,
Wyre Council,http://opendatacommunities.org/doc/district-council/wyre,29/09/2023,People and Places,Support Services,135B,EVOLUTION CONSTRUCTION GROUP LTD,27/09/2023,PE153204,103.53,0.00,Supply and fit soft closers to door at the Civic Centre,Responsive Building Maintenance,
Wyre Council,http://opendatacommunities.org/doc/district-council/wyre,29/09/2023,People and Places,Support Services,135B,EVOLUTION CONSTRUCTION GROUP LTD,27/09/2023,PE153192,66.71,0.00,Supply & fit replacement soft door closer to door adjacent to room 77,Responsive Building Maintenance,
Wyre Council,http://opendatacommunities.org/doc/district-council/wyre,29/09/2023,People and Places,Support Services,135B,EVOLUTION CONSTRUCTION GROUP LTD,27/09/2023,PE153163,41.48,0.00,Supply and fit door closer to outer door on room 147,Responsive Building Maintenance,
Wyre Council,http://opendatacommunities.org/doc/district-council/wyre,29/09/2023,People and Places,Support Services,135B,EVOLUTION CONSTRUCTION GROUP LTD,27/09/2023,PE153165,398.83,0.00,Supply and fit coded locks to room 077 and 078,Responsive Building Maintenance,
Wyre Council,http://opendatacommunities.org/doc/district-council/wyre,29/09/2023,People and Places,Cultural and Related Services,132A,EVOLUTION CONSTRUCTION GROUP LTD,27/09/2023,PE153191,49.10,0.00,Replace damaged manhole cover at Garstang Leisure Centre,Responsive Building Maintenance,
Wyre Council,http://opendatacommunities.org/doc/district-council/wyre,29/09/2023,People and Places,Cultural and Related Services,132A,EVOLUTION CONSTRUCTION GROUP LTD,27/09/2023,PE153202,50.33,0.00,Investigate and rectiry leak under pation doors at Belmont Bowling,Responsive Building Maintenance,
Wyre Council,http://opendatacommunities.org/doc/district-council/wyre,29/09/2023,People and Places,Cultural and Related Services,132A,EVOLUTION CONSTRUCTION GROUP LTD,27/09/2023,PE153209,61.38,0.00,Repairs to broken windows at Mount Cottages,Responsive Building Maintenance,
Wyre Council,http://opendatacommunities.org/doc/district-council/wyre,29/09/2023,People and Places,Cultural and Related Services,132A,EVOLUTION CONSTRUCTION GROUP LTD,27/09/2023,PE153180,49.10,0.00,Replace broken window due to vandalism at Mount Cottages,Responsive Building Maintenance,
Wyre Council,http://opendatacommunities.org/doc/district-council/wyre,29/09/2023,People and Places,Cultural and Related Services,132A,EVOLUTION CONSTRUCTION GROUP LTD,27/09/2023,PE153182,24.55,0.00,Fix a steel awards plaque to interior wall at Mount Pavilion,Responsive Building Maintenance,
